Workbook

Sheet Veiledning

Sheet Registrering
B1: Søknadsbudsjetteringsmal
B3: Prosjektinformasjon
B4: Prosjekttittel*
B5: Prosjektleder*
B6: Prosjekteier (institutt mv)*
B7: Institutt-/senterleder mv*
B8: Prosjektnummer (om opprettet)
B9: Saksnummer i ephorte (om opprettet)
B10: Kort begrunnelse for prosjektes faglige interesse. *
B15: Prosjektperiode
B16: Dato (etablering av budsjettet)
B17: Første budsjettår (oppstartsår)*
B18: Prosjektets (avtaleperioden) start*
B19: Prosjektets (avtaleperioden) slutt*
B20: Prosjektets slutt (etter endring) | F20: Beregning av valuta etter vedtatt modell for valutapolicy:
B21: Informasjon om finansiering | F21: Snittkurs 01.11.2021 - 01.11.2023 | I21: 10.5 | J21: se link: | K21: valutapolicy
B22: Navn på finansieringskilde(r) | C22: EU's rammeprogram (Horizon Europa) | F22: fratrekk risikofaktor | I22: 0.25
B23: Valutakurs (må forankres hos instituttleder) | C23: =IF(I24="",I23,I24) -> 10.25 | F23: Policykurs for innev. Periode | I23: =I21-I22 -> 10.25
B24: Prosjektkategorisering ( Bidrag) | F24: Eventuell manuell overstyring:
B25: Finansieringsprinsipp | C25: Kostnadsspesifikk
B26: Finansieringstype | C26: Fast beløp | E26: Vit. | F26: T/A
B27: Prosjekttype (overheadkostnader)* | E27: =IF(Registrering!C27="",0,VLOOKUP(Registrering!C27,Tabeller!$G$6:$J$11,2,FALSE)) -> 0 | F27: =IF(Registrering!C27="",0,VLOOKUP(Registrering!C27,Tabeller!$G$6:$J$11,3,FALSE)) -> 0
B28: Pris- lønnsjustering | D28: 2024 | E28: fremtid
B29: Årlig lønnsjustering i hele prosjektperioden | C29: Ja | D29: 0.049 | E29: 0.035 | G29: Lønnsjustering vil gjelder i alle årene i projektetes levetid

Sheet Budsjett
A1: Prosjekttittel: | D1: =IF(Registrering!$C$4="","",Registrering!$C$4) ->  | AO1: LØNNS- OG DRIFTSKOSTNADER | AV1: OVERHEADKOSTNADER | BD1: Eksternt finansiert overhead | BL1: Internt finansiert overhead | CB1: EU | CK1: Egenandel
A2: Prosjektansatte - dekkes av prosjektbevilgning | F2: REGISTRER MÅNEDSVERK | H2: + | N2: Alle beløp er angitt i hele kroner | BS2: Ekstern finansiering
A3: Prosjektansatte | B3: Stillingskategori iht EU's terminologi | C3: Finansiør | D3: Årslønn | E3: Navn | F3: År 1 | G3: År 2 | H3: År 3 | I3: År 4 | J3: År 5 | K3: År 6 | L3: Sum årsv | M3: Sum mndverk | N3: Lønn og sos. kostnader | O3: Overhead | P3: Totalt | AC3: Gj.snitt. Ltr | AD3: Bruttolønn | AE3: inkl lønnsv. | AF3: Lønn | AG3: Feriep | AH3: AGA | AI3: Pensjon | AJ3: inkl sos.avg. | AK3: inkl. ind.kost. | AL3: Timesats | AO3: =F3 -> År 1 | AP3: År 2 | AQ3: År 3 | AR3: År 4 | AS3: År 5 | AT3: År 6 | AV3: =AO3 -> År 1 | AW3: År 2 | AX3: År 3 | AY3: År 4 | AZ3: År 5 | BA3: År 6 | BD3: =AV3 -> År 1 | BE3: År 2 | BF3: År 3 | BG3: År 4 | BH3: År 5 | BI3: År 6 | BL3: =F3 -> År 1 | BM3: År 2 | BN3: År 3 | BO3: År 4 | BP3: År 5 | BQ3: År 6 | CC3: =F3 -> År 1 | CD3: År 2 | CE3: År 3 | CF3: År 4 | CG3: År 5 | CH3: År 6 | CI3: Sum årsv | CL3: =F3 -> År 1 | CM3: År 2 | CN3: År 3 | CO3: År 4 | CP3: År 5 | CQ3: År 6 | CR3: Sum årsv
A4: Postdoktor / Forsker | B4: =VLOOKUP(A4,Tabeller!$W$15:$Z$25,4,FALSE) -> Junior scientist | C4: EU | L4: =SUM(F4:K4)/12 -> 0 | M4: =L4*12 -> 0 | N4: =SUM(AO4:AT4) -> 0 | O4: =IFERROR(SUM(AV4:BA4),0) -> 0 | P4: =SUM(N4:O4) -> 0 | AC4: =D4 -> 0 | AD4: =D4 -> 0 | AE4: =AD4*Tabeller!$I$35 -> 0 | AF4: =IF(AD4>0,(AE4-400)/52*47,0) -> 0 | AG4: =AF4*Tabeller!$H$24 -> 0 | AH4: =SUM(AF4:AG4,AI4)*Tabeller!$H$25 -> 0 | AI4: =AE4*Tabeller!$H$26 -> 0 | AJ4: =SUM(AF4:AI4) -> 0 | AK4: =AJ4+(Registrering!$E$27) -> 0 | AL4: =AK4/Tabeller!$H$3 -> 0 | AO4: =((F4*Budsjett!$AJ4))/12 -> 0 | AP4: =((G4*Budsjett!$AJ4)*(Tabeller!J$33))/12 -> 0 | AQ4: =((H4*Budsjett!$AJ4)*(Tabeller!K$33))/12 -> 0 | AR4: =((I4*Budsjett!$AJ4)*(Tabeller!L$33))/12 -> 0 | AS4: =((J4*Budsjett!$AJ4)*(Tabeller!M$33))/12 -> 0 | AT4: =((K4*Budsjett!$AJ4)*(Tabeller!N$33))/12 -> 0 | AV4: =IFERROR(AO4*Budsjett!$G$57,0) -> 0 | AW4: =IFERROR(AP4*Budsjett!$G$57,0) -> 0 | AX4: =IFERROR(AQ4*Budsjett!$G$57,0) -> 0 | AY4: =IFERROR(AR4*Budsjett!$G$57,0) -> 0 | AZ4: =IFERROR(AS4*Budsjett!$G$57,0) -> 0 | BA4: =IFERROR(AT4*Budsjett!$G$57,0) -> 0 | BD4: =IFERROR(AO4*Budsjett!BD$58,0) -> 0 | BE4: =IFERROR(AP4*Budsjett!BE$58,0) -> 0 | BF4: =IFERROR(AQ4*Budsjett!BF$58,0) -> 0 | BG4: =IFERROR(AR4*Budsjett!BG$58,0) -> 0 | BH4: =IFERROR(AS4*Budsjett!BH$58,0) -> 0 | BI4: =IFERROR(AT4*Budsjett!BI$58,0) -> 0 | BL4: =AV4-BD4 -> 0 | BM4: 0 | BN4: 0 | BO4: 0 | BP4: 0 | BQ4: 0 | BS4: Totale kostnader | BT4: =AO35+AO50+AV35 -> 0 | BU4: 0 | BV4: 0 | BW4: 0 | BX4: 0 | BY4: 0 | BZ4: 0 | CB4: =A4 -> Postdoktor / Forsker | CC4: =IF($C4=$CB$1,AO4,0) -> 0 | CD4: 0 | CE4: 0 | CF4: 0 | CG4: 0 | CH4: 0 | CI4: =SUM(CC4:CH4) -> 0 | CK4: =A4 -> Postdoktor / Forsker | CR4: =SUM(CL4:CQ4) -> 0
A5: Prosjektleder/adm.leder | B5: =VLOOKUP(A5,Tabeller!$W$15:$Z$25,4,FALSE) -> Senior scientist | C5: EU | L5: 0 | M5: =L5*12 -> 0 | N5: =SUM(AO5:AT5) -> 0 | O5: 0 | P5: 0 | AC5: 0 | AD5: 0 | AE5: =AD5*Tabeller!$I$35 -> 0 | AF5: =IF(AD5>0,(AE5-400)/52*47,0) -> 0 | AG5: =AF5*Tabeller!$H$24 -> 0 | AH5: =SUM(AF5:AG5,AI5)*Tabeller!$H$25 -> 0 | AI5: =AE5*Tabeller!$H$26 -> 0 | AJ5: =SUM(AF5:AI5) -> 0 | AK5: =AJ5+(Registrering!$E$27) -> 0 | AL5: =AK5/Tabeller!$H$3 -> 0 | AO5: =((F5*Budsjett!$AJ5))/12 -> 0 | AP5: =((G5*Budsjett!$AJ5)*(Tabeller!J$33))/12 -> 0 | AQ5: =((H5*Budsjett!$AJ5)*(Tabeller!K$33))/12 -> 0 | AR5: =((I5*Budsjett!$AJ5)*(Tabeller!L$33))/12 -> 0 | AS5: =((J5*Budsjett!$AJ5)*(Tabeller!M$33))/12 -> 0 | AT5: =((K5*Budsjett!$AJ5)*(Tabeller!N$33))/12 -> 0 | AV5: =IFERROR(AO5*Budsjett!$G$57,0) -> 0 | AW5: =IFERROR(AP5*Budsjett!$G$57,0) -> 0 | AX5: =IFERROR(AQ5*Budsjett!$G$57,0) -> 0 | AY5: =IFERROR(AR5*Budsjett!$G$57,0) -> 0 | AZ5: =IFERROR(AS5*Budsjett!$G$57,0) -> 0 | BA5: =IFERROR(AT5*Budsjett!$G$57,0) -> 0 | BD5: =IFERROR(AO5*Budsjett!BD$58,0) -> 0 | BE5: =IFERROR(AP5*Budsjett!BE$58,0) -> 0 | BF5: =IFERROR(AQ5*Budsjett!BF$58,0) -> 0 | BG5: =IFERROR(AR5*Budsjett!BG$58,0) -> 0 | BH5: =IFERROR(AS5*Budsjett!BH$58,0) -> 0 | BI5: =IFERROR(AT5*Budsjett!BI$58,0) -> 0 | BL5: 0 | BM5: 0 | BN5: 0 | BO5: 0 | BP5: 0 | BQ5: 0 | BS5: Fast beløp | BT5: =Finansiering!C9 -> 0 | BU5: =Finansiering!D9 -> 0 | BV5: =Finansiering!E9 -> 0 | BW5: =Finansiering!F9 -> 0 | BX5: =Finansiering!G9 -> 0 | BY5: =Finansiering!H9 -> 0 | BZ5: =Finansiering!I9 -> 0 | CB5: Prosjektleder/adm.leder | CC5: 0 | CD5: 0 | CE5: 0 | CF5: 0 | CG5: 0 | CH5: 0 | CI5: 0 | CK5: Prosjektleder/adm.leder | CR5: 0
A6: Prosjektleder/adm.leder | B6: =VLOOKUP(A6,Tabeller!$W$15:$Z$25,4,FALSE) -> Senior scientist | C6: EU | L6: 0 | M6: 0 | N6: 0 | O6: =IFERROR(SUM(AV6:BA6),0) -> 0 | P6: 0 | AC6: 0 | AD6: 0 | AE6: =AD6*Tabeller!$I$35 -> 0 | AF6: 0 | AG6: =AF6*Tabeller!$H$24 -> 0 | AH6: =SUM(AF6:AG6,AI6)*Tabeller!$H$25 -> 0 | AI6: =AE6*Tabeller!$H$26 -> 0 | AJ6: 0 | AK6: =AJ6+(Registrering!$E$27) -> 0 | AL6: =AK6/Tabeller!$H$3 -> 0 | AO6: =((F6*Budsjett!$AJ6))/12 -> 0 | AP6: =((G6*Budsjett!$AJ6)*(Tabeller!J$33))/12 -> 0 | AQ6: =((H6*Budsjett!$AJ6)*(Tabeller!K$33))/12 -> 0 | AR6: =((I6*Budsjett!$AJ6)*(Tabeller!L$33))/12 -> 0 | AS6: =((J6*Budsjett!$AJ6)*(Tabeller!M$33))/12 -> 0 | AT6: =((K6*Budsjett!$AJ6)*(Tabeller!N$33))/12 -> 0 | AV6: =IFERROR(AO6*Budsjett!$G$57,0) -> 0 | AW6: =IFERROR(AP6*Budsjett!$G$57,0) -> 0 | AX6: =IFERROR(AQ6*Budsjett!$G$57,0) -> 0 | AY6: =IFERROR(AR6*Budsjett!$G$57,0) -> 0 | AZ6: =IFERROR(AS6*Budsjett!$G$57,0) -> 0 | BA6: =IFERROR(AT6*Budsjett!$G$57,0) -> 0 | BD6: =IFERROR(AO6*Budsjett!BD$58,0) -> 0 | BE6: =IFERROR(AP6*Budsjett!BE$58,0) -> 0 | BF6: =IFERROR(AQ6*Budsjett!BF$58,0) -> 0 | BG6: =IFERROR(AR6*Budsjett!BG$58,0) -> 0 | BH6: =IFERROR(AS6*Budsjett!BH$58,0) -> 0 | BI6: =IFERROR(AT6*Budsjett!BI$58,0) -> 0 | BL6: 0 | BM6: 0 | BN6: 0 | BO6: 0 | BP6: 0 | BQ6: 0 | BS6: Sum Egenandel | BT6: =-(AO28+BL35+CL41) -> 0 | BU6: 0 | BV6: 0 | BW6: 0 | BX6: 0 | BY6: 0 | BZ6: =SUM(BT6:BY6) -> 0 | CB6: Prosjektleder/adm.leder | CC6: 0 | CD6: 0 | CE6: 0 | CF6: 0 | CG6: 0 | CH6: 0 | CI6: 0 | CK6: Prosjektleder/adm.leder | CR6: 0
A7: Prosjektleder/adm.leder | B7: =VLOOKUP(A7,Tabeller!$W$15:$Z$25,4,FALSE) -> Senior scientist | C7: EU | L7: 0 | M7: 0 | N7: =SUM(AO7:AT7) -> 0 | O7: 0 | P7: 0 | R7: =(Budsjett!P38+Budsjett!P40) -> 0 | AC7: 0 | AD7: 0 | AE7: =AD7*Tabeller!$I$35 -> 0 | AF7: 0 | AG7: =AF7*Tabeller!$H$24 -> 0 | AH7: =SUM(AF7:AG7,AI7)*Tabeller!$H$25 -> 0 | AI7: =AE7*Tabeller!$H$26 -> 0 | AJ7: 0 | AK7: =AJ7+(Registrering!$E$27) -> 0 | AL7: =AK7/Tabeller!$H$3 -> 0 | AO7: =((F7*Budsjett!$AJ7))/12 -> 0 | AP7: =((G7*Budsjett!$AJ7)*(Tabeller!J$33))/12 -> 0 | AQ7: =((H7*Budsjett!$AJ7)*(Tabeller!K$33))/12 -> 0 | AR7: =((I7*Budsjett!$AJ7)*(Tabeller!L$33))/12 -> 0 | AS7: =((J7*Budsjett!$AJ7)*(Tabeller!M$33))/12 -> 0 | AT7: =((K7*Budsjett!$AJ7)*(Tabeller!N$33))/12 -> 0 | AV7: =IFERROR(AO7*Budsjett!$G$57,0) -> 0 | AW7: =IFERROR(AP7*Budsjett!$G$57,0) -> 0 | AX7: =IFERROR(AQ7*Budsjett!$G$57,0) -> 0 | AY7: =IFERROR(AR7*Budsjett!$G$57,0) -> 0 | AZ7: =IFERROR(AS7*Budsjett!$G$57,0) -> 0 | BA7: =IFERROR(AT7*Budsjett!$G$57,0) -> 0 | BD7: =IFERROR(AO7*Budsjett!BD$58,0) -> 0 | BE7: =IFERROR(AP7*Budsjett!BE$58,0) -> 0 | BF7: =IFERROR(AQ7*Budsjett!BF$58,0) -> 0 | BG7: =IFERROR(AR7*Budsjett!BG$58,0) -> 0 | BH7: =IFERROR(AS7*Budsjett!BH$58,0) -> 0 | BI7: =IFERROR(AT7*Budsjett!BI$58,0) -> 0 | BL7: 0 | BM7: 0 | BN7: 0 | BO7: 0 | BP7: 0 | BQ7: 0 | CB7: Prosjektleder/adm.leder | CC7: 0 | CD7: 0 | CE7: 0 | CF7: 0 | CG7: 0 | CH7: 0 | CI7: 0 | CK7: Prosjektleder/adm.leder | CR7: 0
A8: Prosjektleder/adm.leder | B8: =VLOOKUP(A8,Tabeller!$W$15:$Z$25,4,FALSE) -> Senior scientist | C8: EU | L8: 0 | M8: 0 | N8: 0 | O8: =IFERROR(SUM(AV8:BA8),0) -> 0 | P8: 0 | AC8: 0 | AD8: 0 | AE8: =AD8*Tabeller!$I$35 -> 0 | AF8: 0 | AG8: =AF8*Tabeller!$H$24 -> 0 | AH8: =SUM(AF8:AG8,AI8)*Tabeller!$H$25 -> 0 | AI8: =AE8*Tabeller!$H$26 -> 0 | AJ8: 0 | AK8: =AJ8+(Registrering!$E$27) -> 0 | AL8: =AK8/Tabeller!$H$3 -> 0 | AO8: =((F8*Budsjett!$AJ8))/12 -> 0 | AP8: =((G8*Budsjett!$AJ8)*(Tabeller!J$33))/12 -> 0 | AQ8: =((H8*Budsjett!$AJ8)*(Tabeller!K$33))/12 -> 0 | AR8: =((I8*Budsjett!$AJ8)*(Tabeller!L$33))/12 -> 0 | AS8: =((J8*Budsjett!$AJ8)*(Tabeller!M$33))/12 -> 0 | AT8: =((K8*Budsjett!$AJ8)*(Tabeller!N$33))/12 -> 0 | AV8: =IFERROR(AO8*Budsjett!$G$57,0) -> 0 | AW8: =IFERROR(AP8*Budsjett!$G$57,0) -> 0 | AX8: =IFERROR(AQ8*Budsjett!$G$57,0) -> 0 | AY8: =IFERROR(AR8*Budsjett!$G$57,0) -> 0 | AZ8: =IFERROR(AS8*Budsjett!$G$57,0) -> 0 | BA8: =IFERROR(AT8*Budsjett!$G$57,0) -> 0 | BD8: =IFERROR(AO8*Budsjett!BD$58,0) -> 0 | BE8: =IFERROR(AP8*Budsjett!BE$58,0) -> 0 | BF8: =IFERROR(AQ8*Budsjett!BF$58,0) -> 0 | BG8: =IFERROR(AR8*Budsjett!BG$58,0) -> 0 | BH8: =IFERROR(AS8*Budsjett!BH$58,0) -> 0 | BI8: =IFERROR(AT8*Budsjett!BI$58,0) -> 0 | BL8: 0 | BM8: 0 | BN8: 0 | BO8: 0 | BP8: 0 | BQ8: 0 | CB8: Prosjektleder/adm.leder | CC8: 0 | CD8: 0 | CE8: 0 | CF8: 0 | CG8: 0 | CH8: 0 | CI8: 0 | CK8: Prosjektleder/adm.leder | CR8: =SUM(CL8:CQ8) -> 0
A9: Prosjektleder/adm.leder | B9: =VLOOKUP(A9,Tabeller!$W$15:$Z$25,4,FALSE) -> Senior scientist | C9: EU | L9: 0 | M9: 0 | N9: 0 | O9: 0 | P9: 0 | AC9: 0 | AD9: 0 | AE9: =AD9*Tabeller!$I$35 -> 0 | AF9: 0 | AG9: =AF9*Tabeller!$H$24 -> 0 | AH9: =SUM(AF9:AG9,AI9)*Tabeller!$H$25 -> 0 | AI9: =AE9*Tabeller!$H$26 -> 0 | AJ9: 0 | AK9: =AJ9+(Registrering!$E$27) -> 0 | AL9: =AK9/Tabeller!$H$3 -> 0 | AO9: =((F9*Budsjett!$AJ9))/12 -> 0 | AP9: =((G9*Budsjett!$AJ9)*(Tabeller!J$33))/12 -> 0 | AQ9: =((H9*Budsjett!$AJ9)*(Tabeller!K$33))/12 -> 0 | AR9: =((I9*Budsjett!$AJ9)*(Tabeller!L$33))/12 -> 0 | AS9: =((J9*Budsjett!$AJ9)*(Tabeller!M$33))/12 -> 0 | AT9: =((K9*Budsjett!$AJ9)*(Tabeller!N$33))/12 -> 0 | AV9: =IFERROR(AO9*Budsjett!$G$57,0) -> 0 | AW9: =IFERROR(AP9*Budsjett!$G$57,0) -> 0 | AX9: =IFERROR(AQ9*Budsjett!$G$57,0) -> 0 | AY9: =IFERROR(AR9*Budsjett!$G$57,0) -> 0 | AZ9: =IFERROR(AS9*Budsjett!$G$57,0) -> 0 | BA9: =IFERROR(AT9*Budsjett!$G$57,0) -> 0 | BD9: =IFERROR(AO9*Budsjett!BD$58,0) -> 0 | BE9: =IFERROR(AP9*Budsjett!BE$58,0) -> 0 | BF9: =IFERROR(AQ9*Budsjett!BF$58,0) -> 0 | BG9: =IFERROR(AR9*Budsjett!BG$58,0) -> 0 | BH9: =IFERROR(AS9*Budsjett!BH$58,0) -> 0 | BI9: =IFERROR(AT9*Budsjett!BI$58,0) -> 0 | BL9: 0 | BM9: 0 | BN9: 0 | BO9: 0 | BP9: 0 | BQ9: 0 | CB9: Prosjektleder/adm.leder | CC9: 0 | CD9: 0 | CE9: 0 | CF9: 0 | CG9: 0 | CH9: 0 | CI9: 0 | CK9: Prosjektleder/adm.leder | CR9: 0
A10: Prosjektleder/adm.leder | B10: =VLOOKUP(A10,Tabeller!$W$15:$Z$25,4,FALSE) -> Senior scientist | C10: EU | L10: 0 | M10: 0 | N10: 0 | O10: 0 | P10: 0 | AC10: 0 | AD10: 0 | AE10: =AD10*Tabeller!$I$35 -> 0 | AF10: 0 | AG10: =AF10*Tabeller!$H$24 -> 0 | AH10: =SUM(AF10:AG10,AI10)*Tabeller!$H$25 -> 0 | AI10: =AE10*Tabeller!$H$26 -> 0 | AJ10: 0 | AK10: =AJ10+(Registrering!$E$27) -> 0 | AL10: =AK10/Tabeller!$H$3 -> 0 | AO10: =((F10*Budsjett!$AJ10))/12 -> 0 | AP10: =((G10*Budsjett!$AJ10)*(Tabeller!J$33))/12 -> 0 | AQ10: =((H10*Budsjett!$AJ10)*(Tabeller!K$33))/12 -> 0 | AR10: =((I10*Budsjett!$AJ10)*(Tabeller!L$33))/12 -> 0 | AS10: =((J10*Budsjett!$AJ10)*(Tabeller!M$33))/12 -> 0 | AT10: =((K10*Budsjett!$AJ10)*(Tabeller!N$33))/12 -> 0 | AV10: =IFERROR(AO10*Budsjett!$G$57,0) -> 0 | AW10: =IFERROR(AP10*Budsjett!$G$57,0) -> 0 | AX10: =IFERROR(AQ10*Budsjett!$G$57,0) -> 0 | AY10: =IFERROR(AR10*Budsjett!$G$57,0) -> 0 | AZ10: =IFERROR(AS10*Budsjett!$G$57,0) -> 0 | BA10: =IFERROR(AT10*Budsjett!$G$57,0) -> 0 | BD10: =IFERROR(AO10*Budsjett!BD$58,0) -> 0 | BE10: =IFERROR(AP10*Budsjett!BE$58,0) -> 0 | BF10: =IFERROR(AQ10*Budsjett!BF$58,0) -> 0 | BG10: =IFERROR(AR10*Budsjett!BG$58,0) -> 0 | BH10: =IFERROR(AS10*Budsjett!BH$58,0) -> 0 | BI10: =IFERROR(AT10*Budsjett!BI$58,0) -> 0 | BL10: 0 | BM10: 0 | BN10: 0 | BO10: 0 | BP10: 0 | BQ10: 0 | CB10: Prosjektleder/adm.leder | CC10: 0 | CD10: 0 | CE10: 0 | CF10: 0 | CG10: 0 | CH10: 0 | CI10: 0 | CK10: Prosjektleder/adm.leder | CR10: 0
A11: Prosjektleder/adm.leder | B11: =VLOOKUP(A11,Tabeller!$W$15:$Z$25,4,FALSE) -> Senior scientist | C11: EU | L11: 0 | M11: 0 | N11: =SUM(AO11:AT11) -> 0 | O11: 0 | P11: 0 | AC11: 0 | AD11: 0 | AE11: =AD11*Tabeller!$I$35 -> 0 | AF11: 0 | AG11: =AF11*Tabeller!$H$24 -> 0 | AH11: =SUM(AF11:AG11,AI11)*Tabeller!$H$25 -> 0 | AI11: =AE11*Tabeller!$H$26 -> 0 | AJ11: =SUM(AF11:AI11) -> 0 | AK11: =AJ11+(Registrering!$E$27) -> 0 | AL11: =AK11/Tabeller!$H$3 -> 0 | AO11: =((F11*Budsjett!$AJ11))/12 -> 0 | AP11: =((G11*Budsjett!$AJ11)*(Tabeller!J$33))/12 -> 0 | AQ11: =((H11*Budsjett!$AJ11)*(Tabeller!K$33))/12 -> 0 | AR11: =((I11*Budsjett!$AJ11)*(Tabeller!L$33))/12 -> 0 | AS11: =((J11*Budsjett!$AJ11)*(Tabeller!M$33))/12 -> 0 | AT11: =((K11*Budsjett!$AJ11)*(Tabeller!N$33))/12 -> 0 | AV11: =IFERROR(AO11*Budsjett!$G$57,0) -> 0 | AW11: =IFERROR(AP11*Budsjett!$G$57,0) -> 0 | AX11: =IFERROR(AQ11*Budsjett!$G$57,0) -> 0 | AY11: =IFERROR(AR11*Budsjett!$G$57,0) -> 0 | AZ11: =IFERROR(AS11*Budsjett!$G$57,0) -> 0 | BA11: =IFERROR(AT11*Budsjett!$G$57,0) -> 0 | BD11: =IFERROR(AO11*Budsjett!BD$58,0) -> 0 | BE11: =IFERROR(AP11*Budsjett!BE$58,0) -> 0 | BF11: =IFERROR(AQ11*Budsjett!BF$58,0) -> 0 | BG11: =IFERROR(AR11*Budsjett!BG$58,0) -> 0 | BH11: =IFERROR(AS11*Budsjett!BH$58,0) -> 0 | BI11: =IFERROR(AT11*Budsjett!BI$58,0) -> 0 | BL11: 0 | BM11: 0 | BN11: 0 | BO11: 0 | BP11: 0 | BQ11: 0 | CB11: Prosjektleder/adm.leder | CC11: 0 | CD11: 0 | CE11: 0 | CF11: 0 | CG11: 0 | CH11: 0 | CI11: 0 | CK11: Prosjektleder/adm.leder | CR11: 0
A12: Sum (månedsverk) | F12: =SUM(F4:F11) -> 0 | G12: 0 | H12: =SUM(H4:H11) -> 0 | I12: =SUM(I4:I11) -> 0 | J12: 0 | K12: 0 | L12: 0 | M12: =L12*12 -> 0 | N12: 0 | O12: 0 | P12: 0 | AO12: =SUM(AO4:AO11) -> 0 | AP12: 0 | AQ12: 0 | AR12: 0 | AS12: 0 | AT12: 0 | AU12: =SUM(AO12:AT12) -> 0 | AV12: =SUM(AV4:AV11) -> 0 | AW12: 0 | AX12: 0 | AY12: 0 | AZ12: 0 | BA12: 0 | BB12: =SUM(AV12:BA12) -> 0 | BD12: =SUM(BD4:BD11) -> 0 | BE12: 0 | BF12: 0 | BG12: 0 | BH12: 0 | BI12: 0 | BJ12: =SUM(BD12:BI12) -> 0 | BL12: =SUM(BL4:BL11) -> 0 | BM12: 0 | BN12: 0 | BO12: 0 | BP12: 0 | BQ12: 0 | CB12: Sum (månedsverk) | CC12: =SUM(CC4:CC11) -> 0 | CD12: 0 | CE12: 0 | CF12: 0 | CG12: 0 | CH12: 0 | CI12: 0 | CK12: Sum (månedsverk) | CL12: =SUM(CL4:CL11) -> 0 | CM12: 0 | CN12: 0 | CO12: 0 | CP12: 0 | CQ12: 0 | CR12: 0
A13: Eksisterende ansatte - dekkes av prosjektbevilgning | F13: REGISTRER MÅNEDSVERK | CB13: Eksisterende ansatte - dekkes av prosjektbevilgning | CK13: Eksisterende ansatte - dekkes av prosjektbevilgning
A14: Frikjøp | B14: Stillingskategori iht EU's terminologi | D14: Årslønn | E14: Navn | F14: =F3 -> År 1 | G14: År 2 | H14: År 3 | I14: År 4 | J14: År 5 | K14: År 6 | L14: Sum | N14: Lønn og sos. kostnader | O14: Overhead | P14: Totalt | AC14: Gj.snitt. Ltr | AD14: Bruttolønn | AE14: inkl lønnsv. | AF14: Lønn | AG14: Feriep | AH14: AGA | AI14: Pensjon | AJ14: inkl sos.avg. | AK14: inkl. ind.kost. | AL14: Timesats | AO14: =F14 -> År 1 | AP14: År 2 | AQ14: År 3 | AR14: År 4 | AS14: År 5 | AT14: År 6 | AV14: =AO14 -> År 1 | AW14: År 2 | AX14: År 3 | AY14: År 4 | AZ14: År 5 | BA14: År 6 | BD14: =AV14 -> År 1 | BE14: År 2 | BF14: År 3 | BG14: År 4 | BH14: År 5 | BI14: År 6 | BL14: =F3 -> År 1 | BM14: År 2 | BN14: År 3 | BO14: År 4 | BP14: År 5 | BQ14: År 6 | CB14: Frikjøp | CC14: =CC3 -> År 1 | CD14: År 2 | CE14: År 3 | CF14: År 4 | CG14: År 5 | CH14: År 6 | CI14: Sum årsv | CK14: Frikjøp | CL14: =CL3 -> År 1 | CM14: År 2 | CN14: År 3 | CO14: År 4 | CP14: År 5 | CQ14: År 6 | CR14: Sum årsv
A15: Prosjektleder/adm.leder | B15: =VLOOKUP(A15,Tabeller!$W$15:$Z$25,4,FALSE) -> Senior scientist | C15: EU | L15: =SUM(F15:K15)/12 -> 0 | M15: =L15*12 -> 0 | N15: =SUM(AO15:AT15) -> 0 | O15: =IFERROR(SUM(AV15:BA15),0) -> 0 | P15: =SUM(N15:O15) -> 0 | AC15: =D15 -> 0 | AD15: =D15 -> 0 | AE15: =AD15*Tabeller!$I$35 -> 0 | AF15: =IF(AD15>0,(AE15-400)/52*47,0) -> 0 | AG15: =AF15*Tabeller!$H$24 -> 0 | AH15: =SUM(AF15:AG15,AI15)*Tabeller!$H$25 -> 0 | AI15: =AE15*Tabeller!$H$26 -> 0 | AJ15: =SUM(AF15:AI15) -> 0 | AK15: =AJ15+(Registrering!$E$27) -> 0 | AL15: =AK15/Tabeller!$H$3 -> 0 | AO15: =((F15*Budsjett!$AJ15))/12 -> 0 | AP15: =((G15*Budsjett!$AJ15)*(Tabeller!J$33))/12 -> 0 | AQ15: =((H15*Budsjett!$AJ15)*(Tabeller!K$33))/12 -> 0 | AR15: =((I15*Budsjett!$AJ15)*(Tabeller!L$33))/12 -> 0 | AS15: =((J15*Budsjett!$AJ15)*(Tabeller!M$33))/12 -> 0 | AT15: =((K15*Budsjett!$AJ15)*(Tabeller!L$33))/12 -> 0 | AV15: =IFERROR(AO15*Budsjett!$G$57,0) -> 0 | AW15: =IFERROR(AP15*Budsjett!$G$57,0) -> 0 | AX15: =IFERROR(AQ15*Budsjett!$G$57,0) -> 0 | AY15: =IFERROR(AR15*Budsjett!$G$57,0) -> 0 | AZ15: =IFERROR(AS15*Budsjett!$G$57,0) -> 0 | BA15: =IFERROR(AT15*Budsjett!$G$57,0) -> 0 | BD15: =IFERROR(AO15*Budsjett!BD$58,0) -> 0 | BE15: =IFERROR(AP15*Budsjett!BE$58,0) -> 0 | BF15: =IFERROR(AQ15*Budsjett!BF$58,0) -> 0 | BG15: =IFERROR(AR15*Budsjett!BG$58,0) -> 0 | BH15: =IFERROR(AS15*Budsjett!BH$58,0) -> 0 | BI15: =IFERROR(AT15*Budsjett!BI$58,0) -> 0 | BL15: =AV15-BD15 -> 0 | BM15: 0 | BN15: 0 | BO15: 0 | BP15: 0 | BQ15: =BA15-BI15 -> 0 | CB15: Prosjektleder/adm.leder | CC15: =IF($C15=$CB$1,AO15,0) -> 0 | CD15: 0 | CE15: 0 | CF15: 0 | CG15: 0 | CH15: 0 | CI15: =SUM(CC15:CH15) -> 0 | CK15: Prosjektleder/adm.leder | CR15: =SUM(CL15:CQ15) -> 0
A16: Prosjektleder/adm.leder | B16: =VLOOKUP(A16,Tabeller!$W$15:$Z$25,4,FALSE) -> Senior scientist | C16: EU | L16: =SUM(F16:K16)/12 -> 0 | M16: =L16*12 -> 0 | N16: =SUM(AO16:AT16) -> 0 | O16: =IFERROR(SUM(AV16:BA16),0) -> 0 | P16: =SUM(N16:O16) -> 0 | AC16: =D16 -> 0 | AD16: =D16 -> 0 | AE16: =AD16*Tabeller!$I$35 -> 0 | AF16: =IF(AD16>0,(AE16-400)/52*47,0) -> 0 | AG16: =AF16*Tabeller!$H$24 -> 0 | AH16: =SUM(AF16:AG16,AI16)*Tabeller!$H$25 -> 0 | AI16: =AE16*Tabeller!$H$26 -> 0 | AJ16: =SUM(AF16:AI16) -> 0 | AK16: =AJ16+(Registrering!$E$27) -> 0 | AL16: =AK16/Tabeller!$H$3 -> 0 | AO16: =((F16*Budsjett!$AJ16))/12 -> 0 | AP16: =((G16*Budsjett!$AJ16)*(Tabeller!J$33))/12 -> 0 | AQ16: =((H16*Budsjett!$AJ16)*(Tabeller!K$33))/12 -> 0 | AR16: =((I16*Budsjett!$AJ16)*(Tabeller!L$33))/12 -> 0 | AS16: =((J16*Budsjett!$AJ16)*(Tabeller!M$33))/12 -> 0 | AT16: =((K16*Budsjett!$AJ16)*(Tabeller!L$33))/12 -> 0 | AV16: =IFERROR(AO16*Budsjett!$G$57,0) -> 0 | AW16: =IFERROR(AP16*Budsjett!$G$57,0) -> 0 | AX16: =IFERROR(AQ16*Budsjett!$G$57,0) -> 0 | AY16: =IFERROR(AR16*Budsjett!$G$57,0) -> 0 | AZ16: =IFERROR(AS16*Budsjett!$G$57,0) -> 0 | BA16: =IFERROR(AT16*Budsjett!$G$57,0) -> 0 | BD16: =IFERROR(AO16*Budsjett!BD$58,0) -> 0 | BE16: =IFERROR(AP16*Budsjett!BE$58,0) -> 0 | BF16: =IFERROR(AQ16*Budsjett!BF$58,0) -> 0 | BG16: =IFERROR(AR16*Budsjett!BG$58,0) -> 0 | BH16: =IFERROR(AS16*Budsjett!BH$58,0) -> 0 | BI16: =IFERROR(AT16*Budsjett!BI$58,0) -> 0 | BL16: 0 | BM16: 0 | BN16: 0 | BO16: 0 | BP16: 0 | BQ16: =BA16-BI16 -> 0 | CB16: Prosjektleder/adm.leder | CC16: 0 | CD16: 0 | CE16: 0 | CF16: 0 | CG16: 0 | CH16: 0 | CI16: 0 | CK16: Prosjektleder/adm.leder | CR16: 0
A17: Prosjektleder/adm.leder | B17: =VLOOKUP(A17,Tabeller!$W$15:$Z$25,4,FALSE) -> Senior scientist | C17: EU | L17: =SUM(F17:K17)/12 -> 0 | M17: 0 | N17: =SUM(AO17:AT17) -> 0 | O17: =IFERROR(SUM(AV17:BA17),0) -> 0 | P17: =SUM(N17:O17) -> 0 | AC17: =D17 -> 0 | AD17: =D17 -> 0 | AE17: =AD17*Tabeller!$I$35 -> 0 | AF17: =IF(AD17>0,(AE17-400)/52*47,0) -> 0 | AG17: =AF17*Tabeller!$H$24 -> 0 | AH17: =SUM(AF17:AG17,AI17)*Tabeller!$H$25 -> 0 | AI17: =AE17*Tabeller!$H$26 -> 0 | AJ17: =SUM(AF17:AI17) -> 0 | AK17: =AJ17+(Registrering!$E$27) -> 0 | AL17: =AK17/Tabeller!$H$3 -> 0 | AO17: =((F17*Budsjett!$AJ17))/12 -> 0 | AP17: =((G17*Budsjett!$AJ17)*(Tabeller!J$33))/12 -> 0 | AQ17: =((H17*Budsjett!$AJ17)*(Tabeller!K$33))/12 -> 0 | AR17: =((I17*Budsjett!$AJ17)*(Tabeller!L$33))/12 -> 0 | AS17: =((J17*Budsjett!$AJ17)*(Tabeller!M$33))/12 -> 0 | AT17: =((K17*Budsjett!$AJ17)*(Tabeller!L$33))/12 -> 0 | AV17: =IFERROR(AO17*Budsjett!$G$57,0) -> 0 | AW17: =IFERROR(AP17*Budsjett!$G$57,0) -> 0 | AX17: =IFERROR(AQ17*Budsjett!$G$57,0) -> 0 | AY17: =IFERROR(AR17*Budsjett!$G$57,0) -> 0 | AZ17: =IFERROR(AS17*Budsjett!$G$57,0) -> 0 | BA17: =IFERROR(AT17*Budsjett!$G$57,0) -> 0 | BD17: =IFERROR(AO17*Budsjett!BD$58,0) -> 0 | BE17: =IFERROR(AP17*Budsjett!BE$58,0) -> 0 | BF17: =IFERROR(AQ17*Budsjett!BF$58,0) -> 0 | BG17: =IFERROR(AR17*Budsjett!BG$58,0) -> 0 | BH17: =IFERROR(AS17*Budsjett!BH$58,0) -> 0 | BI17: =IFERROR(AT17*Budsjett!BI$58,0) -> 0 | BL17: 0 | BM17: 0 | BN17: 0 | BO17: 0 | BP17: 0 | BQ17: =BA17-BI17 -> 0 | CB17: Prosjektleder/adm.leder | CC17: 0 | CD17: 0 | CE17: 0 | CF17: 0 | CG17: 0 | CH17: 0 | CI17: 0 | CK17: Prosjektleder/adm.leder | CR17: 0
A18: Prosjektleder/adm.leder | B18: =VLOOKUP(A18,Tabeller!$W$15:$Z$25,4,FALSE) -> Senior scientist | C18: EU | L18: =SUM(F18:K18)/12 -> 0 | M18: 0 | N18: =SUM(AO18:AT18) -> 0 | O18: =IFERROR(SUM(AV18:BA18),0) -> 0 | P18: =SUM(N18:O18) -> 0 | AC18: =D18 -> 0 | AD18: =D18 -> 0 | AE18: =AD18*Tabeller!$I$35 -> 0 | AF18: =IF(AD18>0,(AE18-400)/52*47,0) -> 0 | AG18: =AF18*Tabeller!$H$24 -> 0 | AH18: =SUM(AF18:AG18,AI18)*Tabeller!$H$25 -> 0 | AI18: =AE18*Tabeller!$H$26 -> 0 | AJ18: =SUM(AF18:AI18) -> 0 | AK18: =AJ18+(Registrering!$E$27) -> 0 | AL18: =AK18/Tabeller!$H$3 -> 0 | AO18: =((F18*Budsjett!$AJ18))/12 -> 0 | AP18: =((G18*Budsjett!$AJ18)*(Tabeller!J$33))/12 -> 0 | AQ18: =((H18*Budsjett!$AJ18)*(Tabeller!K$33))/12 -> 0 | AR18: =((I18*Budsjett!$AJ18)*(Tabeller!L$33))/12 -> 0 | AS18: =((J18*Budsjett!$AJ18)*(Tabeller!M$33))/12 -> 0 | AT18: =((K18*Budsjett!$AJ18)*(Tabeller!L$33))/12 -> 0 | AV18: =IFERROR(AO18*Budsjett!$G$57,0) -> 0 | AW18: =IFERROR(AP18*Budsjett!$G$57,0) -> 0 | AX18: =IFERROR(AQ18*Budsjett!$G$57,0) -> 0 | AY18: =IFERROR(AR18*Budsjett!$G$57,0) -> 0 | AZ18: =IFERROR(AS18*Budsjett!$G$57,0) -> 0 | BA18: =IFERROR(AT18*Budsjett!$G$57,0) -> 0 | BD18: =IFERROR(AO18*Budsjett!BD$58,0) -> 0 | BE18: =IFERROR(AP18*Budsjett!BE$58,0) -> 0 | BF18: =IFERROR(AQ18*Budsjett!BF$58,0) -> 0 | BG18: =IFERROR(AR18*Budsjett!BG$58,0) -> 0 | BH18: =IFERROR(AS18*Budsjett!BH$58,0) -> 0 | BI18: =IFERROR(AT18*Budsjett!BI$58,0) -> 0 | BL18: 0 | BM18: 0 | BN18: 0 | BO18: 0 | BP18: 0 | BQ18: =BA18-BI18 -> 0 | CB18: Prosjektleder/adm.leder | CC18: 0 | CD18: 0 | CE18: 0 | CF18: 0 | CG18: 0 | CH18: 0 | CI18: 0 | CK18: Prosjektleder/adm.leder | CR18: 0
A19: Prosjektleder/adm.leder | B19: =VLOOKUP(A19,Tabeller!$W$15:$Z$25,4,FALSE) -> Senior scientist | C19: EU | L19: =SUM(F19:K19)/12 -> 0 | M19: 0 | N19: =SUM(AO19:AT19) -> 0 | O19: =IFERROR(SUM(AV19:BA19),0) -> 0 | P19: =SUM(N19:O19) -> 0 | AC19: =D19 -> 0 | AD19: =D19 -> 0 | AE19: =AD19*Tabeller!$I$35 -> 0 | AF19: =IF(AD19>0,(AE19-400)/52*47,0) -> 0 | AG19: =AF19*Tabeller!$H$24 -> 0 | AH19: =SUM(AF19:AG19,AI19)*Tabeller!$H$25 -> 0 | AI19: =AE19*Tabeller!$H$26 -> 0 | AJ19: =SUM(AF19:AI19) -> 0 | AK19: =AJ19+(Registrering!$E$27) -> 0 | AL19: =AK19/Tabeller!$H$3 -> 0 | AO19: =((F19*Budsjett!$AJ19))/12 -> 0 | AP19: =((G19*Budsjett!$AJ19)*(Tabeller!J$33))/12 -> 0 | AQ19: =((H19*Budsjett!$AJ19)*(Tabeller!K$33))/12 -> 0 | AR19: =((I19*Budsjett!$AJ19)*(Tabeller!L$33))/12 -> 0 | AS19: =((J19*Budsjett!$AJ19)*(Tabeller!M$33))/12 -> 0 | AT19: =((K19*Budsjett!$AJ19)*(Tabeller!L$33))/12 -> 0 | AV19: =IFERROR(AO19*Budsjett!$G$57,0) -> 0 | AW19: =IFERROR(AP19*Budsjett!$G$57,0) -> 0 | AX19: =IFERROR(AQ19*Budsjett!$G$57,0) -> 0 | AY19: =IFERROR(AR19*Budsjett!$G$57,0) -> 0 | AZ19: =IFERROR(AS19*Budsjett!$G$57,0) -> 0 | BA19: =IFERROR(AT19*Budsjett!$G$57,0) -> 0 | BD19: =IFERROR(AO19*Budsjett!BD$58,0) -> 0 | BE19: =IFERROR(AP19*Budsjett!BE$58,0) -> 0 | BF19: =IFERROR(AQ19*Budsjett!BF$58,0) -> 0 | BG19: =IFERROR(AR19*Budsjett!BG$58,0) -> 0 | BH19: =IFERROR(AS19*Budsjett!BH$58,0) -> 0 | BI19: =IFERROR(AT19*Budsjett!BI$58,0) -> 0 | BL19: 0 | BM19: 0 | BN19: 0 | BO19: 0 | BP19: 0 | BQ19: =BA19-BI19 -> 0 | CB19: Prosjektleder/adm.leder | CC19: 0 | CD19: 0 | CE19: 0 | CF19: 0 | CG19: 0 | CH19: 0 | CI19: 0 | CK19: Prosjektleder/adm.leder | CR19: 0
A20: Sum (månedsverk) | F20: =SUM(F15:F19) -> 0 | G20: 0 | H20: 0 | I20: 0 | J20: 0 | K20: 0 | L20: 0 | M20: =L20*12 -> 0 | N20: 0 | O20: 0 | P20: 0 | AO20: =SUM(AO15:AO19) -> 0 | AP20: 0 | AQ20: 0 | AR20: 0 | AS20: 0 | AT20: 0 | AU20: =SUM(AO20:AT20) -> 0 | AV20: =SUM(AV15:AV19) -> 0 | AW20: 0 | AX20: 0 | AY20: 0 | AZ20: 0 | BA20: 0 | BB20: =SUM(AV20:BA20) -> 0 | BD20: =SUM(BD15:BD19) -> 0 | BE20: 0 | BF20: 0 | BG20: 0 | BH20: 0 | BI20: 0 | BJ20: =SUM(BD20:BI20) -> 0 | BL20: =SUM(BL15:BL19) -> 0 | BM20: 0 | BN20: 0 | BO20: 0 | BP20: 0 | BQ20: 0 | CB20: Sum (månedsverk) | CC20: =SUM(CC15:CC19) -> 0 | CD20: 0 | CE20: 0 | CF20: 0 | CG20: 0 | CH20: 0 | CI20: 0 | CK20: Sum (månedsverk) | CL20: =SUM(CL15:CL19) -> 0 | CM20: 0 | CN20: 0 | CO20: 0 | CP20: 0 | CQ20: 0 | CR20: 0
A21: Eksisterende ansatte - dekkes av UiO (egenandel) | F21: REGISTRER MÅNEDSVERK | CB21: Eksisterende ansatte - dekkes av UiO (egenandel) | CK21: Eksisterende ansatte - dekkes av UiO (egenandel)
A22: Frikjøp | D22: Årslønn | E22: Navn | F22: =F14 -> År 1 | G22: År 2 | H22: År 3 | I22: År 4 | J22: År 5 | K22: År 6 | L22: Sum | N22: Lønn og sos. kostnader | O22: Overhead | P22: Totalt | AC22: Gj.snitt. Ltr | AD22: Bruttolønn | AE22: inkl lønnsv. | AF22: Lønn | AG22: Feriep | AH22: AGA | AI22: Pensjon | AJ22: inkl sos.avg. | AK22: inkl. ind.kost. | AL22: Timesats | AO22: =F22 -> År 1 | AP22: År 2 | AQ22: År 3 | AR22: År 4 | AS22: År 5 | AT22: År 6 | AV22: =AO22 -> År 1 | AW22: År 2 | AX22: År 3 | AY22: År 4 | AZ22: År 5 | BA22: År 6 | BD22: =AV22 -> År 1 | BE22: År 2 | BF22: År 3 | BG22: År 4 | BH22: År 5 | BI22: År 6 | BL22: =F3 -> År 1 | BM22: År 2 | BN22: År 3 | BO22: År 4 | BP22: År 5 | BQ22: År 6 | CB22: Frikjøp | CC22: =CC14 -> År 1 | CD22: År 2 | CE22: År 3 | CF22: År 4 | CG22: År 5 | CH22: År 6 | CI22: Sum årsv | CK22: Frikjøp | CL22: =CL14 -> År 1 | CM22: År 2 | CN22: År 3 | CO22: År 4 | CP22: År 5 | CQ22: År 6 | CR22: Sum årsv
A23: Forsker - 1.aman. | B23: =VLOOKUP(A23,Tabeller!$W$15:$Z$25,4,FALSE) -> Senior scientist | C23: Egenandel | L23: =SUM(F23:K23)/12 -> 0 | M23: =L23*12 -> 0 | N23: =SUM(AO23:AT23) -> 0 | O23: =IFERROR(SUM(AV23:BA23),0) -> 0 | P23: =SUM(N23:O23) -> 0 | AC23: =D23 -> 0 | AD23: =D23 -> 0 | AE23: =AD23*Tabeller!$I$35 -> 0 | AF23: =IF(AD23>0,(AE23-400)/52*47,0) -> 0 | AG23: =AF23*Tabeller!$H$24 -> 0 | AH23: =SUM(AF23:AG23,AI23)*Tabeller!$H$25 -> 0 | AI23: =AE23*Tabeller!$H$26 -> 0 | AJ23: =SUM(AF23:AI23) -> 0 | AK23: =AJ23+(Registrering!$E$27) -> 0 | AL23: =AK23/Tabeller!$H$3 -> 0 | AO23: =((F23*Budsjett!$AJ23))/12 -> 0 | AP23: =((G23*Budsjett!$AJ23)*(Tabeller!J$33))/12 -> 0 | AQ23: =((H23*Budsjett!$AJ23)*(Tabeller!K$33))/12 -> 0 | AR23: =((I23*Budsjett!$AJ23)*(Tabeller!L$33))/12 -> 0 | AS23: =((J23*Budsjett!$AJ23)*(Tabeller!M$33))/12 -> 0 | AT23: =((K23*Budsjett!$AJ23)*(Tabeller!L$33))/12 -> 0 | AV23: =IFERROR(AO23*Budsjett!$G$57,0) -> 0 | AW23: =IFERROR(AP23*Budsjett!$G$57,0) -> 0 | AX23: =IFERROR(AQ23*Budsjett!$G$57,0) -> 0 | AY23: =IFERROR(AR23*Budsjett!$G$57,0) -> 0 | AZ23: =IFERROR(AS23*Budsjett!$G$57,0) -> 0 | BA23: =IFERROR(AT23*Budsjett!$G$57,0) -> 0 | BL23: =AV23 -> 0 | BM23: 0 | BN23: 0 | BO23: 0 | BP23: 0 | BQ23: =BA23 -> 0 | CB23: Forsker - 1.aman. | CI23: =SUM(CC23:CH23) -> 0 | CK23: Forsker - 1.aman. | CL23: =IF($C23=$CK$1,AO23,0) -> 0 | CM23: 0 | CN23: 0 | CO23: 0 | CP23: 0 | CQ23: 0 | CR23: =SUM(CL23:CQ23) -> 0
A24: Forsker - professor | B24: =VLOOKUP(A24,Tabeller!$W$15:$Z$25,4,FALSE) -> Senior scientist | C24: Egenandel | L24: =SUM(F24:K24)/12 -> 0 | M24: =L24*12 -> 0 | N24: =SUM(AO24:AT24) -> 0 | O24: =IFERROR(SUM(AV24:BA24),0) -> 0 | P24: =SUM(N24:O24) -> 0 | AC24: =D24 -> 0 | AD24: =D24 -> 0 | AE24: =AD24*Tabeller!$I$35 -> 0 | AF24: =IF(AD24>0,(AE24-400)/52*47,0) -> 0 | AG24: =AF24*Tabeller!$H$24 -> 0 | AH24: =SUM(AF24:AG24,AI24)*Tabeller!$H$25 -> 0 | AI24: =AE24*Tabeller!$H$26 -> 0 | AJ24: =SUM(AF24:AI24) -> 0 | AK24: =AJ24+(Registrering!$E$27) -> 0 | AL24: =AK24/Tabeller!$H$3 -> 0 | AO24: =((F24*Budsjett!$AJ24))/12 -> 0 | AP24: =((G24*Budsjett!$AJ24)*(Tabeller!J$33))/12 -> 0 | AQ24: =((H24*Budsjett!$AJ24)*(Tabeller!K$33))/12 -> 0 | AR24: =((I24*Budsjett!$AJ24)*(Tabeller!L$33))/12 -> 0 | AS24: =((J24*Budsjett!$AJ24)*(Tabeller!M$33))/12 -> 0 | AT24: =((K24*Budsjett!$AJ24)*(Tabeller!L$33))/12 -> 0 | AV24: =IFERROR(AO24*Budsjett!$G$57,0) -> 0 | AW24: =IFERROR(AP24*Budsjett!$G$57,0) -> 0 | AX24: =IFERROR(AQ24*Budsjett!$G$57,0) -> 0 | AY24: =IFERROR(AR24*Budsjett!$G$57,0) -> 0 | AZ24: =IFERROR(AS24*Budsjett!$G$57,0) -> 0 | BA24: =IFERROR(AT24*Budsjett!$G$57,0) -> 0 | BL24: 0 | BM24: 0 | BN24: 0 | BO24: 0 | BP24: 0 | BQ24: =BA24 -> 0 | CB24: Forsker - professor | CI24: 0 | CK24: Forsker - professor | CL24: 0 | CM24: 0 | CN24: 0 | CO24: 0 | CP24: 0 | CQ24: 0 | CR24: 0
A25: Forsker - professor | B25: =VLOOKUP(A25,Tabeller!$W$15:$Z$25,4,FALSE) -> Senior scientist | C25: Egenandel | L25: =SUM(F25:K25)/12 -> 0 | M25: 0 | N25: =SUM(AO25:AT25) -> 0 | O25: =IFERROR(SUM(AV25:BA25),0) -> 0 | P25: =SUM(N25:O25) -> 0 | AC25: =D25 -> 0 | AD25: =D25 -> 0 | AE25: =AD25*Tabeller!$I$35 -> 0 | AF25: =IF(AD25>0,(AE25-400)/52*47,0) -> 0 | AG25: =AF25*Tabeller!$H$24 -> 0 | AH25: =SUM(AF25:AG25,AI25)*Tabeller!$H$25 -> 0 | AI25: =AE25*Tabeller!$H$26 -> 0 | AJ25: =SUM(AF25:AI25) -> 0 | AK25: =AJ25+(Registrering!$E$27) -> 0 | AL25: =AK25/Tabeller!$H$3 -> 0 | AO25: =((F25*Budsjett!$AJ25))/12 -> 0 | AP25: =((G25*Budsjett!$AJ25)*(Tabeller!J$33))/12 -> 0 | AQ25: =((H25*Budsjett!$AJ25)*(Tabeller!K$33))/12 -> 0 | AR25: =((I25*Budsjett!$AJ25)*(Tabeller!L$33))/12 -> 0 | AS25: =((J25*Budsjett!$AJ25)*(Tabeller!M$33))/12 -> 0 | AT25: =((K25*Budsjett!$AJ25)*(Tabeller!L$33))/12 -> 0 | AV25: =IFERROR(AO25*Budsjett!$G$57,0) -> 0 | AW25: =IFERROR(AP25*Budsjett!$G$57,0) -> 0 | AX25: =IFERROR(AQ25*Budsjett!$G$57,0) -> 0 | AY25: =IFERROR(AR25*Budsjett!$G$57,0) -> 0 | AZ25: =IFERROR(AS25*Budsjett!$G$57,0) -> 0 | BA25: =IFERROR(AT25*Budsjett!$G$57,0) -> 0 | BL25: 0 | BM25: 0 | BN25: 0 | BO25: 0 | BP25: 0 | BQ25: =BA25 -> 0 | CB25: Forsker - professor | CI25: 0 | CK25: Forsker - professor | CL25: 0 | CM25: 0 | CN25: 0 | CO25: 0 | CP25: 0 | CQ25: 0 | CR25: 0
A26: Forsker - professor | B26: =VLOOKUP(A26,Tabeller!$W$15:$Z$25,4,FALSE) -> Senior scientist | C26: Egenandel | L26: =SUM(F26:K26)/12 -> 0 | M26: 0 | N26: =SUM(AO26:AT26) -> 0 | O26: =IFERROR(SUM(AV26:BA26),0) -> 0 | P26: =SUM(N26:O26) -> 0 | AC26: =D26 -> 0 | AD26: =D26 -> 0 | AE26: =AD26*Tabeller!$I$35 -> 0 | AF26: =IF(AD26>0,(AE26-400)/52*47,0) -> 0 | AG26: =AF26*Tabeller!$H$24 -> 0 | AH26: =SUM(AF26:AG26,AI26)*Tabeller!$H$25 -> 0 | AI26: =AE26*Tabeller!$H$26 -> 0 | AJ26: =SUM(AF26:AI26) -> 0 | AK26: =AJ26+(Registrering!$E$27) -> 0 | AL26: =AK26/Tabeller!$H$3 -> 0 | AO26: =((F26*Budsjett!$AJ26))/12 -> 0 | AP26: =((G26*Budsjett!$AJ26)*(Tabeller!J$33))/12 -> 0 | AQ26: =((H26*Budsjett!$AJ26)*(Tabeller!K$33))/12 -> 0 | AR26: =((I26*Budsjett!$AJ26)*(Tabeller!L$33))/12 -> 0 | AS26: =((J26*Budsjett!$AJ26)*(Tabeller!M$33))/12 -> 0 | AT26: =((K26*Budsjett!$AJ26)*(Tabeller!L$33))/12 -> 0 | AV26: =IFERROR(AO26*Budsjett!$G$57,0) -> 0 | AW26: =IFERROR(AP26*Budsjett!$G$57,0) -> 0 | AX26: =IFERROR(AQ26*Budsjett!$G$57,0) -> 0 | AY26: =IFERROR(AR26*Budsjett!$G$57,0) -> 0 | AZ26: =IFERROR(AS26*Budsjett!$G$57,0) -> 0 | BA26: =IFERROR(AT26*Budsjett!$G$57,0) -> 0 | BL26: 0 | BM26: 0 | BN26: 0 | BO26: 0 | BP26: 0 | BQ26: =BA26 -> 0 | CB26: Forsker - professor | CI26: 0 | CK26: Forsker - professor | CL26: 0 | CM26: 0 | CN26: 0 | CO26: 0 | CP26: 0 | CQ26: 0 | CR26: 0
A27: Forsker - professor | B27: =VLOOKUP(A27,Tabeller!$W$15:$Z$25,4,FALSE) -> Senior scientist | C27: Egenandel | L27: =SUM(F27:K27)/12 -> 0 | M27: 0 | N27: =SUM(AO27:AT27) -> 0 | O27: =IFERROR(SUM(AV27:BA27),0) -> 0 | P27: =SUM(N27:O27) -> 0 | AC27: =D27 -> 0 | AD27: =D27 -> 0 | AE27: =AD27*Tabeller!$I$35 -> 0 | AF27: =IF(AD27>0,(AE27-400)/52*47,0) -> 0 | AG27: =AF27*Tabeller!$H$24 -> 0 | AH27: =SUM(AF27:AG27,AI27)*Tabeller!$H$25 -> 0 | AI27: =AE27*Tabeller!$H$26 -> 0 | AJ27: =SUM(AF27:AI27) -> 0 | AK27: =AJ27+(Registrering!$E$27) -> 0 | AL27: =AK27/Tabeller!$H$3 -> 0 | AO27: =((F27*Budsjett!$AJ27))/12 -> 0 | AP27: =((G27*Budsjett!$AJ27)*(Tabeller!J$33))/12 -> 0 | AQ27: =((H27*Budsjett!$AJ27)*(Tabeller!K$33))/12 -> 0 | AR27: =((I27*Budsjett!$AJ27)*(Tabeller!L$33))/12 -> 0 | AS27: =((J27*Budsjett!$AJ27)*(Tabeller!M$33))/12 -> 0 | AT27: =((K27*Budsjett!$AJ27)*(Tabeller!L$33))/12 -> 0 | AV27: =IFERROR(AO27*Budsjett!$G$57,0) -> 0 | AW27: =IFERROR(AP27*Budsjett!$G$57,0) -> 0 | AX27: =IFERROR(AQ27*Budsjett!$G$57,0) -> 0 | AY27: =IFERROR(AR27*Budsjett!$G$57,0) -> 0 | AZ27: =IFERROR(AS27*Budsjett!$G$57,0) -> 0 | BA27: =IFERROR(AT27*Budsjett!$G$57,0) -> 0 | BL27: 0 | BM27: 0 | BN27: 0 | BO27: 0 | BP27: 0 | BQ27: =BA27 -> 0 | CB27: Forsker - professor | CI27: 0 | CK27: Forsker - professor | CL27: 0 | CM27: 0 | CN27: 0 | CO27: 0 | CP27: 0 | CQ27: 0 | CR27: 0
A28: Sum (månedsverk) | F28: =SUM(F23:F27) -> 0 | G28: 0 | H28: 0 | I28: 0 | J28: 0 | K28: 0 | L28: 0 | M28: =L28*12 -> 0 | N28: 0 | O28: 0 | P28: 0 | AO28: =SUM(AO23:AO27) -> 0 | AP28: 0 | AQ28: 0 | AR28: 0 | AS28: 0 | AT28: 0 | AU28: =SUM(AO28:AT28) -> 0 | AV28: =SUM(AV23:AV27) -> 0 | AW28: 0 | AX28: 0 | AY28: 0 | AZ28: 0 | BA28: 0 | BB28: =SUM(AV28:BA28) -> 0 | BD28: =SUM(BD23:BD27) -> 0 | BE28: 0 | BF28: 0 | BG28: 0 | BH28: 0 | BI28: 0 | BL28: =SUM(BL23:BL27) -> 0 | BM28: 0 | BN28: 0 | BO28: 0 | BP28: 0 | BQ28: 0 | CB28: Sum (månedsverk) | CI28: 0 | CK28: Sum (månedsverk) | CL28: =SUM(CL23:CL27) -> 0 | CM28: 0 | CN28: 0 | CO28: 0 | CP28: 0 | CQ28: 0 | CR28: 0
A29: Timelønn - dekkes av prosjektbevilgning | F29: REGISTRER TIMER | CB29: Timelønn - dekkes av prosjektbevilgning | CK29: Timelønn - dekkes av prosjektbevilgning
D30: Årslønn | E30: Navn | F30: =F22 -> År 1 | G30: År 2 | H30: År 3 | I30: År 4 | J30: År 5 | K30: År 6 | L30: Sum | N30: Beløp | O30: Overhead | P30: Totalt | AC30: Gj.snitt. Ltr | AD30: Bruttolønn | AE30: inkl lønnsv. | AF30: Lønn | AG30: Feriep | AH30: AGA | AI30: Pensjon | AJ30: inkl sos.avg. | AK30: inkl. ind.kost. | AL30: Timesats | AO30: =F30 -> År 1 | AP30: År 2 | AQ30: År 3 | AR30: År 4 | AS30: År 5 | AT30: År 6 | AV30: =AO30 -> År 1 | AW30: År 2 | AX30: År 3 | AY30: År 4 | AZ30: År 5 | BA30: År 6 | BD30: =AV30 -> År 1 | BE30: År 2 | BF30: År 3 | BG30: År 4 | BH30: År 5 | BI30: År 6 | BL30: =F3 -> År 1 | BM30: År 2 | BN30: År 3 | BO30: År 4 | BP30: År 5 | BQ30: År 6 | CB30: 0 | CC30: =CC22 -> År 1 | CD30: År 2 | CE30: År 3 | CF30: År 4 | CG30: År 5 | CH30: År 6 | CI30: Sum årsv | CK30: 0 | CL30: =CL22 -> År 1 | CM30: År 2 | CN30: År 3 | CO30: År 4 | CP30: År 5 | CQ30: År 6 | CR30: Sum årsv
A31: Timebasert lønn | B31: Others | C31: EU | L31: =SUM(F31:K31) -> 0 | M31: =SUM(F31:K31) -> 0 | N31: =SUM(AO31:AT31) -> 0 | O31: =IFERROR(SUM(AV31:BA31),0) -> 0 | P31: =SUM(N31:O31) -> 0 | AC31: =D31 -> 0 | AD31: =D31 -> 0 | AE31: =AD31*Tabeller!$I$35 -> 0 | AF31: =IF(AD31>0,(AE31-400)/52*47,0) -> 0 | AG31: =AF31*Tabeller!$H$24 -> 0 | AH31: =SUM(AF31:AG31,AI31)*Tabeller!$H$25 -> 0 | AI31: =AE31*Tabeller!$H$26 -> 0 | AJ31: =SUM(AF31:AI31) -> 0 | AK31: =AJ31+(Registrering!$E$27) -> 0 | AL31: =AJ31/Tabeller!$H$3 -> 0 | AO31: =((F31*Budsjett!$AL31)*(Tabeller!I$35)) -> 0 | AP31: =((G31*Budsjett!$AL31)*(Tabeller!J$33)) -> 0 | AQ31: =((H31*Budsjett!$AL31)*(Tabeller!K$33)) -> 0 | AR31: =((I31*Budsjett!$AL31)*(Tabeller!L$33)) -> 0 | AS31: =((J31*Budsjett!$AL31)*(Tabeller!M$33)) -> 0 | AT31: =((K31*Budsjett!$AL31)*(Tabeller!L$33)) -> 0 | AV31: =IFERROR(AO31*Budsjett!$G$57,0) -> 0 | AW31: =IFERROR(AP31*Budsjett!$G$57,0) -> 0 | AX31: =IFERROR(AQ31*Budsjett!$G$57,0) -> 0 | AY31: =IFERROR(AR31*Budsjett!$G$57,0) -> 0 | AZ31: =IFERROR(AS31*Budsjett!$G$57,0) -> 0 | BA31: =IFERROR(AT31*Budsjett!$G$57,0) -> 0 | BD31: =IFERROR(AO31*Budsjett!BD$58,0) -> 0 | BE31: =IFERROR(AP31*Budsjett!BE$58,0) -> 0 | BF31: =IFERROR(AQ31*Budsjett!BF$58,0) -> 0 | BG31: =IFERROR(AR31*Budsjett!BG$58,0) -> 0 | BH31: =IFERROR(AS31*Budsjett!BH$58,0) -> 0 | BI31: =IFERROR(AT31*Budsjett!BI$58,0) -> 0 | BL31: =AV31-BD31 -> 0 | BM31: 0 | BN31: 0 | BO31: 0 | BP31: 0 | BQ31: =BA31-BI31 -> 0 | CB31: Timebasert lønn | CC31: =IF($C31=$CB$1,AO31,0) -> 0 | CD31: 0 | CE31: 0 | CF31: 0 | CG31: 0 | CH31: 0 | CI31: =SUM(CC31:CH31) -> 0 | CK31: Timebasert lønn | CR31: =SUM(CL31:CQ31) -> 0
A32: Timebasert lønn | B32: Others | C32: EU | L32: =SUM(F32:K32) -> 0 | M32: =SUM(F32:K32) -> 0 | N32: =SUM(AO32:AT32) -> 0 | O32: =IFERROR(SUM(AV32:BA32),0) -> 0 | P32: =SUM(N32:O32) -> 0 | AC32: =D32 -> 0 | AD32: =D32 -> 0 | AE32: =AD32*Tabeller!$I$35 -> 0 | AF32: =IF(AD32>0,(AE32-400)/52*47,0) -> 0 | AG32: =AF32*Tabeller!$H$24 -> 0 | AH32: =SUM(AF32:AG32,AI32)*Tabeller!$H$25 -> 0 | AI32: =AE32*Tabeller!$H$26 -> 0 | AJ32: =SUM(AF32:AI32) -> 0 | AK32: =AJ32+(Registrering!$E$27) -> 0 | AL32: =AJ32/Tabeller!$H$3 -> 0 | AO32: =((F32*Budsjett!$AL32)*(Tabeller!I$35)) -> 0 | AP32: =((G32*Budsjett!$AL32)*(Tabeller!J$33)) -> 0 | AQ32: =((H32*Budsjett!$AL32)*(Tabeller!K$33)) -> 0 | AR32: =((I32*Budsjett!$AL32)*(Tabeller!L$33)) -> 0 | AS32: =((J32*Budsjett!$AL32)*(Tabeller!M$33)) -> 0 | AT32: =((K32*Budsjett!$AL32)*(Tabeller!L$33)) -> 0 | AV32: =IFERROR(AO32*Budsjett!$G$57,0) -> 0 | AW32: =IFERROR(AP32*Budsjett!$G$57,0) -> 0 | AX32: =IFERROR(AQ32*Budsjett!$G$57,0) -> 0 | AY32: =IFERROR(AR32*Budsjett!$G$57,0) -> 0 | AZ32: =IFERROR(AS32*Budsjett!$G$57,0) -> 0 | BA32: =IFERROR(AT32*Budsjett!$G$57,0) -> 0 | BD32: =IFERROR(AO32*Budsjett!BD$58,0) -> 0 | BE32: =IFERROR(AP32*Budsjett!BE$58,0) -> 0 | BF32: =IFERROR(AQ32*Budsjett!BF$58,0) -> 0 | BG32: =IFERROR(AR32*Budsjett!BG$58,0) -> 0 | BH32: =IFERROR(AS32*Budsjett!BH$58,0) -> 0 | BI32: =IFERROR(AT32*Budsjett!BI$58,0) -> 0 | BL32: 0 | BM32: 0 | BN32: 0 | BO32: 0 | BP32: 0 | BQ32: =BA32-BI32 -> 0 | CB32: Timebasert lønn | CC32: 0 | CD32: 0 | CE32: 0 | CF32: 0 | CG32: 0 | CH32: 0 | CI32: =SUM(CC32:CH32) -> 0 | CK32: Timebasert lønn | CR32: =SUM(CL32:CQ32) -> 0
A33: Timebasert lønn | B33: Others | C33: EU | L33: =SUM(F33:K33) -> 0 | M33: =SUM(F33:K33) -> 0 | N33: =SUM(AO33:AT33) -> 0 | O33: =IFERROR(SUM(AV33:BA33),0) -> 0 | P33: =SUM(N33:O33) -> 0 | AC33: =D33 -> 0 | AD33: =D33 -> 0 | AE33: =AD33*Tabeller!$I$35 -> 0 | AF33: =IF(AD33>0,(AE33-400)/52*47,0) -> 0 | AG33: =AF33*Tabeller!$H$24 -> 0 | AH33: =SUM(AF33:AG33,AI33)*Tabeller!$H$25 -> 0 | AI33: =AE33*Tabeller!$H$26 -> 0 | AJ33: =SUM(AF33:AI33) -> 0 | AK33: =AJ33+(Registrering!$E$27) -> 0 | AL33: =AJ33/Tabeller!$H$3 -> 0 | AO33: =((F33*Budsjett!$AL33)*(Tabeller!I$35)) -> 0 | AP33: =((G33*Budsjett!$AL33)*(Tabeller!J$33)) -> 0 | AQ33: =((H33*Budsjett!$AL33)*(Tabeller!K$33)) -> 0 | AR33: =((I33*Budsjett!$AL33)*(Tabeller!L$33)) -> 0 | AS33: =((J33*Budsjett!$AL33)*(Tabeller!M$33)) -> 0 | AT33: =((K33*Budsjett!$AL33)*(Tabeller!L$33)) -> 0 | AV33: =IFERROR(AO33*Budsjett!$G$57,0) -> 0 | AW33: =IFERROR(AP33*Budsjett!$G$57,0) -> 0 | AX33: =IFERROR(AQ33*Budsjett!$G$57,0) -> 0 | AY33: =IFERROR(AR33*Budsjett!$G$57,0) -> 0 | AZ33: =IFERROR(AS33*Budsjett!$G$57,0) -> 0 | BA33: =IFERROR(AT33*Budsjett!$G$57,0) -> 0 | BD33: =IFERROR(AO33*Budsjett!BD$58,0) -> 0 | BE33: =IFERROR(AP33*Budsjett!BE$58,0) -> 0 | BF33: =IFERROR(AQ33*Budsjett!BF$58,0) -> 0 | BG33: =IFERROR(AR33*Budsjett!BG$58,0) -> 0 | BH33: =IFERROR(AS33*Budsjett!BH$58,0) -> 0 | BI33: =IFERROR(AT33*Budsjett!BI$58,0) -> 0 | BL33: 0 | BM33: 0 | BN33: 0 | BO33: 0 | BP33: 0 | BQ33: =BA33-BI33 -> 0 | CB33: Timebasert lønn | CC33: 0 | CD33: 0 | CE33: 0 | CF33: 0 | CG33: 0 | CH33: 0 | CI33: =SUM(CC33:CH33) -> 0 | CK33: Timebasert lønn | CR33: =SUM(CL33:CQ33) -> 0
A34: Sum (timer) | F34: =SUM(F31:F33) -> 0 | G34: 0 | H34: 0 | I34: 0 | J34: 0 | K34: 0 | L34: 0 | M34: =L34 -> 0 | N34: 0 | O34: 0 | P34: 0 | AO34: =SUM(AO31:AO33) -> 0 | AP34: =SUM(AP31:AP33) -> 0 | AQ34: 0 | AR34: 0 | AS34: 0 | AT34: 0 | AU34: =SUM(AO34:AT34) -> 0 | AV34: =SUM(AV31:AV33) -> 0 | AW34: 0 | AX34: 0 | AY34: 0 | AZ34: 0 | BA34: 0 | BB34: =SUM(AV34:BA34) -> 0 | BD34: =SUM(BD31:BD33) -> 0 | BE34: 0 | BF34: 0 | BG34: 0 | BH34: 0 | BI34: 0 | BL34: =SUM(BL31:BL33) -> 0 | BM34: 0 | BN34: 0 | BO34: 0 | BP34: 0 | BQ34: 0 | CB34: Sum (timer) | CC34: =SUM(CC31:CC33) -> 0 | CD34: 0 | CE34: 0 | CF34: 0 | CG34: 0 | CH34: 0 | CI34: 0 | CK34: Sum (timer) | CL34: =SUM(CL31:CL33) -> 0 | CM34: 0 | CN34: 0 | CO34: 0 | CP34: 0 | CQ34: 0 | CR34: 0
A35: Total arbeidsinnsats for prosjektet | F35: =(F12+F28+F20)/12+F34/Tabeller!$H$3 -> 0 | G35: =(G12+G28+G20)/12+G34/Tabeller!$H$3 -> 0 | H35: =(H12+H28+H20)/12+H34/Tabeller!$H$3 -> 0 | I35: =(I12+I28+I20)/12+I34/Tabeller!$H$3 -> 0 | J35: =(J12+J28+J20)/12+J34/Tabeller!$H$3 -> 0 | K35: =(K12+K28+K20)/12+K34/Tabeller!$H$3 -> 0 | L35: =SUM(F35:K35) -> 0 | M35: =L35*12 -> 0 | N35: =N28+N20+N12+N34 -> 0 | O35: =O28+O20+O12+O34 -> 0 | P35: =P28+P20+P12+P34 -> 0 | AO35: =AO28+AO20+AO12+AO34 -> 0 | AP35: =AP28+AP20+AP12+AP34 -> 0 | AQ35: 0 | AR35: 0 | AS35: 0 | AT35: 0 | AU35: =SUM(AO35:AT35) -> 0 | AV35: =AV28+AV20+AV12+AV34 -> 0 | AW35: 0 | AX35: 0 | AY35: 0 | AZ35: 0 | BA35: 0 | BB35: =SUM(AV35:BA35) -> 0 | BD35: =BD28+BD20+BD12+BD34 -> 0 | BE35: 0 | BF35: 0 | BG35: 0 | BH35: 0 | BI35: 0 | BJ35: =SUM(BD35:BI35) -> 0 | BL35: =BL28+BL20+BL12+BL34 -> 0 | BM35: 0 | BN35: 0 | BO35: 0 | BP35: 0 | BQ35: 0 | CB35: Total arbeidsinnsats for prosjektet | CC35: =CC28+CC20+CC12+CC34 -> 0 | CD35: 0 | CE35: 0 | CF35: 0 | CG35: 0 | CH35: 0 | CI35: 0 | CK35: Total arbeidsinnsats for prosjektet | CL35: =CL28+CL20+CL12+CL34 -> 0 | CM35: 0 | CN35: 0 | CO35: 0 | CP35: 0 | CQ35: 0 | CR35: 0
A36: Direkte driftsmidler | F36: REGISTRER DRIFTSKOSTNADER | CB36: Direkte driftsmidler | CK36: Direkte driftsmidler
E37: Kommentarfelt | F37: =F3 -> År 1 | G37: År 2 | H37: År 3 | I37: År 4 | J37: År 5 | K37: År 6 | P37: Totalt | AO37: =F37 -> År 1 | AP37: =G37 -> År 2 | AQ37: =H37 -> År 3 | AR37: =I37 -> År 4 | AS37: =J37 -> År 5 | AT37: =K37 -> År 6 | CB37: 0 | CC37: =CC3 -> År 1 | CD37: År 2 | CE37: År 3 | CF37: År 4 | CG37: År 5 | CH37: År 6 | CI37: Sum årsv | CK37: 0 | CL37: =CL30 -> År 1 | CM37: År 2 | CN37: År 3 | CO37: År 4 | CP37: År 5 | CQ37: År 6 | CR37: Sum årsv
A38: Lab./feltundersøkelser | C38: EU | P38: =SUM(F38:K38) -> 0 | AO38: 0 | AP38: 0 | AQ38: 0 | AR38: 0 | AS38: 0 | AT38: 0 | AU38: =SUM(AO38:AT38) -> 0 | CB38: Lab./feltundersøkelser | CC38: =IF($C38=$CB$1,AO38,0) -> 0 | CD38: 0 | CE38: 0 | CF38: 0 | CG38: 0 | CH38: 0 | CI38: =SUM(CC38:CH38) -> 0 | CK38: Lab./feltundersøkelser | CL38: =IF($C38=$CK$1,AO38,0) -> 0 | CM38: =IF($C38=$CK$1,-AP38,0) -> 0 | CN38: 0 | CO38: 0 | CP38: 0 | CQ38: 0 | CR38: =SUM(CL38:CQ38) -> 0
A39: Reiser | C39: EU | P39: 0 | AG39: =AD4*1.045 -> 0 | AO39: 0 | AP39: 0 | AQ39: 0 | AR39: 0 | AS39: 0 | AT39: 0 | AU39: 0 | CB39: Reiser | CC39: 0 | CD39: 0 | CE39: 0 | CF39: 0 | CG39: 0 | CH39: 0 | CI39: 0 | CK39: Reiser | CL39: 0 | CM39: 0 | CN39: 0 | CO39: 0 | CP39: 0 | CQ39: 0 | CR39: 0
A40: Forbruksmateriell | C40: EU | P40: 0 | AO40: 0 | AP40: 0 | AQ40: 0 | AR40: 0 | AS40: 0 | AT40: 0 | AU40: 0 | CB40: Forbruksmateriell | CC40: 0 | CD40: 0 | CE40: 0 | CF40: 0 | CG40: 0 | CH40: 0 | CI40: 0 | CK40: Forbruksmateriell | CL40: 0 | CM40: 0 | CN40: 0 | CO40: 0 | CP40: 0 | CQ40: 0 | CR40: 0
A41: Leiested - internt finansiert | C41: Egenandel | F41: =IF(Leiested!$B$7="Egenandel",Leiested!E7,0)+IF(Leiested!$B$11="Egenandel",Leiested!E11,0)+IF(Leiested!$B$15="Egenandel",Leiested!E15,0)+IF(Leiested!$B$19="Egenandel",Leiested!E19,0)+IF(Leiested!$B$23="Egenandel",Leiested!E23,0)+IF(Leiested!$B$27="Egenandel",Leiested!E27,0)+IF(Leiested!$B$31="Egenandel",Leiested!E31,0)+IF(Leiested!$B$35="Egenandel",Leiested!E35,0)+IF(Leiested!$B$39="Egenandel",Leiested!E39,0)+IF(Leiested!$B$43="Egenandel",Leiested!E43,0)+IF(Leiested!$B$47="Egenandel",Leiested!E47,0)+IF(Leiested!$B$51="Egenandel",Leiested!E51,0)+IF(Leiested!$B$55="Egenandel",Leiested!E55,0)+IF(Leiested!$B$59="Egenandel",Leiested!E59,0)+IF(Leiested!$B$63="Egenandel",Leiested!E63,0) -> 0 | G41: =IF(Leiested!$B$7="Egenandel",Leiested!F7,0)+IF(Leiested!$B$11="Egenandel",Leiested!F11,0)+IF(Leiested!$B$15="Egenandel",Leiested!F15,0)+IF(Leiested!$B$19="Egenandel",Leiested!F19,0)+IF(Leiested!$B$23="Egenandel",Leiested!F23,0)+IF(Leiested!$B$27="Egenandel",Leiested!F27,0)+IF(Leiested!$B$31="Egenandel",Leiested!F31,0)+IF(Leiested!$B$35="Egenandel",Leiested!F35,0)+IF(Leiested!$B$39="Egenandel",Leiested!F39,0)+IF(Leiested!$B$43="Egenandel",Leiested!F43,0)+IF(Leiested!$B$47="Egenandel",Leiested!F47,0)+IF(Leiested!$B$51="Egenandel",Leiested!F51,0)+IF(Leiested!$B$55="Egenandel",Leiested!F55,0)+IF(Leiested!$B$59="Egenandel",Leiested!F59,0)+IF(Leiested!$B$63="Egenandel",Leiested!F63,0) -> 0 | H41: =IF(Leiested!$B$7="Egenandel",Leiested!G7,0)+IF(Leiested!$B$11="Egenandel",Leiested!G11,0)+IF(Leiested!$B$15="Egenandel",Leiested!G15,0)+IF(Leiested!$B$19="Egenandel",Leiested!G19,0)+IF(Leiested!$B$23="Egenandel",Leiested!G23,0)+IF(Leiested!$B$27="Egenandel",Leiested!G27,0)+IF(Leiested!$B$31="Egenandel",Leiested!G31,0)+IF(Leiested!$B$35="Egenandel",Leiested!G35,0)+IF(Leiested!$B$39="Egenandel",Leiested!G39,0)+IF(Leiested!$B$43="Egenandel",Leiested!G43,0)+IF(Leiested!$B$47="Egenandel",Leiested!G47,0)+IF(Leiested!$B$51="Egenandel",Leiested!G51,0)+IF(Leiested!$B$55="Egenandel",Leiested!G55,0)+IF(Leiested!$B$59="Egenandel",Leiested!G59,0)+IF(Leiested!$B$63="Egenandel",Leiested!G63,0) -> 0 | I41: =IF(Leiested!$B$7="Egenandel",Leiested!H7,0)+IF(Leiested!$B$11="Egenandel",Leiested!H11,0)+IF(Leiested!$B$15="Egenandel",Leiested!H15,0)+IF(Leiested!$B$19="Egenandel",Leiested!H19,0)+IF(Leiested!$B$23="Egenandel",Leiested!H23,0)+IF(Leiested!$B$27="Egenandel",Leiested!H27,0)+IF(Leiested!$B$31="Egenandel",Leiested!H31,0)+IF(Leiested!$B$35="Egenandel",Leiested!H35,0)+IF(Leiested!$B$39="Egenandel",Leiested!H39,0)+IF(Leiested!$B$43="Egenandel",Leiested!H43,0)+IF(Leiested!$B$47="Egenandel",Leiested!H47,0)+IF(Leiested!$B$51="Egenandel",Leiested!H51,0)+IF(Leiested!$B$55="Egenandel",Leiested!H55,0)+IF(Leiested!$B$59="Egenandel",Leiested!H59,0)+IF(Leiested!$B$63="Egenandel",Leiested!H63,0) -> 0 | J41: =IF(Leiested!$B$7="Egenandel",Leiested!I7,0)+IF(Leiested!$B$11="Egenandel",Leiested!I11,0)+IF(Leiested!$B$15="Egenandel",Leiested!I15,0)+IF(Leiested!$B$19="Egenandel",Leiested!I19,0)+IF(Leiested!$B$23="Egenandel",Leiested!I23,0)+IF(Leiested!$B$27="Egenandel",Leiested!I27,0)+IF(Leiested!$B$31="Egenandel",Leiested!I31,0)+IF(Leiested!$B$35="Egenandel",Leiested!I35,0)+IF(Leiested!$B$39="Egenandel",Leiested!I39,0)+IF(Leiested!$B$43="Egenandel",Leiested!I43,0)+IF(Leiested!$B$47="Egenandel",Leiested!I47,0)+IF(Leiested!$B$51="Egenandel",Leiested!I51,0)+IF(Leiested!$B$55="Egenandel",Leiested!I55,0)+IF(Leiested!$B$59="Egenandel",Leiested!I59,0)+IF(Leiested!$B$63="Egenandel",Leiested!I63,0) -> 0 | K41: =IF(Leiested!$B$7="Egenandel",Leiested!J7,0)+IF(Leiested!$B$11="Egenandel",Leiested!J11,0)+IF(Leiested!$B$15="Egenandel",Leiested!J15,0)+IF(Leiested!$B$19="Egenandel",Leiested!J19,0)+IF(Leiested!$B$23="Egenandel",Leiested!J23,0)+IF(Leiested!$B$27="Egenandel",Leiested!J27,0)+IF(Leiested!$B$31="Egenandel",Leiested!J31,0)+IF(Leiested!$B$35="Egenandel",Leiested!J35,0)+IF(Leiested!$B$39="Egenandel",Leiested!J39,0)+IF(Leiested!$B$43="Egenandel",Leiested!J43,0)+IF(Leiested!$B$47="Egenandel",Leiested!J47,0)+IF(Leiested!$B$51="Egenandel",Leiested!J51,0)+IF(Leiested!$B$55="Egenandel",Leiested!J55,0)+IF(Leiested!$B$59="Egenandel",Leiested!J59,0)+IF(Leiested!$B$63="Egenandel",Leiested!J63,0) -> 0 | P41: 0 | AO41: 0 | AP41: 0 | AQ41: 0 | AR41: 0 | AS41: 0 | AT41: 0 | AU41: 0 | CB41: Leiested - internt finansiert | CC41: 0 | CD41: 0 | CE41: 0 | CF41: 0 | CG41: 0 | CH41: 0 | CI41: 0 | CK41: Leiested - internt finansiert | CL41: 0 | CM41: =IF($C41=$CK$1,AP41,0) -> 0 | CN41: =IF($C41=$CK$1,AQ41,0) -> 0 | CO41: =IF($C41=$CK$1,AR41,0) -> 0 | CP41: =IF($C41=$CK$1,AS41,0) -> 0 | CQ41: =IF($C41=$CK$1,AT41,0) -> 0 | CR41: 0
A42: Leiested - eksternt finansiert | C42: EU | F42: =IF(Leiested!$B$7="Egenandel",0,Leiested!E7)+IF(Leiested!$B$11="Egenandel",0,Leiested!E11)+IF(Leiested!$B$15="Egenandel",0,Leiested!E15)+IF(Leiested!$B$19="Egenandel",0,Leiested!E19)+IF(Leiested!$B$23="Egenandel",0,Leiested!E23)+IF(Leiested!$B$27="Egenandel",0,Leiested!E27)+IF(Leiested!$B$31="Egenandel",0,Leiested!E31)+IF(Leiested!$B$35="Egenandel",0,Leiested!E35)+IF(Leiested!$B$39="Egenandel",0,Leiested!E39)+IF(Leiested!$B$43="Egenandel",0,Leiested!E43)+IF(Leiested!$B$47="Egenandel",0,Leiested!E47)+IF(Leiested!$B$51="Egenandel",0,Leiested!E51)+IF(Leiested!$B$55="Egenandel",0,Leiested!E55)+IF(Leiested!$B$59="Egenandel",0,Leiested!E59)+IF(Leiested!$B$63="Egenandel",0,Leiested!E63) -> 0 | G42: =IF(Leiested!$B$7="Egenandel",0,Leiested!F7)+IF(Leiested!$B$11="Egenandel",0,Leiested!F11)+IF(Leiested!$B$15="Egenandel",0,Leiested!F15)+IF(Leiested!$B$19="Egenandel",0,Leiested!F19)+IF(Leiested!$B$23="Egenandel",0,Leiested!F23)+IF(Leiested!$B$27="Egenandel",0,Leiested!F27)+IF(Leiested!$B$31="Egenandel",0,Leiested!F31)+IF(Leiested!$B$35="Egenandel",0,Leiested!F35)+IF(Leiested!$B$39="Egenandel",0,Leiested!F39)+IF(Leiested!$B$43="Egenandel",0,Leiested!F43)+IF(Leiested!$B$47="Egenandel",0,Leiested!F47)+IF(Leiested!$B$51="Egenandel",0,Leiested!F51)+IF(Leiested!$B$55="Egenandel",0,Leiested!F55)+IF(Leiested!$B$59="Egenandel",0,Leiested!F59)+IF(Leiested!$B$63="Egenandel",0,Leiested!F63) -> 0 | H42: =IF(Leiested!$B$7="Egenandel",0,Leiested!G7)+IF(Leiested!$B$11="Egenandel",0,Leiested!G11)+IF(Leiested!$B$15="Egenandel",0,Leiested!G15)+IF(Leiested!$B$19="Egenandel",0,Leiested!G19)+IF(Leiested!$B$23="Egenandel",0,Leiested!G23)+IF(Leiested!$B$27="Egenandel",0,Leiested!G27)+IF(Leiested!$B$31="Egenandel",0,Leiested!G31)+IF(Leiested!$B$35="Egenandel",0,Leiested!G35)+IF(Leiested!$B$39="Egenandel",0,Leiested!G39)+IF(Leiested!$B$43="Egenandel",0,Leiested!G43)+IF(Leiested!$B$47="Egenandel",0,Leiested!G47)+IF(Leiested!$B$51="Egenandel",0,Leiested!G51)+IF(Leiested!$B$55="Egenandel",0,Leiested!G55)+IF(Leiested!$B$59="Egenandel",0,Leiested!G59)+IF(Leiested!$B$63="Egenandel",0,Leiested!G63) -> 0 | I42: =IF(Leiested!$B$7="Egenandel",0,Leiested!H7)+IF(Leiested!$B$11="Egenandel",0,Leiested!H11)+IF(Leiested!$B$15="Egenandel",0,Leiested!H15)+IF(Leiested!$B$19="Egenandel",0,Leiested!H19)+IF(Leiested!$B$23="Egenandel",0,Leiested!H23)+IF(Leiested!$B$27="Egenandel",0,Leiested!H27)+IF(Leiested!$B$31="Egenandel",0,Leiested!H31)+IF(Leiested!$B$35="Egenandel",0,Leiested!H35)+IF(Leiested!$B$39="Egenandel",0,Leiested!H39)+IF(Leiested!$B$43="Egenandel",0,Leiested!H43)+IF(Leiested!$B$47="Egenandel",0,Leiested!H47)+IF(Leiested!$B$51="Egenandel",0,Leiested!H51)+IF(Leiested!$B$55="Egenandel",0,Leiested!H55)+IF(Leiested!$B$59="Egenandel",0,Leiested!H59)+IF(Leiested!$B$63="Egenandel",0,Leiested!H63) -> 0 | J42: =IF(Leiested!$B$7="Egenandel",0,Leiested!I7)+IF(Leiested!$B$11="Egenandel",0,Leiested!I11)+IF(Leiested!$B$15="Egenandel",0,Leiested!I15)+IF(Leiested!$B$19="Egenandel",0,Leiested!I19)+IF(Leiested!$B$23="Egenandel",0,Leiested!I23)+IF(Leiested!$B$27="Egenandel",0,Leiested!I27)+IF(Leiested!$B$31="Egenandel",0,Leiested!I31)+IF(Leiested!$B$35="Egenandel",0,Leiested!I35)+IF(Leiested!$B$39="Egenandel",0,Leiested!I39)+IF(Leiested!$B$43="Egenandel",0,Leiested!I43)+IF(Leiested!$B$47="Egenandel",0,Leiested!I47)+IF(Leiested!$B$51="Egenandel",0,Leiested!I51)+IF(Leiested!$B$55="Egenandel",0,Leiested!I55)+IF(Leiested!$B$59="Egenandel",0,Leiested!I59)+IF(Leiested!$B$63="Egenandel",0,Leiested!I63) -> 0 | K42: =IF(Leiested!$B$7="Egenandel",0,Leiested!J7)+IF(Leiested!$B$11="Egenandel",0,Leiested!J11)+IF(Leiested!$B$15="Egenandel",0,Leiested!J15)+IF(Leiested!$B$19="Egenandel",0,Leiested!J19)+IF(Leiested!$B$23="Egenandel",0,Leiested!J23)+IF(Leiested!$B$27="Egenandel",0,Leiested!J27)+IF(Leiested!$B$31="Egenandel",0,Leiested!J31)+IF(Leiested!$B$35="Egenandel",0,Leiested!J35)+IF(Leiested!$B$39="Egenandel",0,Leiested!J39)+IF(Leiested!$B$43="Egenandel",0,Leiested!J43)+IF(Leiested!$B$47="Egenandel",0,Leiested!J47)+IF(Leiested!$B$51="Egenandel",0,Leiested!J51)+IF(Leiested!$B$55="Egenandel",0,Leiested!J55)+IF(Leiested!$B$59="Egenandel",0,Leiested!J59)+IF(Leiested!$B$63="Egenandel",0,Leiested!J63) -> 0 | P42: 0 | AO42: 0 | AP42: 0 | AQ42: 0 | AR42: 0 | AS42: 0 | AT42: 0 | AU42: 0 | CB42: Leiested - eksternt finansiert | CC42: 0 | CD42: 0 | CE42: 0 | CF42: 0 | CG42: 0 | CH42: 0 | CI42: 0 | CK42: Leiested - eksternt finansiert | CL42: 0 | CM42: =IF($C42=$CK$1,-AP42,0) -> 0 | CN42: 0 | CO42: 0 | CP42: 0 | CQ42: 0 | CR42: 0
A43: Publikasjoner | C43: EU | P43: 0 | AO43: 0 | AP43: 0 | AQ43: 0 | AR43: 0 | AS43: 0 | AT43: 0 | AU43: 0 | CB43: Publikasjoner | CC43: 0 | CD43: 0 | CE43: 0 | CF43: 0 | CG43: 0 | CH43: 0 | CI43: 0 | CK43: Publikasjoner | CL43: 0 | CM43: 0 | CN43: 0 | CO43: 0 | CP43: 0 | CQ43: 0 | CR43: 0
A44: Innkjøp av FoU-tjenester/ Subcontracting | C44: EU | P44: 0 | AO44: 0 | AP44: 0 | AQ44: 0 | AR44: 0 | AS44: 0 | AT44: 0 | AU44: 0 | CB44: Innkjøp av FoU-tjenester/ Subcontracting | CC44: 0 | CD44: 0 | CE44: 0 | CF44: 0 | CG44: 0 | CH44: 0 | CI44: 0 | CK44: Innkjøp av FoU-tjenester/ Subcontracting | CL44: 0 | CM44: 0 | CN44: 0 | CO44: 0 | CP44: 0 | CQ44: 0 | CR44: 0
A45: Viderefordelte midler | B45: Brukes ikke | P45: 0 | AO45: 0 | AP45: 0 | AQ45: 0 | AR45: 0 | AS45: 0 | AT45: 0 | AU45: 0 | CB45: Viderefordelte midler | CC45: 0 | CD45: 0 | CE45: 0 | CF45: 0 | CG45: 0 | CH45: 0 | CI45: 0 | CK45: Viderefordelte midler | CL45: =IF($C45=$CK$1,-AO45,0) -> 0 | CM45: 0 | CN45: 0 | CO45: 0 | CP45: 0 | CQ45: 0 | CR45: 0
A46: Konferanser/seminarer | P46: =SUM(F46:K46) -> 0 | AO46: =F46 -> 0 | AP46: =G46 -> 0 | AQ46: =H46 -> 0 | AR46: =I46 -> 0 | AS46: =J46 -> 0 | AT46: =K46 -> 0 | CC46: =IF($C46=$CB$1,AO46,0) -> 0
A47: Andre formidlingsaktiviteter | P47: 0 | AO47: =F47 -> 0 | AP47: 0 | AQ47: 0 | AR47: 0 | AS47: 0 | AT47: 0 | CC47: =IF($C47=$CB$1,AO47,0) -> 0
A48: Annet | P48: =SUM(F48:K48) -> 0 | AO48: =F48 -> 0 | AP48: 0 | AQ48: 0 | AR48: 0 | AS48: 0 | AT48: 0 | CC48: =IF($C48=$CB$1,AO48,0) -> 0
A49: Investeringer (utstyr) | C49: EU | P49: =SUM(F49:K49) -> 0 | AO49: =F49 -> 0 | AP49: =G49 -> 0 | AQ49: =H49 -> 0 | AR49: =I49 -> 0 | AS49: =J49 -> 0 | AT49: =K49 -> 0 | AU49: 0 | CB49: =A49 -> Investeringer (utstyr) | CC49: =IF($C49=$CB$1,AO49,0) -> 0 | CD49: =IF($C49=$CB$1,AP49,0) -> 0 | CE49: =IF($C49=$CB$1,AQ49,0) -> 0 | CF49: =IF($C49=$CB$1,AR49,0) -> 0 | CG49: =IF($C49=$CB$1,AS49,0) -> 0 | CH49: =IF($C49=$CB$1,AT49,0) -> 0 | CI49: 0 | CK49: =A49 -> Investeringer (utstyr) | CL49: =IF($C49=$CK$1,-AO49,0) -> 0 | CM49: 0 | CN49: 0 | CO49: 0 | CP49: 0 | CQ49: 0 | CR49: 0
A50: Sum | F50: =SUM(F38:F49) -> 0 | G50: 0 | H50: 0 | I50: 0 | J50: 0 | K50: 0 | P50: =SUM(P38:P49) -> 0 | AN50: =(AO12+AO50-AO44)*0.25+AO50+AO12 -> 0 | AO50: =SUM(AO38:AO49) -> 0 | AP50: 0 | AQ50: 0 | AR50: 0 | AS50: 0 | AT50: 0 | AU50: 0 | CB50: =A50 -> Sum | CC50: =SUM(CC38:CC49) -> 0 | CD50: 0 | CE50: 0 | CF50: 0 | CG50: 0 | CH50: 0 | CI50: 0 | CK50: =A50 -> Sum | CL50: =SUM(CL38:CL49) -> 0 | CM50: 0 | CN50: 0 | CO50: 0 | CP50: 0 | CQ50: 0 | CR50: 0
CK51: =A51 -> 0
A52: Eksterne inntekter | E52: =Registrering!C26 -> Fast beløp | F52: =Finansiering!C7 -> 0 | G52: =Finansiering!D7 -> 0 | H52: =Finansiering!E7 -> 0 | I52: =Finansiering!F7 -> 0 | J52: =Finansiering!G7 -> 0 | K52: =Finansiering!H7 -> 0 | L52: =Finansiering!I7 -> 0 | P52: =SUM(F52:K52) -> 0 | AO52: =AO12+AO20+AO50+AV35 -> 0 | AP52: totale kostnader | CB52: =SUM(CB38:CB49)+SUM(#REF!)+SUM(CB31:CB33)+SUM(CB15:CB19)+SUM(CB4:CB11) ->  | CC52: =SUM(CC38:CC49)+SUM(CC31:CC33)+SUM(CC15:CC19)+SUM(CC4:CC11) -> 0 | CD52: 0 | CE52: 0 | CF52: 0 | CG52: 0 | CH52: 0 | CI52: 0 | CK52: =A52 -> Eksterne inntekter | CL52: =SUM(CL38:CL49)+SUM(CL31:CL33)+SUM(CL15:CL19)+SUM(CL4:CL11) -> 0 | CM52: 0 | CN52: 0 | CO52: 0 | CP52: 0 | CQ52: 0 | CR52: 0
A53: Egenandel | E53: =Registrering!C25 -> Kostnadsspesifikk | F53: =BT6 -> 0 | G53: 0 | H53: 0 | I53: =BW6 -> 0 | J53: =BX6 -> 0 | K53: =BY6 -> 0 | L53: =BZ6 -> 0 | P53: =SUM(F53:K53) -> 0 | AO53: =AO12+AO20+AO50-AO41 -> 0 | AP53: direkte kostnader - grunnlag eu -inntekt | CC53: =CC52*1.25 -> 0 | CD53: 0 | CE53: 0 | CF53: 0 | CG53: 0 | CH53: 0
A54: Totale kostnader | F54: =BT4 -> 0 | G54: =BU4 -> 0 | H54: 0 | I54: =BW4 -> 0 | J54: =BX4 -> 0 | K54: =BY4 -> 0 | L54: =BZ4 -> 0 | P54: =SUM(F54:K54) -> 0 | AO54: =AO53*1.25 -> 0 | AP54: Eu-inntekt | CC54: =CC53/Registrering!$C$23 -> 0 | CD54: =CD53/Registrering!$C$23 -> 0 | CE54: =CE53/Registrering!$C$23 -> 0 | CF54: =CF53/Registrering!$C$23 -> 0 | CG54: =CG53/Registrering!$C$23 -> 0 | CH54: =CH53/Registrering!$C$23 -> 0
A55: Resultat | F55: =SUM(F52:F54) -> 0 | G55: 0 | H55: 0 | I55: 0 | J55: =SUM(J52:J54) -> 0 | K55: 0 | L55: =SUM(L52:L54) -> 0 | P55: =SUM(P52:P54) -> 0 | AO55: =AO52-AO54 -> 0
F56: REGISTRER TOTAL OVERHEAD OG EKSTERNT FINANSIERT OVERHEAD
A57: Påslag lik sats overheadkostnader (indirekte kostnader) | F57: Benyttet sats: | G57: =BB58 -> 0 | AU57: Gjennomsnitt for perioden
A58: Eksternt finansiert overhead | F58: Benyttet sats: | G58: =IFERROR(-(P52+N12+N20+P50-P41)/(N12+N20+N34),"") ->  | AU58: Sats TOT OH | AV58: =AV66 ->  | AW58: =AW66 ->  | AX58: =AX66 ->  | BA58: =BA66 ->  | BB58: =IFERROR(AV58*(AV60+AV63)/BB64,0)+IFERROR(AW58*(AW60+AW63)/BB64,0)+IFERROR(AX58*(AX60+AX63)/BB64,0)+IFERROR(BA58*(BA60+BA63)/BB64,0) -> 0 | BD58: =-(F52+(F50-F41)+AO12+AO20+AO34)/(AO12+AO20+AO34) -> 
AU59: Teknisk/adm. bistand | AV59: =SUMIF($A$4:$A$27,$AU$59,F4:F27) -> 0 | AW59: =SUMIF($A$4:$A$27,$AU$59,G4:G27) -> 0 | AX59: =SUMIF($A$4:$A$27,$AU$59,H4:H27) -> 0 | BA59: =SUMIF($A$4:$A$27,$AU$59,K4:K27) -> 0 | BB59: Sats OH pr år
A60: Prosjektets nettobidrag: | F60: Totalt beløp | G60: ='Intern oversikt'!I26 -> 0 | AU60: Teknisk/adm. bistand | AV60: =SUMIF($A$4:$A$27,$AU$60,AO4:AO27) -> 0 | AW60: =SUMIF($A$4:$A$27,$AU$60,AP4:AP27) -> 0 | AX60: =SUMIF($A$4:$A$27,$AU$60,AQ4:AQ27) -> 0 | BA60: =SUMIF($A$4:$A$27,$AU$60,AT4:AT27) -> 0 | BB60: =SUM(AV60:BA60) -> 0
A61: Mer inntekt/kostnad for instituttet | AV61: =IFERROR(((AV59*Tabeller!$J$14)/Budsjett!AV60),0) -> 0 | AW61: =IFERROR(((AW59*Tabeller!$J$14)/Budsjett!AW60),0) -> 0 | AX61: =IFERROR(((AX59*Tabeller!$J$14)/Budsjett!AX60),0) -> 0
A62: Prosjektets reelle nettobidrag | G62: =G60-G61 -> 0 | AU62: Øvrige | AV62: =F35-AV59 -> 0 | AW62: =G35-AW59 -> 0 | AX62: =H35-AX59 -> 0 | BA62: =K35-BA59 -> 0
AU63: øvrig lønn | AV63: =AO35-AV60 -> 0 | AW63: =AP35-AW60 -> 0 | AX63: =AQ35-AX60 -> 0 | BA63: =AT35-BA60 -> 0 | BB63: =SUM(AV63:BA63) -> 0
AU64: OH-sats Vit | AV64: =IFERROR(((Budsjett!AV62*Tabeller!J13)/Budsjett!AV63),"") ->  | AW64: =IFERROR(((Budsjett!AW62*Tabeller!K13)/Budsjett!AW63),"") ->  | AX64: =IFERROR(((Budsjett!AX62*Tabeller!L13)/Budsjett!AX63),"") ->  | BA64: =IFERROR(((Budsjett!BA62*Tabeller!M13)/Budsjett!BA63),"") ->  | BB64: =BB63+BB60 -> 0
AU65: Total OH | AV65: =IFERROR((AV60/(AV60+AV63)*AV61),0)+IFERROR((AV63/(AV60+AV63)*AV64),0) -> 0 | AW65: =IFERROR((AW60/(AW60+AW63)*AW61),0)+IFERROR((AW63/(AW60+AW63)*AW64),0) -> 0 | AX65: =IFERROR((AX60/(AX60+AX63)*AX61),0)+IFERROR((AX63/(AX60+AX63)*AX64),0) -> 0 | BA65: =IFERROR((BA60/(BA60+BA63)*BA61),0)+IFERROR((BA63/(BA60+BA63)*BA64),0) -> 0
A66: ** | AV66: =IF(AV65>0,AV65,"") ->  | AW66: =IF(AW65>0,AW65,"") ->  | AX66: =IF(AX65>0,AX65,"") ->  | BA66: =IF(BA65>0,BA65,"") -> 

Sheet Finansiering
A1: Finansiering:
A2: Prosjekt: | B2: =IF(Registrering!C4="","",Registrering!C4) -> 
A5: Fast eksternt beløp | C5: Legg inntekter inn med minus-fortegn
B6: Navn | C6: =Budsjett!F3 -> År 1 | D6: =Budsjett!G3 -> År 2 | E6: =Budsjett!H3 -> År 3 | F6: =Budsjett!I3 -> År 4 | G6: =Budsjett!J3 -> År 5 | H6: =Budsjett!K3 -> År 6 | I6: Sum | J6: % andel
A7: EU - finansiering | C7: =Budsjett!CC53/Registrering!$C$23 -> 0 | D7: =Budsjett!CD53/Registrering!$C$23 -> 0 | E7: =Budsjett!CE53/Registrering!$C$23 -> 0 | F7: =Budsjett!CF53/Registrering!$C$23 -> 0 | G7: =Budsjett!CG53/Registrering!$C$23 -> 0 | H7: =Budsjett!CH53/Registrering!$C$23 -> 0 | I7: =SUM(C7:H7) -> 0 | J7: =IFERROR(I7/$I$9*100,0) -> 0
A8: Annen finansiering | I8: =SUM(C8:H8) -> 0 | J8: =IFERROR(I8/$I$9*100,0) -> 0
A9: SUM eksternt inntekt | C9: =SUM(C7:C8) -> 0 | D9: =SUM(D7:D8) -> 0 | E9: =SUM(E7:E8) -> 0 | F9: =SUM(F7:F8) -> 0 | G9: 0 | H9: 0 | I9: =SUM(C9:H9) -> 0 | J9: =IFERROR(I9/$I$9*100,0) -> 0

Sheet Leiested
A1: Prosjekttittel: | C1: =IF(Registrering!C4="","",Registrering!C4) -> 
A2: Leiestedskalkyle versjon: | E2: REGISTRER DRIFTSKOSTNADER | I2: Alle beløp angis i hele kroner
B3: Finansiør | D3: Kommentarfelt | E3: =Budsjett!F3 -> År 1 | F3: =Budsjett!G3 -> År 2 | G3: =Budsjett!H3 -> År 3 | H3: =Budsjett!I3 -> År 4 | I3: =Budsjett!J3 -> År 5 | J3: =Budsjett!K3 -> År 6 | O3: Totalt
A4: Leiested 1 | O4: =SUM(E4:N4) -> 0
A5: Antall timer/enheter Leiested | B5: Egenandel
A6: Enhetspris Leiested | B6: Egenandel
A7: Leiestedskostnader | B7: Egenandel | E7: =E5*E6 -> 0 | F7: =F5*F6 -> 0 | G7: 0 | H7: 0 | I7: 0 | J7: 0 | K7: 0 | L7: 0 | M7: 0 | N7: 0 | O7: =SUM(E7:N7) -> 0
A8: Leiested 2
A9: Antall timer/enheter Leiested | B9: EU
A10: Enhetspris Leiested | B10: EU
A11: Leiestedskostnader | B11: EU | E11: =E9*E10 -> 0 | F11: =F9*F10 -> 0 | G11: 0 | H11: 0 | I11: 0 | J11: 0 | K11: 0 | L11: 0 | M11: 0 | N11: 0 | O11: =SUM(E11:N11) -> 0
A12: Leiested 3
A13: Antall timer/enheter Leiested
A14: Enhetspris Leiested
A15: Leiestedskostnader | B15: Egenandel | E15: =E13*E14 -> 0 | F15: =F13*F14 -> 0 | G15: 0 | H15: 0 | I15: 0 | J15: 0 | K15: 0 | L15: 0 | M15: 0 | N15: 0 | O15: =SUM(E15:N15) -> 0
A16: Leiested 4
A17: Antall timer/enheter Leiested
A18: Enhetspris Leiested
A19: Leiestedskostnader | B19: Egenandel | E19: =E17*E18 -> 0 | F19: =F17*F18 -> 0 | G19: 0 | H19: 0 | I19: 0 | J19: 0 | K19: 0 | L19: 0 | M19: 0 | N19: 0 | O19: =SUM(E19:N19) -> 0
A20: Leiested 5
A21: Antall timer/enheter Leiested
A22: Enhetspris Leiested
A23: Leiestedskostnader | B23: Egenandel | E23: =E21*E22 -> 0 | F23: =F21*F22 -> 0 | G23: 0 | H23: 0 | I23: 0 | J23: 0 | K23: 0 | L23: 0 | M23: 0 | N23: 0 | O23: =SUM(E23:N23) -> 0
A24: Leiested 6
A25: Antall timer/enheter Leiested
A26: Enhetspris Leiested
A27: Leiestedskostnader | B27: Egenandel | E27: =E25*E26 -> 0 | F27: =F25*F26 -> 0 | G27: 0 | H27: 0 | I27: 0 | J27: 0 | K27: 0 | L27: 0 | M27: 0 | N27: 0 | O27: =SUM(E27:N27) -> 0
A28: Leiested 7
A29: Antall timer/enheter Leiested
A30: Enhetspris Leiested
A31: Leiestedskostnader | B31: Egenandel | E31: =E29*E30 -> 0 | F31: =F29*F30 -> 0 | G31: 0 | H31: 0 | I31: 0 | J31: 0 | K31: 0 | L31: 0 | M31: 0 | N31: 0 | O31: =SUM(E31:N31) -> 0
A32: Leiested 8
A33: Antall timer/enheter Leiested
A34: Enhetspris Leiested
A35: Leiestedskostnader | B35: Egenandel | E35: =E33*E34 -> 0 | F35: =F33*F34 -> 0 | G35: 0 | H35: 0 | I35: 0 | J35: 0 | K35: 0 | L35: 0 | M35: 0 | N35: 0 | O35: =SUM(E35:N35) -> 0
A36: Leiested 9
A37: Antall timer/enheter Leiested
A38: Enhetspris Leiested
A39: Leiestedskostnader | B39: Egenandel | E39: =E37*E38 -> 0 | F39: =F37*F38 -> 0 | G39: 0 | H39: 0 | I39: 0 | J39: 0 | K39: 0 | L39: 0 | M39: 0 | N39: 0 | O39: =SUM(E39:N39) -> 0
A40: Leiested 10
A41: Antall timer/enheter Leiested
A42: Enhetspris Leiested
A43: Leiestedskostnader | B43: Egenandel | E43: =E41*E42 -> 0 | F43: =F41*F42 -> 0 | G43: 0 | H43: 0 | I43: 0 | J43: 0 | K43: 0 | L43: 0 | M43: 0 | N43: 0 | O43: =SUM(E43:N43) -> 0
A44: Leiested 11
A45: Antall timer/enheter Leiested
A46: Enhetspris Leiested
A47: Leiestedskostnader | B47: Egenandel | E47: =E45*E46 -> 0 | F47: =F45*F46 -> 0 | G47: 0 | H47: 0 | I47: 0 | J47: 0 | K47: 0 | L47: 0 | M47: 0 | N47: 0 | O47: =SUM(E47:N47) -> 0
A48: Leiested 12
A49: Antall timer/enheter Leiested
A50: Enhetspris Leiested
A51: Leiestedskostnader | B51: Egenandel | E51: =E49*E50 -> 0 | F51: =F49*F50 -> 0 | G51: 0 | H51: 0 | I51: 0 | J51: 0 | K51: 0 | L51: 0 | M51: 0 | N51: 0 | O51: =SUM(E51:N51) -> 0
A52: Leiested 13
A53: Antall timer/enheter Leiested
A54: Enhetspris Leiested
A55: Leiestedskostnader | B55: Egenandel | E55: =E53*E54 -> 0 | F55: =F53*F54 -> 0 | G55: 0 | H55: 0 | I55: 0 | J55: 0 | K55: 0 | L55: 0 | M55: 0 | N55: 0 | O55: =SUM(E55:N55) -> 0
A56: Leiested 14
A57: Antall timer/enheter Leiested
A58: Enhetspris Leiested
A59: Leiestedskostnader | B59: Egenandel | E59: =E57*E58 -> 0 | F59: =F57*F58 -> 0 | G59: 0 | H59: 0 | I59: 0 | J59: 0 | K59: 0 | L59: 0 | M59: 0 | N59: 0 | O59: =SUM(E59:N59) -> 0
A60: Leiested 15
A61: Antall timer/enheter Leiested
A62: Enhetspris Leiested
A63: Leiestedskostnader | B63: Egenandel | E63: =E61*E62 -> 0 | F63: =F61*F62 -> 0 | G63: 0 | H63: 0 | I63: 0 | J63: 0 | K63: 0 | L63: 0 | M63: 0 | N63: 0 | O63: =SUM(E63:N63) -> 0

Sheet Tabeller (hidden)
A1: Lønnstrinn | G1: PEDAT | AG1: Grunnlagstabell for registrering av prosjektkategori
A2: Tabell mai 2022 | C2: C-tabellen | D2: 37,5 t.
A3: LTR | B3: Brutto | G3: Arbeidstimer pr. år | H3: 1720 | I3: Produktive timer
A4: Ltr. | B4: Årslønn | C4: Ltr. | D4: Timelønn
A5: 1 | B5: 0 | C5: 1 | D5: 0 | H5: Vit.ansatt | I5: Adm. Ansatt | J5: =Budsjett!F3 -> År 1 | K5: =Budsjett!G3 -> År 2 | L5: =Budsjett!H3 -> År 3 | M5: =Budsjett!I3 -> År 4 | N5: =Budsjett!J3 -> År 5 | O5: =Budsjett!K3 -> År 6 | W5: Satsene gjelder PR. ÅRSVERK
A6: 2 | B6: 0 | C6: 2 | D6: 0 | G6: Prosjekter som foregår i UiOs lokaler | H6: 465000 | I6: 142000 | W6: Mange typiske HumSam-miljøer | AG6: Bevilgning
A7: 3 | B7: 0 | C7: 3 | D7: 0 | G7: Prosjekter som ikke foregår i UiOs lokaler | H7: 465000 | I7: 142000 | W7: Innenfor både HumSam og MedNat | AH7: 660000 - 669998 EU forskning/ rammeprogrammer Horizon 2020
A8: 4 | B8: 0 | C8: 4 | D8: 0 | G8: Vitenskapelig ansatt UiO lokale | J8: 465000 | K8: 522682.0992 | L8: 550443.0522 | M8: 579678.4588 | N8: 610466.631 | O8: 642890.0399 | P8: 677035.5372 | Q8: 712994.5871 | R8: 750863.5121 | S8: 790743.7504 | W8: Innenfor både HumSam og MedNat
A9: 5 | B9: 0 | C9: 5 | D9: 0 | G9: Teknisk/adm. Ansatt i Uio lokale | J9: 142000 | K9: 159614.7486 | L9: 168092.2869 | M9: 177020.0885 | N9: 186422.068 | O9: 196323.41 | P9: 206750.6372 | Q9: 217731.6804 | R9: 229295.9542 | S9: 241474.4356 | W9: Tradisjonelle eksperimentelle miljøer innenfor MedNat
A10: 6 | B10: 0 | C10: 6 | D10: 0 | G10: Vitenskapelig ansatt ikke i UiO lokale | J10: 465000 | K10: 522682.0992 | L10: 550443.0522 | M10: 579678.4588 | N10: 610466.631 | O10: 642890.0399 | P10: 677035.5372 | Q10: 712994.5871 | R10: 750863.5121 | S10: 790743.7504 | W10: For eksempel basalmedisin
A11: 7 | B11: 0 | C11: 7 | D11: 0 | G11: Teknisk/adm. Ansatt ikke i Uio lokale | J11: 142000 | K11: 159614.7486 | L11: 168092.2869 | M11: 177020.0885 | N11: 186422.068 | O11: 196323.41 | P11: 206750.6372 | Q11: 217731.6804 | R11: 229295.9542 | S11: 241474.4356 | W11: Eksempelvis prosjekter som fysisk foregår i sykehusenes lokaler
A12: 8 | B12: 0 | C12: 8 | D12: 0
A13: 9 | B13: 0 | C13: 9 | D13: 0 | G13: Valgt TDI | I13: Vit.ansatte | J13: =IF(Registrering!$C$27="",0,IF(Registrering!$C$27=Tabeller!$G$6,Tabeller!J8,Tabeller!J10)) -> 0 | K13: =IF(Registrering!$C$27="",0,IF(Registrering!$C$27=Tabeller!$G$6,Tabeller!K8,Tabeller!K10)) -> 0 | L13: =IF(Registrering!$C$27="",0,IF(Registrering!$C$27=Tabeller!$G$6,Tabeller!L8,Tabeller!L10)) -> 0 | M13: =IF(Registrering!$C$27="",0,IF(Registrering!$C$27=Tabeller!$G$6,Tabeller!M8,Tabeller!M10)) -> 0 | N13: =IF(Registrering!$C$27="",0,IF(Registrering!$C$27=Tabeller!$G$6,Tabeller!N8,Tabeller!N10)) -> 0 | O13: =IF(Registrering!$C$27="",0,IF(Registrering!$C$27=Tabeller!$G$6,Tabeller!O8,Tabeller!O10)) -> 0 | P13: =IF(Registrering!$C$27="",0,IF(Registrering!$C$27=Tabeller!$G$6,Tabeller!P8,Tabeller!P10)) -> 0 | Q13: =IF(Registrering!$C$27="",0,IF(Registrering!$C$27=Tabeller!$G$6,Tabeller!Q8,Tabeller!Q10)) -> 0 | R13: =IF(Registrering!$C$27="",0,IF(Registrering!$C$27=Tabeller!$G$6,Tabeller!R8,Tabeller!R10)) -> 0 | S13: =IF(Registrering!$C$27="",0,IF(Registrering!$C$27=Tabeller!$G$6,Tabeller!S8,Tabeller!S10)) -> 0
A14: 10 | B14: 0 | C14: 10 | D14: 0 | I14: Adm/teknisk | J14: =IF(Registrering!$C$27="",0,IF(Registrering!$C$27=Tabeller!$G$6,Tabeller!J9,Tabeller!J11)) -> 0 | K14: =IF(Registrering!$C$27="",0,IF(Registrering!$C$27=Tabeller!$G$6,Tabeller!K9,Tabeller!K11)) -> 0 | L14: =IF(Registrering!$C$27="",0,IF(Registrering!$C$27=Tabeller!$G$6,Tabeller!L9,Tabeller!L11)) -> 0 | M14: =IF(Registrering!$C$27="",0,IF(Registrering!$C$27=Tabeller!$G$6,Tabeller!M9,Tabeller!M11)) -> 0 | N14: =IF(Registrering!$C$27="",0,IF(Registrering!$C$27=Tabeller!$G$6,Tabeller!N9,Tabeller!N11)) -> 0 | O14: =IF(Registrering!$C$27="",0,IF(Registrering!$C$27=Tabeller!$G$6,Tabeller!O9,Tabeller!O11)) -> 0 | P14: =IF(Registrering!$C$27="",0,IF(Registrering!$C$27=Tabeller!$G$6,Tabeller!P9,Tabeller!P11)) -> 0 | Q14: =IF(Registrering!$C$27="",0,IF(Registrering!$C$27=Tabeller!$G$6,Tabeller!Q9,Tabeller!Q11)) -> 0 | R14: =IF(Registrering!$C$27="",0,IF(Registrering!$C$27=Tabeller!$G$6,Tabeller!R9,Tabeller!R11)) -> 0 | S14: =IF(Registrering!$C$27="",0,IF(Registrering!$C$27=Tabeller!$G$6,Tabeller!S9,Tabeller!S11)) -> 0
A15: 11 | B15: 0 | C15: 11 | D15: 0 | W15: Stillingskategorier | Z15: Stillingskategorier EU
A16: 12 | B16: 0 | C16: 12 | D16: 0 | G16: Lønnsberegninger | W16: Prosjektleder/adm.leder | Z16: Senior scientist
A17: 13 | B17: 0 | C17: 13 | D17: 0 | W17: Forsker - professor | Z17: Senior scientist
A18: 14 | B18: 0 | C18: 14 | D18: 0 | L18: Fra Buddy | W18: Forsker - 1.aman. | Z18: Senior scientist
A19: 15 | B19: 0 | C19: 15 | D19: 0 | L19: Fra første budsjettår | M19: Inneværende år | W19: Forsker (rundsum) | Z19: Senior scientist
A20: 16 | B20: 0 | C20: 16 | D20: 0 | G20: ansatte under 60 år | H20: Ltr | I20: ART | J20: Multiplikator | K20: TOTALT | L20: Multiplikator | W20: Gjesteforsker | Z20: Senior scientist
A21: 17 | B21: 0 | C21: 17 | D21: 0 | G21: NN | H21: 45 | K21: 409100 | W21: Postdoktor / Forsker | Z21: Junior scientist
A22: 18 | B22: 0 | C22: 18 | D22: 0 | W22: Stipendiat | Z22: Junior scientist
A23: 19 | B23: 319800 | C23: 19 | D23: =MROUND((B23-400)/1950,0.1) -> 163.8 | G23: Fast lønn | H23: 0 | I23: faktor | J23: 0 | K23: 369401.9231 | L23: 0.9029624128 | M23: 0.8989667751 | W23: Administrativ stilling | Z23: ADMINISTRATIVE PERSONNEL
A24: 20 | B24: 323300 | C24: 20 | D24: =MROUND((B24-400)/1950,0.1) -> 165.6 | G24: Feriepenge avsetning | H24: 0.12 | I24: 0.88 | J24: 0.12 | K24: 44328.23077 | L24: 0.1083554895 | M24: 0.107876013 | W24: Tekniker | Z24: Technical personnel
A25: 21 | B25: 327300 | C25: 21 | D25: 167.6 | G25: Pensjon | H25: 0.09 | I25: 0.8539574468 | J25: 0.1460425532 | K25: 53948.4 | L25: 0.1318709362 | M25: 0.1228660474 | W25: Andre | Z25: Others
A26: 22 | B26: 330900 | C26: 22 | D26: 169.5 | G26: AGA ( av Lønn/ Fp og Pensjon ) | H26: 0.141 | I26: 0.821488 | J26: 0.178512 | K26: 65942.67609 | L26: 0.1611896262 | M26: 0.1592889458
A27: 23 | B27: 334800 | C27: 23 | D27: 171.5 | I27: Sum | J27: 0.4445545532 | K27: 533621.2299
A28: 24 | B28: 338800 | C28: 24 | D28: 173.5
A29: 25 | B29: 343000 | C29: 25 | D29: 175.7
A30: 26 | B30: 347300 | C30: 26 | D30: 177.9 | H30: Antatt lønnsjustering: | I30: 2024 | J30: 0.049 | K30: 2025 | L30: 0.035 | M30: 2026 og frem | N30: 0.035 | O30: 2015-2018 | P30: 0
A31: 27 | B31: 351300 | C31: 27 | D31: 179.9
A32: 28 | B32: 355300 | C32: 28 | D32: 182 | I32: =J5 -> År 1 | J32: =K5 -> År 2 | K32: År 3 | L32: År 4 | M32: År 5 | N32: År 6 | O32: 0 | P32: 0 | Q32: 0 | R32: 0 | V32: Stillingskategori | W32: Stillingskategori | X32: Sum lønn | Y32: Sum årsverk | Z32: Beregnet rundsum | AA32: I euro | AB32: I euro per måned | AC32: Sum månedsverk
A33: 29 | B33: 359100 | C33: 29 | D33: 183.9 | G33: Lønnsjustering | I33: =(I34*(1+(Registrering!$E$29/2))) -> 1.0673575 | J33: =IF(Registrering!$C29="Ja",I33*$J34,I33) -> 1.124047525 | K33: =IF(Registrering!$C29="Ja",J33*$J34,J33) -> 1.183748499 | L33: =IF(Registrering!$C29="Ja",K33*$J34,K33) -> 1.246620342 | M33: =IF(Registrering!$C29="Ja",L33*$J34,L33) -> 1.312831464 | N33: =IF(Registrering!$C29="Ja",M33*$J34,M33) -> 1.382559226 | O33: =IF(Registrering!$C29="Ja",N33*$J34,N33) -> 1.455990402 | P33: =IF(Registrering!$C29="Ja",O33*$J34,O33) -> 1.533321693 | Q33: =IF(Registrering!$C29="Ja",P33*$J34,P33) -> 1.614760241 | R33: =IF(Registrering!$C29="Ja",Q33*$J34,Q33) -> 1.700524194 | V33: Senior scientist | W33: SENIOR SCIENTISTS (or equivalent in the private sector) | X33: =SUMIF(Budsjett!B$4:B$19,"Senior scientist",Budsjett!N$4:N$19) -> 0 | Y33: =SUMIF(Budsjett!B$4:B$19,"Senior scientist",Budsjett!L$4:L$19) -> 0 | Z33: =X33/Y33 ->  | AA33: =Z33/Registrering!C$23 ->  | AB33: =AA33/12 ->  | AC33: =Y33*12 -> 0
A34: 30 | B34: 363100 | C34: 30 | D34: 186 | I34: =(Registrering!D29+1) -> 1.049 | J34: =(Registrering!E29+1)*(1+(Registrering!$E$29/2)) -> 1.0531125 | V34: Junior scientist | W34: JUNIOR SCIENTISTS (or equivalent in the private sector) | X34: =SUMIF(Budsjett!B$4:B$19,"Junior scientist",Budsjett!N$4:N$19) -> 0 | Y34: =SUMIF(Budsjett!B$4:B$19,"Junior scientist",Budsjett!L$4:L$19) -> 0 | Z34: =X34/Y34 ->  | AA34: =Z34/Registrering!C$23 ->  | AB34: =AA34/12 ->  | AC34: =Y34*12 -> 0
A35: 31 | B35: 366700 | C35: 31 | D35: 187.8 | I35: 1 | V35: Technical personnel | W35: TECHNICAL PERSONNEL (or equivalent in the private sector) | X35: =SUMIF(Budsjett!B$4:B$19,"Technical personnel",Budsjett!N$4:N$19) -> 0 | Y35: =SUMIF(Budsjett!B$4:B$19,"Technical personnel",Budsjett!L$4:L$19) -> 0 | AA35: =Z35/Registrering!C$23 ->  | AC35: 0
A36: 32 | B36: 370900 | C36: 32 | D36: 190 | V36: ADMINISTRATIVE PERSONNEL | W36: ADMINISTRATIVE PERSONNEL (or equivalent in the private sector) | X36: =SUMIF(Budsjett!B$4:B$19,"ADMINISTRATIVE PERSONNEL ",Budsjett!N$4:N$19) -> 0 | Y36: =SUMIF(Budsjett!B$4:B$19,"ADMINISTRATIVE PERSONNEL ",Budsjett!L$4:L$19) -> 0 | AA36: =Z36/Registrering!C$23 ->  | AC36: 0
A37: 33 | B37: 374800 | C37: 33 | D37: 192 | V37: Others | W37: OTHERS | X37: =Budsjett!N34 -> 0 | Y37: =Budsjett!L34/H3 -> 0 | AA37: =Z37/Registrering!C$23 ->  | AC37: 0
A38: 34 | B38: 379000 | C38: 34 | D38: 194.2
A39: 35 | B39: 383200 | C39: 35 | D39: 196.3
A40: 36 | B40: 387500 | C40: 36 | D40: 198.5
A41: 37 | B41: 392300 | C41: 37 | D41: 201
A42: 38 | B42: 397100 | C42: 38 | D42: 203.4 | G42: Egenandel | H42: Egenandel
A43: 39 | B43: 401800 | C43: 39 | D43: 205.8 | G43: NFR | H43: EU
A44: 40 | B44: 406900 | C44: 40 | D44: 208.5 | G44: Private
A45: 41 | B45: 412000 | C45: 41 | D45: 211.1 | G45: Internasjonale
A46: 42 | B46: 417900 | C46: 42 | D46: 214.1 | G46: Offentlige
A47: 43 | B47: 423500 | C47: 43 | D47: 217 | G47: EU
A48: 44 | B48: 429600 | C48: 44 | D48: 220.1
A49: 45 | B49: 435600 | C49: 45 | D49: 223.2
A50: 46 | B50: 441900 | C50: 46 | D50: 226.4
A51: 47 | B51: 449900 | C51: 47 | D51: 230.5
A52: 48 | B52: 456800 | C52: 48 | D52: 234.1
A53: 49 | B53: 464200 | C53: 49 | D53: 237.8
A54: 50 | B54: 471300 | C54: 50 | D54: 241.5
A55: 51 | B55: 478300 | C55: 51 | D55: 245.1
A56: 52 | B56: 485800 | C56: 52 | D56: 248.9
A57: 53 | B57: 493700 | C57: 53 | D57: 253
A58: 54 | B58: 501200 | C58: 54 | D58: 256.8
A59: 55 | B59: 509500 | C59: 55 | D59: 261.1
A60: 56 | B60: 517600 | C60: 56 | D60: 265.2
A61: 57 | B61: 526100 | C61: 57 | D61: 269.6
A62: 58 | B62: 534900 | C62: 58 | D62: 274.1
A63: 59 | B63: 544400 | C63: 59 | D63: 279
A64: 60 | B64: 553500 | C64: 60 | D64: 283.6
A65: 61 | B65: 563500 | C65: 61 | D65: 288.8
A66: 62 | B66: 573900 | C66: 62 | D66: 294.1
A67: 63 | B67: 584700 | C67: 63 | D67: 299.6
A68: 64 | B68: 593500 | C68: 64 | D68: 304.2
A69: 65 | B69: 604400 | C69: 65 | D69: 309.7
A70: 66 | B70: 615000 | C70: 66 | D70: 315.2
A71: 67 | B71: 626300 | C71: 67 | D71: 321
A72: 68 | B72: 636700 | C72: 68 | D72: 326.3
A73: 69 | B73: 648700 | C73: 69 | D73: 332.5
A74: 70 | B74: 661400 | C74: 70 | D74: 339
A75: 71 | B75: 677000 | C75: 71 | D75: 347
A76: 72 | B76: 689100 | C76: 72 | D76: 353.2
A77: 73 | B77: 701300 | C77: 73 | D77: 359.4
A78: 74 | B78: 714000 | C78: 74 | D78: 365.9
A79: 75 | B79: 728100 | C79: 75 | D79: 373.2
A80: 76 | B80: 746900 | C80: 76 | D80: 382.8
A81: 77 | B81: 765600 | C81: 77 | D81: 392.4
A82: 78 | B82: 790100 | C82: 78 | D82: 405
A83: 79 | B83: 814900 | C83: 79 | D83: 417.7
A84: 80 | B84: 839900 | C84: 80 | D84: 430.5
A85: 81 | B85: 864500 | C85: 81 | D85: 443.1
A86: 82 | B86: 888200 | C86: 82 | D86: 455.3
A87: 83 | B87: 911700 | C87: 83 | D87: 467.3
A88: 84 | B88: 935300 | C88: 84 | D88: =MROUND((B88-400)/1950,0.1) -> 479.4
A89: 85 | B89: 965000 | C89: 85 | D89: 494.7
A90: 86 | B90: 994200 | C90: 86 | D90: 509.6
A91: 87 | B91: 1024200 | C91: 87 | D91: 525
A92: 88 | B92: 1047600 | C92: 88 | D92: 537
A93: 89 | B93: 1071200 | C93: 89 | D93: 549.1
A94: 90 | B94: 1094800 | C94: 90 | D94: 561.2
A95: 91 | B95: 1118700 | C95: 91 | D95: 573.5
A96: 92 | B96: 1142100 | C96: 92 | D96: 585.5
A97: 93 | B97: 1165800 | C97: 93 | D97: 597.6
A98: 94 | B98: 1189400 | C98: 94 | D98: 609.7
A99: 95 | B99: 1213200 | C99: 95 | D99: 621.9
A100: 96 | B100: 1236300 | C100: 96 | D100: 633.8
A101: 97 | B101: 1259500 | C101: 97 | D101: 645.7
A102: 98 | B102: 1282600 | C102: 98 | D102: 657.5
A103: 99 | B103: 1304800 | C103: 99 | D103: 668.9
A104: 100 | B104: 1326900 | C104: 100 | D104: 680.3
A105: 101 | B105: 1349100 | C105: 101 | D105: 691.6
A106: 102 | B106: 0

Sheet Intern oversikt
B1: Grunnlag for UiO sine interne styring (totalregnskapsføring)
B3: Prosjekttittel: | C3: =IF(Registrering!$C$4="","",Registrering!$C$4) ->  | I3: Startdato: | J3: =IF(Registrering!$C$18="","na",Registrering!$C$18) -> na | L3: Dato:
B4: Prosjektnr: | C4: =IF(Registrering!C8="","na",Registrering!C8) -> na | I4: Sluttdato: | J4: =IF(Registrering!$C$19="","na",Registrering!$C$19) -> na | L4: =IF(Registrering!C16="","",Registrering!C16) -> 
B5: Saksnummer ePhorte: | C5: =IF(Registrering!$C$9="","na",Registrering!$C$9) -> na | I5: Prosjekttype (overheadkostnader): | J5: =Registrering!C27 -> 0
B6: Prosjektkategorisering: | C6: =Registrering!C24 -> 0 | H6: Finansieringstype: | J6: =Registrering!C26 -> Fast beløp | K6: =Registrering!C25 -> Kostnadsspesifikk
B9: Intern rapport - søknadsbudsjett | C9: =Budsjett!F3 -> År 1 | D9: =Budsjett!G3 -> År 2 | E9: =Budsjett!H3 -> År 3 | F9: =Budsjett!I3 -> År 4 | G9: =Budsjett!J3 -> År 5 | H9: =Budsjett!K3 -> År 6 | I9: Levetids-prognose
B10: Eksterne inntekter | C10: =Budsjett!F52 -> 0 | D10: =Budsjett!G52 -> 0 | E10: =Budsjett!H52 -> 0 | F10: =Budsjett!I52 -> 0 | G10: =Budsjett!J52 -> 0 | H10: =Budsjett!K52 -> 0 | I10: =SUM(C10:H10) -> 0
B11: Viderefordelte inntekter | C11: =Budsjett!F45 -> 0 | D11: =Budsjett!G45 -> 0 | E11: =Budsjett!H45 -> 0 | F11: =Budsjett!I45 -> 0 | G11: =Budsjett!J45 -> 0 | H11: =Budsjett!K45 -> 0 | I11: =SUM(C11:H11) -> 0
B12: Egenandel | C12: =Budsjett!F53 -> 0 | D12: =Budsjett!G53 -> 0 | E12: =Budsjett!H53 -> 0 | F12: =Budsjett!I53 -> 0 | G12: =Budsjett!J53 -> 0 | H12: =Budsjett!K53 -> 0 | I12: 0
B13: Totale inntekter | C13: =SUM(C10:C12) -> 0 | D13: =SUM(D10:D12) -> 0 | E13: =SUM(E10:E12) -> 0 | F13: =SUM(F10:F12) -> 0 | G13: 0 | H13: =SUM(H10:H12) -> 0 | I13: 0
B14: Personalkostnader | C14: =Budsjett!AO12+Budsjett!AO34 -> 0 | D14: =Budsjett!AP12+Budsjett!AP34 -> 0 | E14: =Budsjett!AQ12+Budsjett!AQ34 -> 0 | F14: =Budsjett!AR12+Budsjett!AR34 -> 0 | G14: =Budsjett!AS12+Budsjett!AS34 -> 0 | H14: =Budsjett!AT12+Budsjett!AT34 -> 0 | I14: 0
B15: Kostnad eksternt fin frikjøp | C15: =Budsjett!AO20 -> 0 | D15: =Budsjett!AP20 -> 0 | E15: =Budsjett!AQ20 -> 0 | F15: =Budsjett!AR20 -> 0 | G15: =Budsjett!AS20 -> 0 | H15: =Budsjett!AT20 -> 0 | I15: 0
B16: Kostnad internt fin frikjøp | C16: =Budsjett!AO28 -> 0 | D16: =Budsjett!AP28 -> 0 | E16: =Budsjett!AQ28 -> 0 | F16: =Budsjett!AR28 -> 0 | G16: =Budsjett!AS28 -> 0 | H16: =Budsjett!AT28 -> 0 | I16: 0
B17: Eksternt fin overheadkostnader | C17: =Budsjett!BD35 -> 0 | D17: =Budsjett!BE35 -> 0 | E17: =Budsjett!BF35 -> 0 | F17: =Budsjett!BG35 -> 0 | G17: =Budsjett!BH35 -> 0 | H17: =Budsjett!BI35 -> 0 | I17: 0
B18: Internt fin overheadkostnader | C18: =Budsjett!BL35 -> 0 | D18: =Budsjett!BM35 -> 0 | E18: =Budsjett!BN35 -> 0 | F18: =Budsjett!BO35 -> 0 | G18: =Budsjett!BP35 -> 0 | H18: =Budsjett!BQ35 -> 0 | I18: 0
B19: Investeringer | C19: =Budsjett!F49 -> 0 | D19: =Budsjett!G49 -> 0 | E19: =Budsjett!H49 -> 0 | F19: =Budsjett!I49 -> 0 | G19: =Budsjett!J49 -> 0 | H19: =Budsjett!K49 -> 0 | I19: 0
B20: Eksternt fin leiestedskostnader | C20: =Budsjett!F42 -> 0 | D20: =Budsjett!G42 -> 0 | E20: =Budsjett!H42 -> 0 | F20: =Budsjett!I42 -> 0 | G20: =Budsjett!J42 -> 0 | H20: =Budsjett!K42 -> 0 | I20: 0
B21: Internt fin. leiestedskostnader | C21: =Budsjett!F41 -> 0 | D21: =Budsjett!G41 -> 0 | E21: =Budsjett!H41 -> 0 | F21: =Budsjett!I41 -> 0 | G21: =Budsjett!J41 -> 0 | H21: =Budsjett!K41 -> 0 | I21: 0
B22: Direkte driftskostnader | C22: =Budsjett!F38+Budsjett!F39+Budsjett!F40+Budsjett!F44+Budsjett!F43+Budsjett!F46+Budsjett!F47+Budsjett!F48 -> 0 | D22: =Budsjett!G38+Budsjett!G39+Budsjett!G40+Budsjett!G44+Budsjett!G43+Budsjett!G46+Budsjett!G47+Budsjett!G48 -> 0 | E22: =Budsjett!H38+Budsjett!H39+Budsjett!H40+Budsjett!H44+Budsjett!H43+Budsjett!H46+Budsjett!H47+Budsjett!H48 -> 0 | F22: =Budsjett!I38+Budsjett!I39+Budsjett!I40+Budsjett!I44+Budsjett!I43+Budsjett!I46+Budsjett!I47+Budsjett!I48 -> 0 | G22: =Budsjett!J38+Budsjett!J39+Budsjett!J40+Budsjett!J44+Budsjett!J43+Budsjett!J46+Budsjett!J47+Budsjett!J48 -> 0 | H22: =Budsjett!K38+Budsjett!K39+Budsjett!K40+Budsjett!K44+Budsjett!K43+Budsjett!K46+Budsjett!K47+Budsjett!K48 -> 0 | I22: 0
B23: Totale kostnader | C23: =SUM(C14:C22) -> 0 | D23: =SUM(D14:D22) -> 0 | E23: =SUM(E14:E22) -> 0 | F23: =SUM(F14:F22) -> 0 | G23: 0 | H23: =SUM(H14:H22) -> 0 | I23: 0
B24: Resultat levetidsprognose | C24: =C23+C13 -> 0 | D24: =D23+D13 -> 0 | E24: =E23+E13 -> 0 | F24: =F23+F13 -> 0 | G24: 0 | H24: =H23+H13 -> 0 | I24: =I23+I13 -> 0
B26: Nettobidrag | C26: =C15+C17+C12+C16+C18+C21+C20 -> 0 | D26: =D15+D17+D12+D16+D18+D21+D20 -> 0 | E26: =E15+E17+E12+E16+E18+E21+E20 -> 0 | F26: =F15+F17+F12+F16+F18+F21+F20 -> 0 | G26: 0 | H26: =H15+H17+H12+H16+H18+H21+H20 -> 0 | I26: =I15+I17+I12+I16+I18+I21+I20 -> 0 | J26: =Registrering!C23 -> 10.25 | K26: =Registrering!B23 -> Valutakurs (må forankres hos instituttleder)
D27: =Budsjett!A61 -> Mer inntekt/kostnad for instituttet | I27: =Budsjett!G61 -> 0
D28: =Budsjett!A62 -> Prosjektets reelle nettobidrag | I28: =I26-I27 -> 0
D29: IK - splitt (Unit 4) | I29: =(Budsjett!BJ12+Budsjett!BJ20)/(Budsjett!BB12+Budsjett!BB20) -> 
B30: Kort begrunnelse for prosjektets faglige interesse: | C30: =Registrering!C10 -> 0 | N30: Total overheadkostnad | O30: =IFERROR((I17+I18)/(I14+I15+I16),"") -> 
N31: Eksternt fin. overhead | O31: =IFERROR((I17/(I14+I15)),"") -> 
N32: Egenandelsprosent | O32: =IFERROR(-I12/SUM(I23:I23),"") -> 
B33: Underskrifter (på papirutskriften - som skal arkiveres)
B35: Prosjekteier (instituttleder) | D35: Dato | E35: Prosjektleder | L35: Dato
B36: =Registrering!C7 -> 0 | E36: =Registrering!C5 -> 0

Sheet Oppsummering til videre bruk
A1: COST CATEGORY | B1: UNITS | C1: COST PER UNIT | D1: BE TOTAL COSTS
A3: Oppsummert budsjettdata i EUs format
A5: A. DIRECT PERSONNEL COSTS
A6: A.1 Employees (or equivalent)
A7: SENIOR SCIENTISTS (or equivalent in the private sector) | B7: =Tabeller!AC33 -> 0 | C7: =IFERROR(Tabeller!AB33,0) -> 0 | D7: =B7*C7 -> 0
A8: JUNIOR SCIENTISTS (or equivalent in the private sector) | B8: =Tabeller!AC34 -> 0 | C8: =IFERROR(Tabeller!AB34,0) -> 0 | D8: 0
A9: TECHNICAL PERSONNEL (or equivalent in the private sector) | B9: =Tabeller!AC35 -> 0 | C9: =IFERROR(Tabeller!AB35,0) -> 0 | D9: 0
A10: ADMINISTRATIVE PERSONNEL (or equivalent in the private sector) | B10: =Tabeller!AC36 -> 0 | C10: =IFERROR(Tabeller!AB36,0) -> 0 | D10: 0
A11: OTHERS | B11: =Tabeller!AC37 -> 0 | C11: =IFERROR(Tabeller!AB37,0) -> 0 | D11: 0
A12: A.2 Natural Persons under direct contract | D12: 0
A13: A.3 Seconded Persons | D13: 0
A14: A.4 SME owners and natural person beneficiaries | D14: 0
A15: B. DIRECT SUBCONTRACTING COSTS
B16: 1 | C16: =Budsjett!P44/Registrering!C23 -> 0 | D16: =B16*C16 -> 0
A17: C. DIRECT PURCHASE COSTS
A18: C.1 Travel and subsistence | B18: 1 | C18: =Budsjett!P39/Registrering!C23 -> 0 | D18: =B18*C18 -> 0
A19: C.2 Equipment (complete 'Depreciation costs' sheet)
A20: Equipment | B20: 1 | C20: =Budsjett!P49/Registrering!C23 -> 0 | D20: =B20*C20 -> 0
A21: Infrastructure | B21: 1 | D21: =B21*C21 -> 0
A22: Other assets | B22: 1 | D22: =B22*C22 -> 0
A23: C.3 Other goods, works and services
A24: Consumables | B24: 1 | C24: =(Budsjett!P40+Budsjett!P38)/Registrering!C23 -> 0 | D24: =B24*C24 -> 0
A25: Services for meetings, seminars | B25: 1 | C25: =Budsjett!P46/Registrering!C23 -> 0 | D25: =B25*C25 -> 0
A26: Services for dissemination activities (including website) | B26: 1 | C26: =Budsjett!P47/Registrering!C23 -> 0 | D26: =B26*C26 -> 0
A27: Publication fees | B27: 1 | C27: =Budsjett!P43/Registrering!C23 -> 0 | D27: =B27*C27 -> 0
A28: Other (shipment, insurance, translation, etc.) | B28: 1 | C28: =Budsjett!P48/Registrering!C23 -> 0 | D28: =B28*C28 -> 0
A29: D. OTHER COST CATEGORIES
A30: D.1 Financial support to third parties (if applicable in the topic specific conditions) | B30: 1 | D30: =B30*C30 -> 0
A31: D.2 Internally invoiced goods and services | B31: 1 | C31: =Budsjett!P42/Registrering!C23 -> 0 | D31: =B31*C31 -> 0
A32: D.3 Transnational access to research infrastructure unit costs (if mentioned as eligible in the topic specific conditions) | B32: 1 | D32: =B32*C32 -> 0
A33: D.4 Virtual access to research infrastructure unit costs (if mentioned as eligible in the topic specific conditions) | B33: 1 | D33: =B33*C33 -> 0
A34: D.5 PCP/PPI procurement costs (if mentioned as eligible in the topic specific conditions) | B34: 1 | D34: =B34*C34 -> 0
A36: TOTAL DIRECT PERSONNEL COSTS AND PURCHASE COSTS (A+C) | D36: =SUM(D7:D14)+SUM(D18:D28) -> 0
A37: TOTAL DIRECT COSTS (A+B+C+D) | D37: =SUM(D6:D34) -> 0
A39: E. INDIRECT COSTS (25% * (A+C)) | D39: =D36*0.25 -> 0
A41: F. TOTAL COSTS (A+B+C+D+E) | D41: =D37+D39 -> 0

Sheet Budget for the contract (hidden)
A1: EU - Prosjektbudsjett (kontrakt)
A3: EURO | B3: 9.9065
A5: Allocations sought from the EU Council (in EUR)
A7: Direct personnel costs (EUR) | B7: År 1 | C7: År 2 | D7: År 3 | E7: År 4 | F7: År 5 | G7: År 6 | H7: Sum
A8: A Actual costs | B8: 312329.6501 | C8: 80759.11986 | D8: 301586.825 | E8: 274986.1682 | F8: 264897.2615 | G8: 0 | H8: =SUM(B8:E8) -> 969661.7632
A9: Other direct costs
A10: F Declared as actual costs | B10: 10096.90607 | C10: 44415.2829 | D10: 6056.629486 | E10: 80755.05981 | F10: 201887.6495 | G10: 201887.6495 | H10: =SUM(B10:E10) -> 141323.8783
A11: I Total Unit costs | B11: 706606.7733 | C11: 0 | D11: 0 | E11: 0 | F11: 0 | G11: 0 | H11: =SUM(B11:E11) -> 706606.7733
A12: Other costs
A13: K Subcontracting costs | B13: 201.8876495 | C13: 6056.629486 | D13: 0 | E13: 0 | F13: 0 | G13: 0 | H13: =SUM(B13:E13) -> 6258.517135
A14: L Costs of providing financial support to third parties | B14: 0 | C14: 0 | D14: 0 | E14: 0 | F14: 0 | G14: 0 | H14: =SUM(B14:E14) -> 0
A15: Total direct costs | B15: =B8+B10+B11+B13+B14 -> 1029235.217 | C15: =C8+C10+C11+C13+C14 -> 131231.0322 | D15: =D8+D10+D11+D13+D14 -> 307643.4545 | E15: =E8+E10+E11+E13+E14 -> 355741.228 | F15: =F8+F10+F11+F13+F14 -> 466784.911 | G15: 201887.6495 | H15: =H8+H10+H11+H13+H14 -> 1823850.932
A17: Allocations sought from the EU Council (in EUR)
A18: Total direct costs | B18: =B15 -> 1029235.217 | C18: =C15 -> 131231.0322 | D18: =D15 -> 307643.4545 | E18: =E15 -> 355741.228 | F18: =F15 -> 466784.911 | G18: 201887.6495 | H18: =SUM(B18:E18) -> 1823850.932
A19: Indirect costs (25% flat rate) | B19: =(B8+B10+B11)*0.25 -> 257258.3324 | C19: =(C8+C10+C11)*0.25 -> 31293.60069 | D19: =(D8+D10+D11)*0.25 -> 76910.86363 | E19: =(E8+E10+E11)*0.25 -> 88935.30701 | F19: =(F8+F10+F11)*0.25 -> 116696.2278 | G19: 50471.91238 | H19: =SUM(B19:E19) -> 454398.1037
A20: O Total eligible costs | B20: =SUM(B18:B19) -> 1286493.549 | C20: =SUM(C18:C19) -> 162524.6329 | D20: =SUM(D18:D19) -> 384554.3182 | E20: =SUM(E18:E19) -> 444676.535 | F20: =SUM(F18:F19) -> 583481.1388 | G20: 252359.5619 | H20: =SUM(B20:E20) -> 2278249.036
A21: R Requested amount of the grant | B21: =B20 -> 1286493.549 | C21: =C20 -> 162524.6329 | D21: =D20 -> 384554.3182 | E21: =E20 -> 444676.535 | F21: =F20 -> 583481.1388 | G21: 252359.5619 | H21: =SUM(B21:E21) -> 2278249.036
A23: Inntekter EU i NOK (overføres til arkfanen finansiering) | B23: =-B21*$B$3 -> -12744648.35 | C23: =-C21*$B$3 -> -1610050.276 | D23: =-D21*$B$3 -> -3809587.353 | E23: =-E21*$B$3 -> -4405188.094 | F23: =-F21*$B$3 -> -5780255.901 | G23: -2500000 | H23: =SUM(B23:E23) -> -22569474.07
A25: Allocations sought from own financing (in EUR)
B26: =B7 -> År 1 | C26: =C7 -> År 2 | D26: =D7 -> År 3 | E26: =E7 -> År 4 | F26: =F7 -> År 5 | G26: År 6 | H26: Sum
A27: Direct personnel costs (EUR) | B27: 76093.6622 | C27: 0 | D27: 83198.04528 | E27: 42863.67712 | F27: 132474.4805 | G27: 128591.0314 | H27: =SUM(B27:E27) -> 202155.3846
A28: Other direct costs | B28: 30283.14743 | C28: 0 | D28: 0 | E28: 0 | F28: 0 | G28: 0 | H28: =SUM(B28:E28) -> 30283.14743
A29: Total direct costs | B29: =B27+B28 -> 106376.8096 | C29: =C27+C28 -> 0 | D29: =D27+D28 -> 83198.04528 | E29: =E27+E28 -> 42863.67712 | H29: =H27+H28 -> 232438.532
A30: Indirect costs (TDI) | B30: -21022.3445 | C30: 49465.51917 | D30: 172683.2722 | E30: 168196.5717 | F30: 148201.0337 | G30: -50471.91238 | H30: =SUM(B30:E30) -> 369323.0186
A31: Total costs | B31: =B29+B30 -> 85354.46514 | C31: =C29+C30 -> 49465.51917 | D31: =D29+D30 -> 255881.3175 | E31: =E29+E30 -> 211060.2489 | H31: =SUM(B31:E31) -> 601761.5507
A33: Total funding | B33: =B7 -> År 1 | C33: År 2 | D33: År 3 | E33: År 4 | F33: År 5 | G33: År 6 | H33: Sum | I33: % Share
A34: Own financing | B34: =B31 -> 85354.46514 | C34: =C31 -> 49465.51917 | D34: =D31 -> 255881.3175 | E34: =E31 -> 211060.2489 | F34: =F31 -> 0 | G34: 0 | H34: =SUM(B34:E34) -> 601761.5507 | I34: =H34/H36*100 -> 20.89442148 | J34: Hvor skal denne egenandelen fremgå på "Erc for the proposal"?
A35: EU funding | B35: =B21 -> 1286493.549 | C35: =C21 -> 162524.6329 | D35: =D21 -> 384554.3182 | E35: =E21 -> 444676.535 | F35: =F21 -> 583481.1388 | G35: 252359.5619 | H35: =SUM(B35:E35) -> 2278249.036 | I35: =H35/H36*100 -> 79.10557852
A36: Total budget | B36: =B21+B34 -> 1371848.015 | C36: =C21+C34 -> 211990.1521 | D36: =D21+D34 -> 640435.6357 | E36: =E21+E34 -> 655736.7839 | F36: =F21+F34 -> 583481.1388 | G36: 252359.5619 | H36: =SUM(B36:E36) -> 2880010.586 | I36: =H36/H36*100 -> 100 | L36: 1

Sheet Instructions (hidden)
B2: Horizon Europe Programme
B4: Detailed lump sum budget | D4: Generate the Excel file in macro-free format Ready for the online submission system
A6: Instructions
B7: Go to Beneficiaries and Affiliated Entities list | C7: ! Double click buttons ! | D7: Go to Work packages list
A9: GENERAL INSTRUCTIONS | B9: This workbook enables you to present the detailed estimation of costs of your lump sum project and to calculate the lump sum breakdown per beneficiary and per work package. It must be uploaded as an additional document at the ‘Proposal forms’ step of proposal submission. This is mandatory. If you do not upload the Excel workbook, the proposal submission will be blocked. Comprehensive guidance and background on lump sum funding under Horizon Europe is available on the Funding & Tenders Portal. To get started, we recommend to read the guide Lump sum funding – what do I need to know. This includes details on how to complete this Excel workbook. The weblinks are provided in column E. We recommend using Excel 2013 (Windows) / Excel 2016 (Mac OS) or more recent. The only currency used in this workbook is EURO (€). You must complete the following sheets: ‘BE list’ – ‘WP list’ – ‘BEx’ (one sheet for each beneficiary) – ‘Depreciation costs’ (if any). The appropriate number of individual beneficiary sheets (‘BEx’) will be generated automatically with data from the ‘BE list’ and ‘WP list’ sheets. The information in this workbook must correspond to the main proposal. For example, the list of beneficiaries and the list of work packages must be the same. Likewise, the tables in section 3.1 of Part B of the proposal must be in line with this workbook (e.g., table 3.1h ‘purchase costs’, and table 3.1i ‘internally invoiced goods and services’). | E9: Lump sum funding under Horizon Europe
E10: Lump sum funding - what do I need to know
A11: BE LIST | B11: In the ‘BE list’, you can add as many beneficiaries and as many affiliated entities as you need. To add beneficiaries, click on the "Add BE" button. To add an affiliated entity, click on the “Add AE” button next to the beneficiary concerned. For each beneficiary and each affiliated entity, you must select the country and the appropriate funding rate in the drop-down menus. The funding rates are used in the automatic calculation of the lump sum breakdown. For RIA and CSA topics, the funding rate is always 100%. For IA topics, the funding rate is 70% (except for non-profit legal entities, where a rate of up to 100% applies). For more information on the funding rate, please refer to your topic description. Once you have completed the ‘BE list’ sheet, click the “Apply changes” button to generate the corresponding sheets in the Excel workbook. To delete a beneficiary from the ‘BE list’, click the “Clear BE” button next to it. Likewise, to delete an affiliated entity, click the “Clear AE” button next to it. The first beneficiary BE1 cannot be deleted, but its details can be modified. Click “Apply changes” to delete the corresponding sheets from the workbook. Deleted beneficiary sheets then appear as a backup and are excluded from the calculation. Data of deleted affiliated entities are not saved as a backup.
A12: WP LIST | B12: In the ‘WP list’, you can add as many work packages as you need. To add work packages, click the "Add WP" button. Once you have completed the ‘WP list’ sheet, click the “Apply changes” button. To delete a work package, click the “Clear WP” button next to it and then “Apply changes”. The first work package WP1 cannot be deleted, but its details can be modified. There is no back-up for deleted work packages.
A13: BEx | B13: You must complete one ‘BEx’ sheet per beneficiary. This sheet includes one section for each work package. Each work package section contains the full list of cost categories. Complete the information for each work package in which the beneficiary participates. For the cost categories used, you must enter the number of units and the cost per unit in Euro (yellow cells). The total cost per cost category is calculated automatically. If a cost category is not used leave cells blank. Preferably use whole numbers for the costs per unit (no Euro cents). The number of units can be a fraction (e.g., 0.5 units). Lump sum proposals may contain only costs that are eligible under Horizon Europe (same eligibility rules as for actual cost grants).
B14: Enter your personnel costs in section “A. DIRECT PERSONNEL COSTS”. For personnel costs, the number of units is the number of person-months (e.g., 10 units correspond to 10 person-months). A senior scientist corresponds to career stages A and B in the Researcher Table in Part A of the proposal, or to an equivalent position in the private sector. A junior scientist corresponds to career stage C and D in the Researcher Table in Part A of the proposal, or to an equivalent position in the private sector. A staff category can contain more than one employee (e.g., two junior scientists in the same organisation and working on the same work package). In this case, the cost per unit is the average monthly personnel cost of all employees concerned, and the number of units is the combined number of person-months. No more detailed information is required in this sheet In section “A.4 SME Owner and natural person beneficiaries”, the cost per unit is prefilled in the workbook. When using this category, only enter the number of units.
B15: Enter your subcontracting costs in section “B. DIRECT SUBCONTRACTING COSTS”. A beneficiary can have more than one subcontract associated to a work package. In this case, the cost per unit is the average cost of all subcontracts, and the number of units is the number of subcontracts.
B16: In section “C. DIRECT PURCHASE COSTS”, complete the categories “C.1 Travel and subsistence”, “C.2 Equipment”, and “C.3 Other goods, works and services”, if applicable. A category can contain more than one item (e.g., several travels, or two pieces of equipment). In this case, the cost per unit is the average cost of all items, and the number of units is the number of items. No more detailed information is required in this sheet. For category “C.2 Equipment” (equipment, infrastructure, other assets), use the sheet ‘Depreciation costs’ as a tool to calculate the depreciation costs to be charged for the whole duration of the project (see below). Certain topics specify that the purchase of equipment, infrastructure and other assets may be declared as full capitalised costs. If this is the case for the topic you are applying to, enter the full capitalised costs in section “C.2 Equipment” (e.g., the full equipment costs).
B17: In section “D. OTHER DIRECT COSTS”, complete section “D.2 Internally invoiced goods and services”, if applicable. All other cost categories in section D. can be used only if they are explicitly allowed in the specific conditions of the topic. ◦“D.1 Financial support to third parties” ◦“D.3 Transnational access to research infrastructure unit costs” ◦“D.4 Virtual access to research infrastructure unit costs” ◦“D.5 PCP/PPI procurement costs"
B18: In section “E. INDIRECT COSTS”, the indirect costs will be calculated automatically.
A19: DEPRECIATION COSTS | B19: To calculate the depreciation costs, you need to: - Enter the price of the equipment in the column “Purchase costs” - Enter the percentage of usage of the equipment for the project in the column “% used for the project” - Complete the column “% of useful life of the equipment in the project”. To obtain the correct value, divide the period (in months) during which the equipment is used for the project by the depreciation period (in months) for the equipment. Multiply the result by 100%. The resulting amount is NOT automatically transferred to the respective ‘BEx’ sheet. You must add it manually in category “C.2 Equipment” under the appropriate work package in the ‘BEx’ sheet of the beneficiary concerned. If you have several items in the ‘Depreciation costs’ sheet to be encoded in one row (same beneficiary, same work package, and same resource type), you must enter the average cost of these items as the cost per unit and the number of items as the number of units. More information on calculating depreciation costs is available in the Annotated Model Grant Agreement. The rules on actual depreciation costs apply equally to lump sum grants except that the calculation is based on estimations and the result is included in the lump sum budget at proposal stage. | E19: Annotated Model Grant Agreement
A20: ANY COMMENTS | B20: If you have any comments, you can use the ‘Any comments’ sheet.
A21: SUMMARY TABLES | B21: The summary tables (‘Lump sum breakdown’, ‘Person-months overview’ and ‘Summary per WP’) are generated automatically. They are for your information and will be used during evaluation.
A22: SUBMISSION | B22: After you completed this Excel workbook, you must also complete the table ‘Budget for the proposal’ in Part A of the proposal, entering the requested EU contribution for each participant. Fill the Part A budget table using the total for each participant from the sheet ‘Lump sum breakdown’ in this Excel workbook. The format of this Excel workbook is .xlsm because it uses macros to generate sheets and make calculations automatically. Always save it as .xlsm. However, this format cannot be uploaded to the submission system for security reasons. Therefore, to submit the completed workbook, save a copy as a .xlsx or .xls document (and not as .xlsm) and upload it to the proposal submission tool at Step 5 of the submission process. Always keep a copy of the original .xlsm file. To save the workbook as .xlsx document, use the action button in the sheet “Instructions”. Alternatively, click on “File” and then “Save as”; in the “Save as” dialog box, choose “.xlsx” or “.xls” from the “Save as type” dropdown list.

Sheet BE list (hidden)
A2: List of beneficiaries and affiliated entities | H2: Add BE | I2: ! Double click buttons ! | L2: Apply changes
A3: BE/AE nr | B3: BE/AE name | C3: Acronym | D3: Country | E3: Funding rate
A4: BE1 | B4: BE1 name | C4: BE1 acronym | D4: BE | E4: 1 | J4: Add AE to BE1

Sheet WP list
A2: List of Work Packages | D2: Add WP | E2: ! Double click buttons ! | F2: Apply changes
A3: WP number | B3: WP name
A4: WP1 | B4: WP1 name

Sheet BE-WP Tmpl (hidden)
A1: ESTIMATED BREAKDOWN OF THE LUMP SUM PER WORK PACKAGE AND PER BENEFICIARY
A2: BENEFICIARIES \ WORK PACKAGES | B2: WPx name | C2: Totals | D2: Pct %
A3: BEx: BEx name | D3: =IF(C$4>0,C3/C$4," ") -> 
A4: Totals: | D4: =IF(C$4>0,C4/C$4," ") -> 
A5: Pct: | B5: =IF($C4>0,B4/$C4," ") ->  | C5: =IF($C4>0,C4/$C4," ") -> 

Sheet Lump sum breakdown (hidden)
A1: ESTIMATED BREAKDOWN OF THE LUMP SUM PER WORK PACKAGE AND PER BENEFICIARY
A2: BENEFICIARIES \ WORK PACKAGES | B2: WP1 WP1 name | C2: WP2 Nummer 2 | D2: Totals | E2: Pct %
A3: BE1: BE1 name | B3: ='BE1'!D43*'BE list'!E4 -> 0 | C3: ='BE1'!D84*'BE list'!E4 -> 0 | D3: =SUM(B3:C3) -> 0 | E3: =IF(D$4>0,D3/D$4," ") -> 
A4: Totals: | B4: =SUM(B3) -> 0 | C4: =SUM(C3) -> 0 | D4: =SUM(B3:C3) -> 0 | E4: =IF(D$4>0,D4/D$4," ") -> 
A5: Pct: | B5: =IF($D4>0,B4/$D4," ") ->  | C5: =IF($D4>0,C4/$D4," ") ->  | D5: =IF($D4>0,D4/$D4," ") -> 

Sheet Budget for proposal (hidden)
A1: Budget (to be copied in the online submission form)
A3: No | B3: Name of Beneficiary | C3: Country | D3: Requested grant amount
A4: BE1 | B4: Beneficiary 1 | C4: BE | D4: 0
A5: Totals: | D5: =SUM(#REF!) -> 

Sheet Budget for proposal tmpl (hidden)
A1: Budget (to be copied in the online submission form)
A3: No | B3: Name of Beneficiary | C3: Country | D3: Requested grant amount
A4: BE1 | B4: Beneficiary 1 | C4: BE | D4: 0
A5: Totals: | D5: =SUM(#REF!) -> 

Sheet Proposal BudgetIA Tmpl (hidden)
A1: Budget for the proposal (IA)
D3: (A) | E3: (B) | F3: (C) | G3: (D) | H3: (E) | I3: (F) | J3: (G) | K3: (H) | L3: (I) | M3: (J) | N3: (K) | O3: (L) | P3: (M) | Q3: (N) | R3: (O)
A4: No | B4: Participant | C4: Country | D4: Direct personnel costs | E4: Other direct costs | F4: Direct costs of subcontracting | G4: Direct costs of providing financial support to third parties | H4: Costs of in kind contributions NOT used on the beneficiary's premises (included in A and B) | I4: Indirect Costs (=0.25(A+B-E)) | J4: Special unit costs covering direct & indirect costs | K4: Total estimated eligible costs (=A+B+C+D+F+G) | L4: Reimbursement rate | M4: Max. EU contribution (=H*I) | N4: Costs of third parties linked to participant | O4: Max. EU Contribution / € THIRD PARTIES | P4: Total Costs for BENEFICIARY & THIRD PARTIES (=H+K) | Q4: Max. EU Contribution / € BENEFICIARY & THIRD PARTIES (=J+L) | R4: Requested EU contribution / € BENEFICIARY & THIRD PARTIES
A5: BE1 | D5: =SUM(#REF!:#REF!) ->  | E5: =SUM(#REF!:#REF!) ->  | F5: =SUM(#REF!:#REF!) ->  | G5: =SUM(#REF!:#REF!) ->  | H5: =SUM(#REF!:#REF!) ->  | I5: =#REF! ->  | K5: =#REF! ->  | M5: =$K5*$L5 -> 
A6: Totals: | D6: =SUM(D5:D5) ->  | J6: 0 | M6: =SUM(M5:M5) ->  | N6: 0 | O6: 0 | P6: 0 | Q6: 0 | R6: 0

Sheet Proposal Budget (RIA-CSA) (hidden)
A1: Budget for the proposal (RIA-CSA)
D3: (A) | E3: (B) | F3: (C) | G3: (D) | H3: (E) | I3: (F) | J3: (G) | K3: (H) | L3: (I) | M3: (J) | N3: (O)
A4: No | B4: Participant | C4: Country | D4: Direct personnel costs | E4: Other direct costs | F4: Direct costs of subcontracting | G4: Direct costs of providing financial support to third parties | H4: Costs of in kind contributions NOT used on the beneficiary's premises (included in A and B) | I4: Indirect Costs (=0.25(A+B-E)) | J4: Special unit costs covering direct & indirect costs | K4: Total estimated eligible costs (=A+B+C+D+F+G) | L4: Reimbursement rate | M4: Max. EU contribution (=H*I) | N4: Requested EU contribution / € BENEFICIARY & THIRD PARTIES
A5: BE1 | B5: Beneficiary 1 | C5: BE | D5: =SUM(#REF!:#REF!) ->  | E5: =SUM(#REF!:#REF!) ->  | F5: =SUM(#REF!:#REF!) ->  | G5: =SUM(#REF!:#REF!) ->  | H5: =SUM(#REF!:#REF!) ->  | I5: =SUM(#REF!:#REF!) ->  | K5: =SUM(#REF!:#REF!) ->  | L5: 1 | M5: =$K5*$L5 -> 
A6: Totals: | D6: =SUM(D5) ->  | J6: 0 | M6: =SUM(M5) ->  | N6: =SUM(N5) -> 0

Sheet Proposal Budget (IA) (hidden)
A1: Budget for the proposal (IA)
D3: (A) | E3: (B) | F3: (C) | G3: (D) | H3: (E) | I3: (F) | J3: (G) | K3: (H) | L3: (I) | M3: (J) | N3: (K) | O3: (L) | P3: (M) | Q3: (N) | R3: (O)
A4: No | B4: Participant | C4: Country | D4: Direct personnel costs | E4: Other direct costs | F4: Direct costs of subcontracting | G4: Direct costs of providing financial support to third parties | H4: Costs of in kind contributions NOT used on the beneficiary's premises (included in A and B) | I4: Indirect Costs (=0.25(A+B-E)) | J4: Special unit costs covering direct & indirect costs | K4: Total estimated eligible costs (=A+B+C+D+F+G) | L4: Reimbursement rate | M4: Max. EU contribution (=H*I) | N4: Costs of third parties linked to participant | O4: Max. EU Contribution / € THIRD PARTIES | P4: Total Costs for BENEFICIARY & THIRD PARTIES (=H+K) | Q4: Max. EU Contribution / € BENEFICIARY & THIRD PARTIES (=J+L) | R4: Requested EU contribution / € BENEFICIARY & THIRD PARTIES
A5: BE1 | B5: Beneficiary 1 | C5: BE | D5: =SUM(#REF!:#REF!) ->  | E5: =SUM(#REF!:#REF!) ->  | F5: =SUM(#REF!:#REF!) ->  | G5: =SUM(#REF!:#REF!) ->  | H5: =SUM(#REF!:#REF!) ->  | I5: =SUM(#REF!:#REF!) ->  | K5: =SUM(#REF!:#REF!) ->  | L5: ='BE list'!E4 -> 1 | M5: =$K5*$L5 ->  | P5: =K5+N5 ->  | Q5: =M5+O5 -> 
A6: Totals: | D6: =SUM(D5) ->  | J6: 0 | M6: =SUM(M5) ->  | N6: 0 | O6: 0 | R6: 0

Sheet Person-months overview tpl (hidden)
A1: TOTAL PERSON-MONTHS FOR ALL BENEFICIARIES (INCLUDING AFFILIATED ENTITIES) PER WP
A2: BENEFICIARIES \ WORK PACKAGES | B2: WP1 | C2: Total | D2: Pct %
A3: BE1 | C3: =SUM(B3:B3) -> 0 | D3: =IF(C$4>0,C3/C$4," ") -> 
A4: Total | C4: =SUM(C3:C3) -> 0 | D4: =IF(C$4>0,C4/C$4," ") -> 
A5: Percentage | B5: =IF($C4>0,B4/$C4," ") ->  | C5: =IF($C4>0,C4/$C4," ") -> 

Sheet Person-months overview (hidden)
A1: TOTAL PERSON-MONTHS FOR ALL BENEFICIARIES (INCLUDING AFFILIATED ENTITIES) PER WP
A2: BENEFICIARIES \ WORK PACKAGES | B2: WP1 WP1 name | C2: WP2 Nummer 2 | D2: Total | E2: Pct %
A3: BE1: BE1 name | B3: =(SUM('BE1'!$B9:'BE1'!$B16)) -> 0 | C3: =(SUM('BE1'!$B50:'BE1'!$B57)) -> 0 | D3: =SUM(B3:C3) -> 0 | E3: =IF(D$4>0,D3/D$4," ") -> 
A4: Total | B4: =SUM(B3) -> 0 | C4: =SUM(C3) -> 0 | D4: =SUM(B3:C3) -> 0 | E4: =IF(D$4>0,D4/D$4," ") -> 
A5: Percentage | B5: =IF($D4>0,B4/$D4," ") ->  | C5: =IF($D4>0,C4/$D4," ") ->  | D5: =IF($D4>0,D4/$D4," ") -> 

Sheet Summary per WP (hidden)
A1: SUM OF ALL BENEFICIARIES (including AFFILIATED ENTITIES) FOR ALL THE WORK PACKAGES
B2: ALL BENEFICIARIES (without affiliated entities) | E2: ALL AFFILIATED ENTITIES | J2: ALL BENEFICIARIES (with affiliated entities)
A3: COST CATEGORY | B3: UNITS | C3: COST PER UNIT | D3: BE TOTAL COSTS | E3: UNITS | F3: COST PER UNIT | G3: AE TOTAL COSTS | J3: UNITS (TOTAL) | K3: AVERAGE COST PER UNIT | L3: BE+TP TOTAL COSTS | N3: TOTAL COSTS
A5: COSTS WORK PACKAGE: 1 WP1 name
A7: A. DIRECT PERSONNEL COSTS
A8: A.1 Employees (or equivalent)
A9: SENIOR SCIENTISTS (or equivalent in the private sector) | B9: ='BE1'!B9 -> 0 | D9: ='BE1'!D9 -> 0 | I9: =D9+G9 -> 0 | J9: =E9+B9 -> 0 | K9: =IF(J9>0,L9/J9," ") ->  | L9: =G9+D9 -> 0 | N9: =D9+G9 -> 0
A10: JUNIOR SCIENTISTS (or equivalent in the private sector) | B10: ='BE1'!B10 -> 0 | D10: ='BE1'!D10 -> 0 | I10: 0 | J10: 0 | L10: 0 | N10: 0
A11: TECHNICAL PERSONNEL (or equivalent in the private sector) | B11: ='BE1'!B11 -> 0 | D11: ='BE1'!D11 -> 0 | I11: 0 | J11: 0 | L11: 0 | N11: 0
A12: ADMINISTRATIVE PERSONNEL (or equivalent in the private sector) | B12: ='BE1'!B12 -> 0 | D12: ='BE1'!D12 -> 0 | I12: 0 | J12: 0 | L12: 0 | N12: 0
A13: OTHERS | B13: ='BE1'!B13 -> 0 | D13: ='BE1'!D13 -> 0 | I13: 0 | J13: 0 | L13: 0 | N13: 0
A14: A.2 Natural Persons under direct contract | B14: ='BE1'!B14 -> 0 | D14: ='BE1'!D14 -> 0 | I14: 0 | J14: 0 | L14: 0 | N14: 0
A15: A.3 Seconded Persons | B15: ='BE1'!B15 -> 0 | D15: ='BE1'!D15 -> 0 | I15: 0 | J15: 0 | L15: 0 | N15: 0
A16: A.4 SME owners and natural person beneficiaries | B16: ='BE1'!B16 -> 0 | D16: ='BE1'!D16 -> 0 | I16: 0 | J16: 0 | L16: 0 | N16: 0
A17: B. DIRECT SUBCONTRACTING COSTS
B18: ='BE1'!B18 -> 0 | D18: ='BE1'!D18 -> 0 | I18: =D18+G18 -> 0 | J18: =E18+B18 -> 0 | K18: =IF(J18>0,L18/J18," ") ->  | L18: =G18+D18 -> 0 | N18: =D18+G18 -> 0
A19: C. DIRECT PURCHASE COSTS
A20: C.1 Travel and subsistence | B20: ='BE1'!B20 -> 0 | D20: ='BE1'!D20 -> 0 | I20: =D20+G20 -> 0 | J20: =E20+B20 -> 0 | K20: =IF(J20>0,L20/J20," ") ->  | L20: =G20+D20 -> 0 | N20: =D20+G20 -> 0
A21: C.2 Equipment (complete 'Depreciation cost' sheet)
A22: Equipment | B22: ='BE1'!B22 -> 0 | D22: ='BE1'!D22 -> 0 | I22: =D22+G22 -> 0 | J22: =E22+B22 -> 0 | K22: =IF(J22>0,L22/J22," ") ->  | L22: =G22+D22 -> 0 | N22: =D22+G22 -> 0
A23: Infrastructure | B23: ='BE1'!B23 -> 0 | D23: ='BE1'!D23 -> 0 | I23: =D23+G23 -> 0 | J23: =E23+B23 -> 0 | K23: =IF(J23>0,L23/J23," ") ->  | L23: =G23+D23 -> 0 | N23: =D23+G23 -> 0
A24: Other assets | B24: ='BE1'!B24 -> 0 | D24: ='BE1'!D24 -> 0 | I24: =D24+G24 -> 0 | J24: =E24+B24 -> 0 | K24: =IF(J24>0,L24/J24," ") ->  | L24: =G24+D24 -> 0 | N24: =D24+G24 -> 0
A25: C.3 Other goods, works and services
A26: Consumables | B26: ='BE1'!B26 -> 0 | D26: ='BE1'!D26 -> 0 | I26: =D26+G26 -> 0 | J26: =E26+B26 -> 0 | K26: =IF(J26>0,L26/J26," ") ->  | L26: =G26+D26 -> 0 | N26: =D26+G26 -> 0
A27: Services for meetings, seminars | B27: ='BE1'!B27 -> 0 | D27: ='BE1'!D27 -> 0 | I27: =D27+G27 -> 0 | J27: =E27+B27 -> 0 | L27: =G27+D27 -> 0 | N27: =D27+G27 -> 0
A28: Services for dissemination activities (including website) | B28: ='BE1'!B28 -> 0 | D28: ='BE1'!D28 -> 0 | I28: =D28+G28 -> 0 | J28: =E28+B28 -> 0 | L28: =G28+D28 -> 0 | N28: =D28+G28 -> 0
A29: Publication fees | B29: ='BE1'!B29 -> 0 | D29: ='BE1'!D29 -> 0 | I29: =D29+G29 -> 0 | J29: =E29+B29 -> 0 | L29: =G29+D29 -> 0 | N29: =D29+G29 -> 0
A30: Other (shipment,insurance, translation, etc.) | B30: ='BE1'!B30 -> 0 | D30: ='BE1'!D30 -> 0 | I30: =D30+G30 -> 0 | J30: =E30+B30 -> 0 | L30: =G30+D30 -> 0 | N30: =D30+G30 -> 0
A31: D. OTHER COST CATEGORIES
A32: D.1 Financial support to third parties (if applicable in the topic specific conditions) | B32: ='BE1'!B32 -> 0 | D32: ='BE1'!D32 -> 0 | I32: =D32+G32 -> 0 | J32: =E32+B32 -> 0 | K32: =IF(J32>0,L32/J32," ") ->  | L32: =G32+D32 -> 0 | N32: =D32+G32 -> 0
A33: D.2 Internally invoiced goods and services | B33: ='BE1'!B33 -> 0 | D33: ='BE1'!D33 -> 0 | I33: =D33+G33 -> 0 | J33: =E33+B33 -> 0 | L33: =G33+D33 -> 0 | N33: =D33+G33 -> 0
A34: D.3 Transnational access to research infrastructure unit costs (if required in the topic specific conditions) | B34: ='BE1'!B34 -> 0 | D34: ='BE1'!D34 -> 0 | I34: =D34+G34 -> 0 | J34: =E34+B34 -> 0 | L34: =G34+D34 -> 0 | N34: =D34+G34 -> 0
A35: D.4 Virtual access to research infrastructure unit costs (if required in the topic specific conditions) | B35: ='BE1'!B35 -> 0 | D35: ='BE1'!D35 -> 0 | I35: =D35+G35 -> 0 | J35: =E35+B35 -> 0 | L35: =G35+D35 -> 0 | N35: =D35+G35 -> 0
A36: D.5 PCP/PPI procurement costs (if mentioned as eligible in the topic specific conditions) | B36: ='BE1'!B36 -> 0 | D36: ='BE1'!D36 -> 0 | I36: =D36+G36 -> 0 | J36: =E36+B36 -> 0 | L36: =G36+D36 -> 0 | N36: =D36+G36 -> 0
A38: TOTAL DIRECT PERSONNEL COSTS AND PURCHASE COSTS (A+C) | D38: ='BE1'!D38 -> 0 | I38: =D38+G38 -> 0 | J38: =E38+B38 -> 0 | L38: =G38+D38 -> 0 | N38: =D38+G38 -> 0
A39: TOTAL DIRECT COSTS (A+B+C+D) | D39: ='BE1'!D39 -> 0 | I39: =D39+G39 -> 0 | J39: =E39+B39 -> 0 | L39: =G39+D39 -> 0 | N39: =D39+G39 -> 0
A41: E. INDIRECT COSTS (25% * (A+C)) | D41: ='BE1'!D41 -> 0 | I41: =D41+G41 -> 0 | J41: =E41+B41 -> 0 | L41: =G41+D41 -> 0 | N41: =D41+G41 -> 0
A43: F. TOTAL COSTS (A+B+C+D+E) | D43: ='BE1'!D43 -> 0 | I43: =D43+G43 -> 0 | J43: =E43+B43 -> 0 | L43: =G43+D43 -> 0 | N43: =D43+G43 -> 0
A46: SUM OF ALL WORK PACKAGES FOR ALL BENEFICIARIES
B47: UNITS | C47: AVERAGE COST PER UNIT | D47: BE TOTAL COSTS | E47: UNITS | F47: AVERAGE COST PER UNIT | G47: TP TOTAL COSTS
A48: A. DIRECT PERSONNEL COSTS
A49: A.1 Employees (or equivalent)
A50: SENIOR SCIENTISTS (or equivalent in the private sector) | B50: =B9 -> 0 | D50: =D9 -> 0 | E50: 0 | G50: =G9 -> 0 | I50: =D50+G50 -> 0 | J50: =E50+B50 -> 0 | K50: =IF(J50>0,L50/J50," ") ->  | L50: =G50+D50 -> 0 | N50: =D50+G50 -> 0
A51: JUNIOR SCIENTISTS (or equivalent in the private sector) | B51: 0 | D51: 0 | E51: 0 | G51: 0 | I51: 0 | J51: 0 | L51: 0 | N51: 0
A52: TECHNICAL PERSONNEL (or equivalent in the private sector) | B52: 0 | D52: 0 | E52: 0 | G52: 0 | I52: 0 | J52: 0 | L52: 0 | N52: 0
A53: ADMINISTRATIVE PERSONNEL (or equivalent in the private sector) | B53: 0 | D53: 0 | E53: 0 | G53: 0 | I53: 0 | J53: 0 | L53: 0 | N53: 0
A54: OTHERS | B54: 0 | D54: 0 | E54: 0 | G54: 0 | I54: 0 | J54: 0 | L54: 0 | N54: 0
A55: A.2 Natural Persons under direct contract | B55: 0 | D55: 0 | E55: 0 | G55: 0 | I55: 0 | J55: 0 | L55: 0 | N55: 0
A56: A.3 Seconded Persons | B56: 0 | D56: 0 | E56: 0 | G56: 0 | I56: 0 | J56: 0 | L56: 0 | N56: 0
A57: A.4 SME owners and natural person beneficiaries | B57: 0 | D57: 0 | E57: 0 | G57: 0 | I57: 0 | J57: 0 | L57: 0 | N57: 0
A58: B. DIRECT SUBCONTRACTING COSTS
B59: =B18 -> 0 | D59: =D18 -> 0 | E59: =E18 -> 0 | G59: =G18 -> 0 | I59: =D59+G59 -> 0 | J59: =E59+B59 -> 0 | L59: =G59+D59 -> 0 | N59: =D59+G59 -> 0
A60: C. DIRECT PURCHASE COSTS
A61: C.1 Travel and subsistence | B61: =B20 -> 0 | D61: =D20 -> 0 | E61: =E20 -> 0 | G61: =G20 -> 0 | I61: =D61+G61 -> 0 | J61: =E61+B61 -> 0 | K61: =IF(J61>0,L61/J61," ") ->  | L61: =G61+D61 -> 0 | N61: =D61+G61 -> 0
A62: C.2 Equipment (complete 'Depreciation cost' sheet)
A63: Equipment | B63: =B22 -> 0 | D63: =D22 -> 0 | E63: 0 | G63: =G22 -> 0 | I63: =D63+G63 -> 0 | J63: =E63+B63 -> 0 | K63: =IF(J63>0,L63/J63," ") ->  | L63: =G63+D63 -> 0 | N63: =D63+G63 -> 0
A64: Infrastructure | B64: =B23 -> 0 | D64: 0 | E64: 0 | G64: =G23 -> 0 | I64: =D64+G64 -> 0 | J64: =E64+B64 -> 0 | K64: =IF(J64>0,L64/J64," ") ->  | L64: =G64+D64 -> 0 | N64: =D64+G64 -> 0
A65: Other assets | B65: =B24 -> 0 | D65: 0 | E65: 0 | G65: =G24 -> 0 | I65: =D65+G65 -> 0 | J65: =E65+B65 -> 0 | K65: =IF(J65>0,L65/J65," ") ->  | L65: =G65+D65 -> 0 | N65: =D65+G65 -> 0
A66: C.3 Other goods, works and services
A67: Consumables | B67: =B26 -> 0 | D67: =D26 -> 0 | E67: 0 | G67: =G26 -> 0 | I67: =D67+G67 -> 0 | J67: =E67+B67 -> 0 | K67: =IF(J67>0,L67/J67," ") ->  | L67: =G67+D67 -> 0 | N67: =D67+G67 -> 0
A68: Services for meetings, seminars | B68: =B27 -> 0 | D68: 0 | E68: 0 | G68: =G27 -> 0 | I68: =D68+G68 -> 0 | J68: =E68+B68 -> 0 | L68: =G68+D68 -> 0 | N68: =D68+G68 -> 0
A69: Services for dissemination activities (including website) | B69: =B28 -> 0 | D69: 0 | E69: 0 | G69: =G28 -> 0 | I69: =D69+G69 -> 0 | J69: =E69+B69 -> 0 | L69: =G69+D69 -> 0 | N69: =D69+G69 -> 0
A70: Publication fees | B70: =B29 -> 0 | D70: 0 | E70: 0 | G70: =G29 -> 0 | I70: =D70+G70 -> 0 | J70: =E70+B70 -> 0 | L70: =G70+D70 -> 0 | N70: =D70+G70 -> 0
A71: Other (shipment,insurance, translation, etc.) | B71: =B30 -> 0 | D71: 0 | E71: 0 | G71: =G30 -> 0 | I71: =D71+G71 -> 0 | J71: =E71+B71 -> 0 | L71: =G71+D71 -> 0 | N71: =D71+G71 -> 0
A72: D. OTHER COST CATEGORIES
A73: D.1 Financial support to third parties (if applicable in the topic specific conditions) | B73: =B32 -> 0 | D73: =D32 -> 0 | E73: 0 | G73: =G32 -> 0 | I73: =D73+G73 -> 0 | J73: =E73+B73 -> 0 | K73: =IF(J73>0,L73/J73," ") ->  | L73: =G73+D73 -> 0 | N73: =D73+G73 -> 0
A74: D.2 Internally invoiced goods and services | B74: =B33 -> 0 | D74: 0 | E74: 0 | G74: =G33 -> 0 | I74: =D74+G74 -> 0 | J74: =E74+B74 -> 0 | L74: =G74+D74 -> 0 | N74: =D74+G74 -> 0
A75: D.3 Transnational access to research infrastructure unit costs (if required in the topic specific conditions) | B75: =B34 -> 0 | D75: 0 | E75: 0 | G75: =G34 -> 0 | I75: =D75+G75 -> 0 | J75: =E75+B75 -> 0 | L75: =G75+D75 -> 0 | N75: =D75+G75 -> 0
A76: D.4 Virtual access to research infrastructure unit costs (if required in the topic specific conditions) | B76: =B35 -> 0 | D76: 0 | E76: 0 | G76: =G35 -> 0 | I76: =D76+G76 -> 0 | J76: =E76+B76 -> 0 | L76: =G76+D76 -> 0 | N76: =D76+G76 -> 0
A77: D.5 PCP/PPI procurement costs (if mentioned as eligible in the topic specific conditions) | B77: =B36 -> 0 | D77: 0 | E77: 0 | G77: =G36 -> 0 | I77: =D77+G77 -> 0 | J77: =E77+B77 -> 0 | L77: =G77+D77 -> 0 | N77: =D77+G77 -> 0
A79: TOTAL DIRECT PERSONNEL COSTS AND PURCHASE COSTS (A+C) | D79: =D38 -> 0 | G79: =G38 -> 0 | I79: =D79+G79 -> 0 | J79: =E79+B79 -> 0 | L79: =G79+D79 -> 0 | N79: =D79+G79 -> 0
A80: TOTAL DIRECT COSTS (A+B+C+D) | D80: =D39 -> 0 | G80: =G39 -> 0 | I80: =D80+G80 -> 0 | J80: =E80+B80 -> 0 | L80: =G80+D80 -> 0 | N80: =D80+G80 -> 0
A82: E. INDIRECT COSTS (25% * (A+C)) | D82: =D41 -> 0 | G82: =G41 -> 0 | I82: =D82+G82 -> 0 | J82: =E82+B82 -> 0 | L82: =G82+D82 -> 0 | N82: =D82+G82 -> 0
A84: F. TOTAL COSTS (A+B+C+D+E) | D84: =D43 -> 0 | G84: =G43 -> 0 | I84: =D84+G84 -> 0 | J84: =E84+B84 -> 0 | L84: =G84+D84 -> 0 | N84: =D84+G84 -> 0

Sheet Summary per WP tmpl (hidden)
A1: SUM OF ALL BENEFICIARIES (including AFFILIATED ENTITIES) FOR ALL THE WORK PACKAGES
B2: ALL BENEFICIARIES (without affiliated entities) | E2: ALL AFFILIATED ENTITIES | J2: ALL BENEFICIARIES (with affiliated entities)
A3: COST CATEGORY | B3: UNITS | C3: COST PER UNIT | D3: BE TOTAL COSTS | E3: UNITS | F3: COST PER UNIT | G3: AE TOTAL COSTS | J3: UNITS (TOTAL) | K3: AVERAGE COST PER UNIT | L3: BE+TP TOTAL COSTS | N3: TOTAL COSTS
A7: A. DIRECT PERSONNEL COSTS
A8: A.1 Employees (or equivalent)
A9: SENIOR SCIENTISTS (or equivalent in the private sector) | B9: =#REF!+#REF!+#REF!+#REF!+#REF!+#REF!+#REF!+#REF!+#REF!+#REF! ->  | D9: =#REF!+#REF!+#REF!+#REF!+#REF!+#REF!+#REF!+#REF!+#REF!+#REF! ->  | E9: =#REF!+#REF!+#REF!+#REF!+#REF!+#REF!+#REF!+#REF!+#REF!+#REF! ->  | G9: =#REF!+#REF!+#REF!+#REF!+#REF!+#REF!+#REF!+#REF!+#REF!+#REF! ->  | I9: =D9+G9 ->  | J9: =E9+B9 ->  | K9: =IF(J9>0,L9/J9," ") ->  | L9: =G9+D9 ->  | N9: =D9+G9 -> 
A10: JUNIOR SCIENTISTS (or equivalent in the private sector) | B10: =#REF!+#REF!+#REF!+#REF!+#REF!+#REF!+#REF!+#REF!+#REF!+#REF! ->  | D10: =#REF!+#REF!+#REF!+#REF!+#REF!+#REF!+#REF!+#REF!+#REF!+#REF! ->  | E10: =#REF!+#REF!+#REF!+#REF!+#REF!+#REF!+#REF!+#REF!+#REF!+#REF! ->  | G10: =#REF!+#REF!+#REF!+#REF!+#REF!+#REF!+#REF!+#REF!+#REF!+#REF! -> 
A11: TECHNICAL PERSONNEL (or equivalent in the private sector) | B11: =#REF!+#REF!+#REF!+#REF!+#REF!+#REF!+#REF!+#REF!+#REF!+#REF! ->  | D11: =#REF!+#REF!+#REF!+#REF!+#REF!+#REF!+#REF!+#REF!+#REF!+#REF! ->  | E11: =#REF!+#REF!+#REF!+#REF!+#REF!+#REF!+#REF!+#REF!+#REF!+#REF! ->  | G11: =#REF!+#REF!+#REF!+#REF!+#REF!+#REF!+#REF!+#REF!+#REF!+#REF! -> 
A12: ADMINISTRATIVE PERSONNEL (or equivalent in the private sector) | B12: =#REF!+#REF!+#REF!+#REF!+#REF!+#REF!+#REF!+#REF!+#REF!+#REF! ->  | D12: =#REF!+#REF!+#REF!+#REF!+#REF!+#REF!+#REF!+#REF!+#REF!+#REF! ->  | E12: =#REF!+#REF!+#REF!+#REF!+#REF!+#REF!+#REF!+#REF!+#REF!+#REF! ->  | G12: =#REF!+#REF!+#REF!+#REF!+#REF!+#REF!+#REF!+#REF!+#REF!+#REF! -> 
A13: OTHERS | B13: =#REF!+#REF!+#REF!+#REF!+#REF!+#REF!+#REF!+#REF!+#REF!+#REF! ->  | D13: =#REF!+#REF!+#REF!+#REF!+#REF!+#REF!+#REF!+#REF!+#REF!+#REF! ->  | E13: =#REF!+#REF!+#REF!+#REF!+#REF!+#REF!+#REF!+#REF!+#REF!+#REF! ->  | G13: =#REF!+#REF!+#REF!+#REF!+#REF!+#REF!+#REF!+#REF!+#REF!+#REF! -> 
A14: A.2 Natural Persons under direct contract | B14: =#REF!+#REF!+#REF!+#REF!+#REF!+#REF!+#REF!+#REF!+#REF!+#REF! ->  | D14: =#REF!+#REF!+#REF!+#REF!+#REF!+#REF!+#REF!+#REF!+#REF!+#REF! ->  | E14: =#REF!+#REF!+#REF!+#REF!+#REF!+#REF!+#REF!+#REF!+#REF!+#REF! ->  | G14: =#REF!+#REF!+#REF!+#REF!+#REF!+#REF!+#REF!+#REF!+#REF!+#REF! -> 
A15: A.3 Seconded Persons | B15: =#REF!+#REF!+#REF!+#REF!+#REF!+#REF!+#REF!+#REF!+#REF!+#REF! ->  | D15: =#REF!+#REF!+#REF!+#REF!+#REF!+#REF!+#REF!+#REF!+#REF!+#REF! ->  | E15: =#REF!+#REF!+#REF!+#REF!+#REF!+#REF!+#REF!+#REF!+#REF!+#REF! ->  | G15: =#REF!+#REF!+#REF!+#REF!+#REF!+#REF!+#REF!+#REF!+#REF!+#REF! -> 
A16: A.4 SME owners and natural person beneficiaries | B16: =#REF!+#REF!+#REF!+#REF!+#REF!+#REF!+#REF!+#REF!+#REF!+#REF! ->  | D16: =#REF!+#REF!+#REF!+#REF!+#REF!+#REF!+#REF!+#REF!+#REF!+#REF! ->  | E16: =#REF!+#REF!+#REF!+#REF!+#REF!+#REF!+#REF!+#REF!+#REF!+#REF! ->  | G16: =#REF!+#REF!+#REF!+#REF!+#REF!+#REF!+#REF!+#REF!+#REF!+#REF! -> 
A17: B. DIRECT SUBCONTRACTING COSTS
B18: =#REF!+#REF!+#REF!+#REF!+#REF!+#REF!+#REF!+#REF!+#REF!+#REF! ->  | D18: =#REF!+#REF!+#REF!+#REF!+#REF!+#REF!+#REF!+#REF!+#REF!+#REF! ->  | E18: =#REF!+#REF!+#REF!+#REF!+#REF!+#REF!+#REF!+#REF!+#REF!+#REF! ->  | G18: =#REF!+#REF!+#REF!+#REF!+#REF!+#REF!+#REF!+#REF!+#REF!+#REF! ->  | I18: =D18+G18 ->  | J18: =E18+B18 ->  | K18: =IF(J18>0,L18/J18," ") ->  | L18: =G18+D18 ->  | N18: =D18+G18 -> 
A19: C. DIRECT PURCHASE COSTS
A20: C.1 Travel and subsistence | B20: =#REF!+#REF!+#REF!+#REF!+#REF!+#REF!+#REF!+#REF!+#REF!+#REF! ->  | D20: =#REF!+#REF!+#REF!+#REF!+#REF!+#REF!+#REF!+#REF!+#REF!+#REF! ->  | E20: =#REF!+#REF!+#REF!+#REF!+#REF!+#REF!+#REF!+#REF!+#REF!+#REF! ->  | G20: =#REF!+#REF!+#REF!+#REF!+#REF!+#REF!+#REF!+#REF!+#REF!+#REF! ->  | I20: =D20+G20 ->  | J20: =E20+B20 ->  | K20: =IF(J20>0,L20/J20," ") ->  | L20: =G20+D20 ->  | N20: =D20+G20 -> 
A21: C.2 Equipment (complete 'Depreciation cost' sheet)
A22: Equipment | B22: =#REF!+#REF!+#REF!+#REF!+#REF!+#REF!+#REF!+#REF!+#REF!+#REF! ->  | D22: =#REF!+#REF!+#REF!+#REF!+#REF!+#REF!+#REF!+#REF!+#REF!+#REF! ->  | E22: =#REF!+#REF!+#REF!+#REF!+#REF!+#REF!+#REF!+#REF!+#REF!+#REF! ->  | G22: =#REF!+#REF!+#REF!+#REF!+#REF!+#REF!+#REF!+#REF!+#REF!+#REF! ->  | I22: =D22+G22 ->  | J22: =E22+B22 ->  | K22: =IF(J22>0,L22/J22," ") ->  | L22: =G22+D22 ->  | N22: =D22+G22 -> 
A23: Infrastructure | B23: =#REF!+#REF!+#REF!+#REF!+#REF!+#REF!+#REF!+#REF!+#REF!+#REF! ->  | D23: =#REF!+#REF!+#REF!+#REF!+#REF!+#REF!+#REF!+#REF!+#REF!+#REF! ->  | E23: =#REF!+#REF!+#REF!+#REF!+#REF!+#REF!+#REF!+#REF!+#REF!+#REF! ->  | G23: =#REF!+#REF!+#REF!+#REF!+#REF!+#REF!+#REF!+#REF!+#REF!+#REF! ->  | I23: =D23+G23 ->  | J23: =E23+B23 ->  | K23: =IF(J23>0,L23/J23," ") ->  | L23: =G23+D23 ->  | N23: =D23+G23 -> 
A24: Other assets | B24: =#REF!+#REF!+#REF!+#REF!+#REF!+#REF!+#REF!+#REF!+#REF!+#REF! ->  | D24: =#REF!+#REF!+#REF!+#REF!+#REF!+#REF!+#REF!+#REF!+#REF!+#REF! ->  | E24: =#REF!+#REF!+#REF!+#REF!+#REF!+#REF!+#REF!+#REF!+#REF!+#REF! ->  | G24: =#REF!+#REF!+#REF!+#REF!+#REF!+#REF!+#REF!+#REF!+#REF!+#REF! ->  | I24: =D24+G24 ->  | J24: =E24+B24 ->  | K24: =IF(J24>0,L24/J24," ") ->  | L24: =G24+D24 ->  | N24: =D24+G24 -> 
A25: C.3 Other goods, works and services
A26: Consumables | B26: =#REF!+#REF!+#REF!+#REF!+#REF!+#REF!+#REF!+#REF!+#REF!+#REF! ->  | D26: =#REF!+#REF!+#REF!+#REF!+#REF!+#REF!+#REF!+#REF!+#REF!+#REF! ->  | E26: =#REF!+#REF!+#REF!+#REF!+#REF!+#REF!+#REF!+#REF!+#REF!+#REF! ->  | G26: =#REF!+#REF!+#REF!+#REF!+#REF!+#REF!+#REF!+#REF!+#REF!+#REF! ->  | I26: =D26+G26 ->  | J26: =E26+B26 ->  | K26: =IF(J26>0,L26/J26," ") ->  | L26: =G26+D26 ->  | N26: =D26+G26 -> 
A27: Services for meetings, seminars | B27: =#REF!+#REF!+#REF!+#REF!+#REF!+#REF!+#REF!+#REF!+#REF!+#REF! ->  | D27: =#REF!+#REF!+#REF!+#REF!+#REF!+#REF!+#REF!+#REF!+#REF!+#REF! ->  | E27: =#REF!+#REF!+#REF!+#REF!+#REF!+#REF!+#REF!+#REF!+#REF!+#REF! ->  | G27: =#REF!+#REF!+#REF!+#REF!+#REF!+#REF!+#REF!+#REF!+#REF!+#REF! ->  | I27: =D27+G27 ->  | J27: =E27+B27 ->  | L27: =G27+D27 ->  | N27: =D27+G27 -> 
A28: Services for dissemination activities (including website) | B28: =#REF!+#REF!+#REF!+#REF!+#REF!+#REF!+#REF!+#REF!+#REF!+#REF! ->  | D28: =#REF!+#REF!+#REF!+#REF!+#REF!+#REF!+#REF!+#REF!+#REF!+#REF! ->  | E28: =#REF!+#REF!+#REF!+#REF!+#REF!+#REF!+#REF!+#REF!+#REF!+#REF! ->  | G28: =#REF!+#REF!+#REF!+#REF!+#REF!+#REF!+#REF!+#REF!+#REF!+#REF! ->  | I28: =D28+G28 ->  | J28: =E28+B28 ->  | L28: =G28+D28 ->  | N28: =D28+G28 -> 
A29: Publication fees | B29: =#REF!+#REF!+#REF!+#REF!+#REF!+#REF!+#REF!+#REF!+#REF!+#REF! ->  | D29: =#REF!+#REF!+#REF!+#REF!+#REF!+#REF!+#REF!+#REF!+#REF!+#REF! ->  | E29: =#REF!+#REF!+#REF!+#REF!+#REF!+#REF!+#REF!+#REF!+#REF!+#REF! ->  | G29: =#REF!+#REF!+#REF!+#REF!+#REF!+#REF!+#REF!+#REF!+#REF!+#REF! ->  | I29: =D29+G29 ->  | J29: =E29+B29 ->  | L29: =G29+D29 ->  | N29: =D29+G29 -> 
A30: Other (shipment,insurance, translation, etc.) | B30: =#REF!+#REF!+#REF!+#REF!+#REF!+#REF!+#REF!+#REF!+#REF!+#REF! ->  | D30: =#REF!+#REF!+#REF!+#REF!+#REF!+#REF!+#REF!+#REF!+#REF!+#REF! ->  | E30: =#REF!+#REF!+#REF!+#REF!+#REF!+#REF!+#REF!+#REF!+#REF!+#REF! ->  | G30: =#REF!+#REF!+#REF!+#REF!+#REF!+#REF!+#REF!+#REF!+#REF!+#REF! ->  | I30: =D30+G30 ->  | J30: =E30+B30 ->  | L30: =G30+D30 ->  | N30: =D30+G30 -> 
A31: D. OTHER COST CATEGORIES
A32: D.1 Financial support to third parties (if applicable in the topic specific conditions) | B32: =#REF!+#REF!+#REF!+#REF!+#REF!+#REF!+#REF!+#REF!+#REF!+#REF! ->  | D32: =#REF!+#REF!+#REF!+#REF!+#REF!+#REF!+#REF!+#REF!+#REF!+#REF! ->  | E32: =#REF!+#REF!+#REF!+#REF!+#REF!+#REF!+#REF!+#REF!+#REF!+#REF! ->  | G32: =#REF!+#REF!+#REF!+#REF!+#REF!+#REF!+#REF!+#REF!+#REF!+#REF! ->  | I32: =D32+G32 ->  | J32: =E32+B32 ->  | K32: =IF(J32>0,L32/J32," ") ->  | L32: =G32+D32 ->  | N32: =D32+G32 -> 
A33: D.2 Internally invoiced goods and services | B33: =#REF!+#REF!+#REF!+#REF!+#REF!+#REF!+#REF!+#REF!+#REF!+#REF! ->  | D33: =#REF!+#REF!+#REF!+#REF!+#REF!+#REF!+#REF!+#REF!+#REF!+#REF! ->  | E33: =#REF!+#REF!+#REF!+#REF!+#REF!+#REF!+#REF!+#REF!+#REF!+#REF! ->  | G33: =#REF!+#REF!+#REF!+#REF!+#REF!+#REF!+#REF!+#REF!+#REF!+#REF! ->  | I33: =D33+G33 ->  | J33: =E33+B33 ->  | K33: =IF(J33>0,L33/J33," ") ->  | L33: =G33+D33 ->  | N33: =D33+G33 -> 
A34: D.3 Transnational access to research infrastructure unit costs (if required in the topic specific conditions) | B34: =#REF!+#REF!+#REF!+#REF!+#REF!+#REF!+#REF!+#REF!+#REF!+#REF! ->  | D34: =#REF!+#REF!+#REF!+#REF!+#REF!+#REF!+#REF!+#REF!+#REF!+#REF! ->  | E34: =#REF!+#REF!+#REF!+#REF!+#REF!+#REF!+#REF!+#REF!+#REF!+#REF! ->  | G34: =#REF!+#REF!+#REF!+#REF!+#REF!+#REF!+#REF!+#REF!+#REF!+#REF! ->  | I34: =D34+G34 ->  | J34: =E34+B34 ->  | L34: =G34+D34 ->  | N34: =D34+G34 -> 
A35: D.4 Virtual access to research infrastructure unit costs (if required in the topic specific conditions) | B35: =#REF!+#REF!+#REF!+#REF!+#REF!+#REF!+#REF!+#REF!+#REF!+#REF! ->  | D35: =#REF!+#REF!+#REF!+#REF!+#REF!+#REF!+#REF!+#REF!+#REF!+#REF! ->  | E35: =#REF!+#REF!+#REF!+#REF!+#REF!+#REF!+#REF!+#REF!+#REF!+#REF! ->  | G35: =#REF!+#REF!+#REF!+#REF!+#REF!+#REF!+#REF!+#REF!+#REF!+#REF! ->  | I35: =D35+G35 ->  | J35: =E35+B35 ->  | L35: =G35+D35 ->  | N35: =D35+G35 -> 
A36: D.5 PCP/PPI procurement costs (if mentioned as eligible in the topic specific conditions) | B36: =#REF!+#REF!+#REF!+#REF!+#REF!+#REF!+#REF!+#REF!+#REF!+#REF! ->  | D36: =#REF!+#REF!+#REF!+#REF!+#REF!+#REF!+#REF!+#REF!+#REF!+#REF! ->  | E36: =#REF!+#REF!+#REF!+#REF!+#REF!+#REF!+#REF!+#REF!+#REF!+#REF! ->  | G36: =#REF!+#REF!+#REF!+#REF!+#REF!+#REF!+#REF!+#REF!+#REF!+#REF! ->  | I36: =D36+G36 ->  | J36: =E36+B36 ->  | L36: =G36+D36 ->  | N36: =D36+G36 -> 
A38: TOTAL DIRECT PERSONNEL COSTS AND PURCHASE COSTS (A+C) | D38: =SUM(D8:D30) ->  | G38: =SUM(G8:G30) ->  | I38: =D38+G38 ->  | J38: =E38+B38 -> 0 | L38: =G38+D38 ->  | N38: =D38+G38 -> 
A39: TOTAL DIRECT COSTS (A+B+C+D) | D39: =SUM(D8:D30) ->  | G39: =SUM(G8:G37) ->  | I39: =D39+G39 ->  | J39: =E39+B39 -> 0 | L39: =G39+D39 ->  | N39: =D39+G39 -> 
A41: E. INDIRECT COSTS (25% * (A+C)) | D41: =+D38*0.25 ->  | G41: =+G38*0.25 ->  | I41: =D41+G41 ->  | J41: =E41+B41 -> 0 | L41: =G41+D41 ->  | N41: =D41+G41 -> 
A43: F. TOTAL COSTS (A+B+C+D+E) | D43: =D39+D41 ->  | G43: =G39+G41 ->  | I43: =D43+G43 ->  | J43: =E43+B43 -> 0 | L43: =G43+D43 ->  | N43: =D43+G43 -> 
A46: SUM OF ALL WORK PACKAGES FOR ALL BENEFICIARIES
B47: UNITS | C47: AVERAGE COST PER UNIT | D47: BE TOTAL COSTS | E47: UNITS | F47: AVERAGE COST PER UNIT | G47: TP TOTAL COSTS
A48: A. DIRECT PERSONNEL COSTS
A49: A.1 Employees (or equivalent)
A50: SENIOR SCIENTISTS (or equivalent in the private sector) | B50: =#REF!+#REF!+#REF!+#REF!+#REF!+#REF!+#REF!+#REF!+#REF!+#REF! ->  | D50: =#REF!+#REF!+#REF!+#REF!+#REF!+#REF!+#REF!+#REF!+#REF!+#REF! ->  | E50: =#REF!+#REF!+#REF!+#REF!+#REF!+#REF!+#REF!+#REF!+#REF!+#REF! ->  | G50: =#REF!+#REF!+#REF!+#REF!+#REF!+#REF!+#REF!+#REF!+#REF!+#REF! ->  | I50: =D50+G50 ->  | J50: =E50+B50 ->  | K50: =IF(J50>0,L50/J50," ") ->  | L50: =G50+D50 ->  | N50: =D50+G50 -> 
A51: JUNIOR SCIENTISTS (or equivalent in the private sector) | B51: =#REF!+#REF!+#REF!+#REF!+#REF!+#REF!+#REF!+#REF!+#REF!+#REF! ->  | D51: =#REF!+#REF!+#REF!+#REF!+#REF!+#REF!+#REF!+#REF!+#REF!+#REF! ->  | E51: =#REF!+#REF!+#REF!+#REF!+#REF!+#REF!+#REF!+#REF!+#REF!+#REF! ->  | G51: =#REF!+#REF!+#REF!+#REF!+#REF!+#REF!+#REF!+#REF!+#REF!+#REF! -> 
A52: TECHNICAL PERSONNEL (or equivalent in the private sector) | B52: =#REF!+#REF!+#REF!+#REF!+#REF!+#REF!+#REF!+#REF!+#REF!+#REF! ->  | D52: =#REF!+#REF!+#REF!+#REF!+#REF!+#REF!+#REF!+#REF!+#REF!+#REF! ->  | E52: =#REF!+#REF!+#REF!+#REF!+#REF!+#REF!+#REF!+#REF!+#REF!+#REF! ->  | G52: =#REF!+#REF!+#REF!+#REF!+#REF!+#REF!+#REF!+#REF!+#REF!+#REF! -> 
A53: ADMINISTRATIVE PERSONNEL (or equivalent in the private sector) | B53: =#REF!+#REF!+#REF!+#REF!+#REF!+#REF!+#REF!+#REF!+#REF!+#REF! ->  | D53: =#REF!+#REF!+#REF!+#REF!+#REF!+#REF!+#REF!+#REF!+#REF!+#REF! ->  | E53: =#REF!+#REF!+#REF!+#REF!+#REF!+#REF!+#REF!+#REF!+#REF!+#REF! ->  | G53: =#REF!+#REF!+#REF!+#REF!+#REF!+#REF!+#REF!+#REF!+#REF!+#REF! -> 
A54: OTHERS | B54: =#REF!+#REF!+#REF!+#REF!+#REF!+#REF!+#REF!+#REF!+#REF!+#REF! ->  | D54: =#REF!+#REF!+#REF!+#REF!+#REF!+#REF!+#REF!+#REF!+#REF!+#REF! ->  | E54: =#REF!+#REF!+#REF!+#REF!+#REF!+#REF!+#REF!+#REF!+#REF!+#REF! ->  | G54: =#REF!+#REF!+#REF!+#REF!+#REF!+#REF!+#REF!+#REF!+#REF!+#REF! -> 
A55: A.2 Natural Persons under direct contract | B55: =#REF!+#REF!+#REF!+#REF!+#REF!+#REF!+#REF!+#REF!+#REF!+#REF! ->  | D55: =#REF!+#REF!+#REF!+#REF!+#REF!+#REF!+#REF!+#REF!+#REF!+#REF! ->  | E55: =#REF!+#REF!+#REF!+#REF!+#REF!+#REF!+#REF!+#REF!+#REF!+#REF! ->  | G55: =#REF!+#REF!+#REF!+#REF!+#REF!+#REF!+#REF!+#REF!+#REF!+#REF! -> 
A56: A.3 Seconded Persons | B56: =#REF!+#REF!+#REF!+#REF!+#REF!+#REF!+#REF!+#REF!+#REF!+#REF! ->  | D56: =#REF!+#REF!+#REF!+#REF!+#REF!+#REF!+#REF!+#REF!+#REF!+#REF! ->  | E56: =#REF!+#REF!+#REF!+#REF!+#REF!+#REF!+#REF!+#REF!+#REF!+#REF! ->  | G56: =#REF!+#REF!+#REF!+#REF!+#REF!+#REF!+#REF!+#REF!+#REF!+#REF! -> 
A57: A.4 SME owners and natural person beneficiaries | B57: =#REF!+#REF!+#REF!+#REF!+#REF!+#REF!+#REF!+#REF!+#REF!+#REF! ->  | D57: =#REF!+#REF!+#REF!+#REF!+#REF!+#REF!+#REF!+#REF!+#REF!+#REF! ->  | E57: =#REF!+#REF!+#REF!+#REF!+#REF!+#REF!+#REF!+#REF!+#REF!+#REF! ->  | G57: =#REF!+#REF!+#REF!+#REF!+#REF!+#REF!+#REF!+#REF!+#REF!+#REF! -> 
A58: B. DIRECT SUBCONTRACTING COSTS
B59: =#REF!+#REF!+#REF!+#REF!+#REF!+#REF!+#REF!+#REF!+#REF!+#REF! ->  | D59: =#REF!+#REF!+#REF!+#REF!+#REF!+#REF!+#REF!+#REF!+#REF!+#REF! ->  | E59: =#REF!+#REF!+#REF!+#REF!+#REF!+#REF!+#REF!+#REF!+#REF!+#REF! ->  | G59: =#REF!+#REF!+#REF!+#REF!+#REF!+#REF!+#REF!+#REF!+#REF!+#REF! ->  | I59: =D59+G59 ->  | J59: =E59+B59 ->  | L59: =G59+D59 ->  | N59: =D59+G59 -> 
A60: C. DIRECT PURCHASE COSTS
A61: C.1 Travel and subsistence | B61: =#REF!+#REF!+#REF!+#REF!+#REF!+#REF!+#REF!+#REF!+#REF!+#REF! ->  | D61: =#REF!+#REF!+#REF!+#REF!+#REF!+#REF!+#REF!+#REF!+#REF!+#REF! ->  | E61: =#REF!+#REF!+#REF!+#REF!+#REF!+#REF!+#REF!+#REF!+#REF!+#REF! ->  | G61: =#REF!+#REF!+#REF!+#REF!+#REF!+#REF!+#REF!+#REF!+#REF!+#REF! ->  | I61: =D61+G61 ->  | J61: =E61+B61 ->  | K61: =IF(J61>0,L61/J61," ") ->  | L61: =G61+D61 ->  | N61: =D61+G61 -> 
A62: C.2 Equipment (complete 'Depreciation cost' sheet)
A63: Equipment | B63: =#REF!+#REF!+#REF!+#REF!+#REF!+#REF!+#REF!+#REF!+#REF!+#REF! ->  | D63: =#REF!+#REF!+#REF!+#REF!+#REF!+#REF!+#REF!+#REF!+#REF!+#REF! ->  | E63: =#REF!+#REF!+#REF!+#REF!+#REF!+#REF!+#REF!+#REF!+#REF!+#REF! ->  | G63: =#REF!+#REF!+#REF!+#REF!+#REF!+#REF!+#REF!+#REF!+#REF!+#REF! ->  | I63: =D63+G63 ->  | J63: =E63+B63 ->  | K63: =IF(J63>0,L63/J63," ") ->  | L63: =G63+D63 ->  | N63: =D63+G63 -> 
A64: Infrastructure | B64: =#REF!+#REF!+#REF!+#REF!+#REF!+#REF!+#REF!+#REF!+#REF!+#REF! ->  | D64: =#REF!+#REF!+#REF!+#REF!+#REF!+#REF!+#REF!+#REF!+#REF!+#REF! ->  | E64: =#REF!+#REF!+#REF!+#REF!+#REF!+#REF!+#REF!+#REF!+#REF!+#REF! ->  | G64: =#REF!+#REF!+#REF!+#REF!+#REF!+#REF!+#REF!+#REF!+#REF!+#REF! ->  | I64: =D64+G64 ->  | J64: =E64+B64 ->  | K64: =IF(J64>0,L64/J64," ") ->  | L64: =G64+D64 ->  | N64: =D64+G64 -> 
A65: Other assets | B65: =#REF!+#REF!+#REF!+#REF!+#REF!+#REF!+#REF!+#REF!+#REF!+#REF! ->  | D65: =#REF!+#REF!+#REF!+#REF!+#REF!+#REF!+#REF!+#REF!+#REF!+#REF! ->  | E65: =#REF!+#REF!+#REF!+#REF!+#REF!+#REF!+#REF!+#REF!+#REF!+#REF! ->  | G65: =#REF!+#REF!+#REF!+#REF!+#REF!+#REF!+#REF!+#REF!+#REF!+#REF! ->  | I65: =D65+G65 ->  | J65: =E65+B65 ->  | K65: =IF(J65>0,L65/J65," ") ->  | L65: =G65+D65 ->  | N65: =D65+G65 -> 
A66: C.3 Other goods, works and services
A67: Consumables | B67: =#REF!+#REF!+#REF!+#REF!+#REF!+#REF!+#REF!+#REF!+#REF!+#REF! ->  | D67: =#REF!+#REF!+#REF!+#REF!+#REF!+#REF!+#REF!+#REF!+#REF!+#REF! ->  | E67: =#REF!+#REF!+#REF!+#REF!+#REF!+#REF!+#REF!+#REF!+#REF!+#REF! ->  | G67: =#REF!+#REF!+#REF!+#REF!+#REF!+#REF!+#REF!+#REF!+#REF!+#REF! ->  | I67: =D67+G67 ->  | J67: =E67+B67 ->  | K67: =IF(J67>0,L67/J67," ") ->  | L67: =G67+D67 ->  | N67: =D67+G67 -> 
A68: Services for meetings, seminars | B68: =#REF!+#REF!+#REF!+#REF!+#REF!+#REF!+#REF!+#REF!+#REF!+#REF! ->  | D68: =#REF!+#REF!+#REF!+#REF!+#REF!+#REF!+#REF!+#REF!+#REF!+#REF! ->  | E68: =#REF!+#REF!+#REF!+#REF!+#REF!+#REF!+#REF!+#REF!+#REF!+#REF! ->  | G68: =#REF!+#REF!+#REF!+#REF!+#REF!+#REF!+#REF!+#REF!+#REF!+#REF! ->  | I68: =D68+G68 ->  | J68: =E68+B68 ->  | L68: =G68+D68 ->  | N68: =D68+G68 -> 
A69: Services for dissemination activities (including website) | B69: =#REF!+#REF!+#REF!+#REF!+#REF!+#REF!+#REF!+#REF!+#REF!+#REF! ->  | D69: =#REF!+#REF!+#REF!+#REF!+#REF!+#REF!+#REF!+#REF!+#REF!+#REF! ->  | E69: =#REF!+#REF!+#REF!+#REF!+#REF!+#REF!+#REF!+#REF!+#REF!+#REF! ->  | G69: =#REF!+#REF!+#REF!+#REF!+#REF!+#REF!+#REF!+#REF!+#REF!+#REF! ->  | I69: =D69+G69 ->  | J69: =E69+B69 ->  | L69: =G69+D69 ->  | N69: =D69+G69 -> 
A70: Publication fees | B70: =#REF!+#REF!+#REF!+#REF!+#REF!+#REF!+#REF!+#REF!+#REF!+#REF! ->  | D70: =#REF!+#REF!+#REF!+#REF!+#REF!+#REF!+#REF!+#REF!+#REF!+#REF! ->  | E70: =#REF!+#REF!+#REF!+#REF!+#REF!+#REF!+#REF!+#REF!+#REF!+#REF! ->  | G70: =#REF!+#REF!+#REF!+#REF!+#REF!+#REF!+#REF!+#REF!+#REF!+#REF! ->  | I70: =D70+G70 ->  | J70: =E70+B70 ->  | L70: =G70+D70 ->  | N70: =D70+G70 -> 
A71: Other (shipment,insurance, translation, etc.) | B71: =#REF!+#REF!+#REF!+#REF!+#REF!+#REF!+#REF!+#REF!+#REF!+#REF! ->  | D71: =#REF!+#REF!+#REF!+#REF!+#REF!+#REF!+#REF!+#REF!+#REF!+#REF! ->  | E71: =#REF!+#REF!+#REF!+#REF!+#REF!+#REF!+#REF!+#REF!+#REF!+#REF! ->  | G71: =#REF!+#REF!+#REF!+#REF!+#REF!+#REF!+#REF!+#REF!+#REF!+#REF! ->  | I71: =D71+G71 ->  | J71: =E71+B71 ->  | L71: =G71+D71 ->  | N71: =D71+G71 -> 
A72: D. OTHER COST CATEGORIES
A73: D.1 Financial support to third parties (if applicable in the topic specific conditions) | B73: =#REF!+#REF!+#REF!+#REF!+#REF!+#REF!+#REF!+#REF!+#REF!+#REF! ->  | D73: =#REF!+#REF!+#REF!+#REF!+#REF!+#REF!+#REF!+#REF!+#REF!+#REF! ->  | E73: =#REF!+#REF!+#REF!+#REF!+#REF!+#REF!+#REF!+#REF!+#REF!+#REF! ->  | G73: =#REF!+#REF!+#REF!+#REF!+#REF!+#REF!+#REF!+#REF!+#REF!+#REF! ->  | I73: =D73+G73 ->  | J73: =E73+B73 ->  | K73: =IF(J73>0,L73/J73," ") ->  | L73: =G73+D73 ->  | N73: =D73+G73 -> 
A74: D.2 Internally invoiced goods and services | B74: =#REF!+#REF!+#REF!+#REF!+#REF!+#REF!+#REF!+#REF!+#REF!+#REF! ->  | D74: =#REF!+#REF!+#REF!+#REF!+#REF!+#REF!+#REF!+#REF!+#REF!+#REF! ->  | E74: =#REF!+#REF!+#REF!+#REF!+#REF!+#REF!+#REF!+#REF!+#REF!+#REF! ->  | G74: =#REF!+#REF!+#REF!+#REF!+#REF!+#REF!+#REF!+#REF!+#REF!+#REF! ->  | I74: =D74+G74 ->  | J74: =E74+B74 ->  | K74: =IF(J74>0,L74/J74," ") ->  | L74: =G74+D74 ->  | N74: =D74+G74 -> 
A75: D.3 Transnational access to research infrastructure unit costs (if required in the topic specific conditions) | B75: =#REF!+#REF!+#REF!+#REF!+#REF!+#REF!+#REF!+#REF!+#REF!+#REF! ->  | D75: =#REF!+#REF!+#REF!+#REF!+#REF!+#REF!+#REF!+#REF!+#REF!+#REF! ->  | E75: =#REF!+#REF!+#REF!+#REF!+#REF!+#REF!+#REF!+#REF!+#REF!+#REF! ->  | G75: =#REF!+#REF!+#REF!+#REF!+#REF!+#REF!+#REF!+#REF!+#REF!+#REF! ->  | I75: =D75+G75 ->  | J75: =E75+B75 ->  | L75: =G75+D75 ->  | N75: =D75+G75 -> 
A76: D.4 Virtual access to research infrastructure unit costs (if required in the topic specific conditions) | B76: =#REF!+#REF!+#REF!+#REF!+#REF!+#REF!+#REF!+#REF!+#REF!+#REF! ->  | D76: =#REF!+#REF!+#REF!+#REF!+#REF!+#REF!+#REF!+#REF!+#REF!+#REF! ->  | E76: =#REF!+#REF!+#REF!+#REF!+#REF!+#REF!+#REF!+#REF!+#REF!+#REF! ->  | G76: =#REF!+#REF!+#REF!+#REF!+#REF!+#REF!+#REF!+#REF!+#REF!+#REF! ->  | I76: =D76+G76 ->  | J76: =E76+B76 ->  | L76: =G76+D76 ->  | N76: =D76+G76 -> 
A77: D.5 PCP/PPI procurement costs (if mentioned as eligible in the topic specific conditions) | B77: =#REF!+#REF!+#REF!+#REF!+#REF!+#REF!+#REF!+#REF!+#REF!+#REF! ->  | D77: =#REF!+#REF!+#REF!+#REF!+#REF!+#REF!+#REF!+#REF!+#REF!+#REF! ->  | E77: =#REF!+#REF!+#REF!+#REF!+#REF!+#REF!+#REF!+#REF!+#REF!+#REF! ->  | G77: =#REF!+#REF!+#REF!+#REF!+#REF!+#REF!+#REF!+#REF!+#REF!+#REF! ->  | I77: =D77+G77 ->  | J77: =E77+B77 ->  | L77: =G77+D77 ->  | N77: =D77+G77 -> 
A79: TOTAL DIRECT PERSONNEL COSTS AND PURCHASE COSTS (A+C) | D79: =SUM(D49:D77) ->  | G79: =SUM(G49:G78) ->  | I79: =D79+G79 ->  | J79: =E79+B79 -> 0 | L79: =G79+D79 ->  | N79: =D79+G79 -> 
A80: TOTAL DIRECT COSTS (A+B+C+D) | D80: =SUM(D49:D78) ->  | G80: =SUM(G49:G78) ->  | I80: =D80+G80 ->  | J80: =E80+B80 -> 0 | L80: =G80+D80 ->  | N80: =D80+G80 -> 
A82: E. INDIRECT COSTS (25% * (A+C)) | D82: =+D79*0.25 ->  | G82: =+G79*0.25 ->  | I82: =D82+G82 ->  | J82: =E82+B82 -> 0 | L82: =G82+D82 ->  | N82: =D82+G82 -> 
A84: F. TOTAL COSTS (A+B+C+D+E) | D84: =D80+D82 ->  | G84: =G80+G82 ->  | I84: =D84+G84 ->  | J84: =E84+B84 -> 0 | L84: =G84+D84 ->  | N84: =D84+G84 -> 

Sheet BE Template (hidden)
A1: BENEFICIARY x - CALCULATION SHEET | C1: View Summary | E1: Affiliated Entity n
A3: COST CATEGORY | B3: UNITS | C3: COST PER UNIT | D3: BE TOTAL COSTS | E3: UNITS | F3: COST PER UNIT | G3: AE TOTAL COSTS | I3: BE+AE TOTAL COSTS
A5: WORK PACKAGE
A7: A. DIRECT PERSONNEL COSTS
A8: A.1 Employees (or equivalent)
A9: SENIOR SCIENTISTS (or equivalent in the private sector) | D9: =B9*C9 -> 0 | G9: =E9*F9 -> 0 | I9: =D9+G9 -> 0
A10: JUNIOR SCIENTISTS (or equivalent in the private sector) | D10: 0 | G10: 0 | I10: 0
A11: TECHNICAL PERSONNEL (or equivalent in the private sector) | D11: 0 | G11: 0 | I11: 0
A12: ADMINISTRATIVE PERSONNEL (or equivalent in the private sector) | D12: 0 | G12: 0 | I12: 0
A13: OTHERS | D13: 0 | G13: 0 | I13: 0
A14: A.2 Natural Persons under direct contract | D14: 0 | G14: 0 | I14: 0
A15: A.3 Seconded Persons | D15: 0 | G15: 0 | I15: 0
A16: A.4 SME owners and natural person beneficiaries | C16: =5080*VLOOKUP('BE list'!D4,CountryList!A2:B164,2,FALSE) -> 5080 | D16: 0 | G16: 0 | I16: 0
A17: B. DIRECT SUBCONTRACTING COSTS
D18: =B18*C18 -> 0 | G18: =E18*F18 -> 0 | I18: =D18+G18 -> 0
A19: C. DIRECT PURCHASE COSTS
A20: C.1 Travel and subsistence | D20: =B20*C20 -> 0 | G20: =E20*F20 -> 0 | I20: =D20+G20 -> 0
A21: C.2 Equipment (complete 'Depreciation costs' sheet)
A22: Equipment | D22: =B22*C22 -> 0 | G22: =E22*F22 -> 0 | I22: =D22+G22 -> 0
A23: Infrastructure | D23: =B23*C23 -> 0 | G23: =E23*F23 -> 0 | I23: =D23+G23 -> 0
A24: Other assets | D24: =B24*C24 -> 0 | G24: =E24*F24 -> 0 | I24: =D24+G24 -> 0
A25: C.3 Other goods, works and services
A26: Consumables | D26: =B26*C26 -> 0 | G26: =E26*F26 -> 0 | I26: =D26+G26 -> 0
A27: Services for meetings, seminars | D27: =B27*C27 -> 0 | G27: =E27*F27 -> 0 | I27: =D27+G27 -> 0
A28: Services for dissemination activities (including website) | D28: =B28*C28 -> 0 | G28: =E28*F28 -> 0 | I28: =D28+G28 -> 0
A29: Publication fees | D29: =B29*C29 -> 0 | G29: =E29*F29 -> 0 | I29: =D29+G29 -> 0
A30: Other (shipment, insurance, translation, etc.) | D30: =B30*C30 -> 0 | G30: =E30*F30 -> 0 | I30: =D30+G30 -> 0
A31: D. OTHER COST CATEGORIES
A32: D.1 Financial support to third parties (if applicable in the topic specific conditions) | D32: =B32*C32 -> 0 | G32: =E32*F32 -> 0 | I32: =D32+G32 -> 0
A33: D.2 Internally invoiced goods and services | D33: =B33*C33 -> 0 | G33: =E33*F33 -> 0 | I33: =D33+G33 -> 0
A34: D.3 Transnational access to research infrastructure unit costs (if mentioned as eligible in the topic specific conditions) | D34: =B34*C34 -> 0 | G34: =E34*F34 -> 0 | I34: =D34+G34 -> 0
A35: D.4 Virtual access to research infrastructure unit costs (if mentioned as eligible in the topic specific conditions) | D35: =B35*C35 -> 0 | G35: =E35*F35 -> 0 | I35: =D35+G35 -> 0
A36: D.5 PCP/PPI procurement costs (if mentioned as eligible in the topic specific conditions) | D36: =B36*C36 -> 0 | G36: =E36*F36 -> 0 | I36: =D36+G36 -> 0
A38: TOTAL DIRECT PERSONNEL COSTS AND PURCHASE COSTS (A+C) | D38: =SUM(D9:D16)+SUM(D20:D30) -> 0 | G38: =SUM(G9:G16)+SUM(G20:G30) -> 0 | I38: =SUM(I9:I16)+SUM(I20:I30) -> 0
A39: TOTAL DIRECT COSTS (A+B+C+D) | D39: =SUM(D8:D36) -> 0 | G39: =SUM(G8:G36) -> 0 | I39: =SUM(I8:I36) -> 0
A41: E. INDIRECT COSTS (25% * (A+C)) | D41: =D38*0.25 -> 0 | G41: =G38*0.25 -> 0 | I41: =I38*0.25 -> 0
A43: F. TOTAL COSTS (A+B+C+D+E) | D43: =D39+D41 -> 0 | G43: =G39+G41 -> 0 | I43: =I39+I41 -> 0
A46: SUMMARY
A48: A. DIRECT PERSONNEL COSTS
A49: A.1 Employees (or equivalent)
A50: SENIOR SCIENTISTS (or equivalent in the private sector) | B50: =#REF!+#REF!+#REF!+#REF!+#REF!+#REF!+#REF!+#REF!+#REF!+#REF!+#REF!+#REF!+#REF!+#REF!+#REF!+#REF!+#REF!+#REF!+#REF!+B9 ->  | C50: =IF(B50>0,D50/B50," ") ->  | D50: =#REF!+#REF!+#REF!+#REF!+#REF!+#REF!+#REF!+#REF!+#REF!+#REF!+#REF!+#REF!+#REF!+#REF!+#REF!+#REF!+#REF!+#REF!+#REF!+D9 ->  | E50: =#REF!+#REF!+#REF!+#REF!+#REF!+#REF!+#REF!+#REF!+#REF!+#REF!+#REF!+#REF!+#REF!+#REF!+#REF!+#REF!+#REF!+#REF!+#REF!+E9 ->  | F50: =IF(E50>0,G50/E50," ") ->  | G50: =#REF!+#REF!+#REF!+#REF!+#REF!+#REF!+#REF!+#REF!+#REF!+#REF!+#REF!+#REF!+#REF!+#REF!+#REF!+#REF!+#REF!+#REF!+#REF!+G9 ->  | I50: =D50+G50 -> 
A51: JUNIOR SCIENTISTS (or equivalent in the private sector) | B51: =#REF!+#REF!+#REF!+#REF!+#REF!+#REF!+#REF!+#REF!+#REF!+#REF!+#REF!+#REF!+#REF!+#REF!+#REF!+#REF!+#REF!+#REF!+#REF!+B10 ->  | D51: =#REF!+#REF!+#REF!+#REF!+#REF!+#REF!+#REF!+#REF!+#REF!+#REF!+#REF!+#REF!+#REF!+#REF!+#REF!+#REF!+#REF!+#REF!+#REF!+D10 ->  | E51: =#REF!+#REF!+#REF!+#REF!+#REF!+#REF!+#REF!+#REF!+#REF!+#REF!+#REF!+#REF!+#REF!+#REF!+#REF!+#REF!+#REF!+#REF!+#REF!+E10 ->  | G51: =#REF!+#REF!+#REF!+#REF!+#REF!+#REF!+#REF!+#REF!+#REF!+#REF!+#REF!+#REF!+#REF!+#REF!+#REF!+#REF!+#REF!+#REF!+#REF!+G10 -> 
A52: TECHNICAL PERSONNEL (or equivalent in the private sector) | B52: =#REF!+#REF!+#REF!+#REF!+#REF!+#REF!+#REF!+#REF!+#REF!+#REF!+#REF!+#REF!+#REF!+#REF!+#REF!+#REF!+#REF!+#REF!+#REF!+B11 ->  | D52: =#REF!+#REF!+#REF!+#REF!+#REF!+#REF!+#REF!+#REF!+#REF!+#REF!+#REF!+#REF!+#REF!+#REF!+#REF!+#REF!+#REF!+#REF!+#REF!+D11 ->  | E52: =#REF!+#REF!+#REF!+#REF!+#REF!+#REF!+#REF!+#REF!+#REF!+#REF!+#REF!+#REF!+#REF!+#REF!+#REF!+#REF!+#REF!+#REF!+#REF!+E11 ->  | G52: =#REF!+#REF!+#REF!+#REF!+#REF!+#REF!+#REF!+#REF!+#REF!+#REF!+#REF!+#REF!+#REF!+#REF!+#REF!+#REF!+#REF!+#REF!+#REF!+G11 -> 
A53: ADMINISTRATIVE PERSONNEL (or equivalent in the private sector) | B53: =#REF!+#REF!+#REF!+#REF!+#REF!+#REF!+#REF!+#REF!+#REF!+#REF!+#REF!+#REF!+#REF!+#REF!+#REF!+#REF!+#REF!+#REF!+#REF!+B12 ->  | D53: =#REF!+#REF!+#REF!+#REF!+#REF!+#REF!+#REF!+#REF!+#REF!+#REF!+#REF!+#REF!+#REF!+#REF!+#REF!+#REF!+#REF!+#REF!+#REF!+D12 ->  | E53: =#REF!+#REF!+#REF!+#REF!+#REF!+#REF!+#REF!+#REF!+#REF!+#REF!+#REF!+#REF!+#REF!+#REF!+#REF!+#REF!+#REF!+#REF!+#REF!+E12 ->  | G53: =#REF!+#REF!+#REF!+#REF!+#REF!+#REF!+#REF!+#REF!+#REF!+#REF!+#REF!+#REF!+#REF!+#REF!+#REF!+#REF!+#REF!+#REF!+#REF!+G12 -> 
A54: OTHERS | B54: =#REF!+#REF!+#REF!+#REF!+#REF!+#REF!+#REF!+#REF!+#REF!+#REF!+#REF!+#REF!+#REF!+#REF!+#REF!+#REF!+#REF!+#REF!+#REF!+B13 ->  | D54: =#REF!+#REF!+#REF!+#REF!+#REF!+#REF!+#REF!+#REF!+#REF!+#REF!+#REF!+#REF!+#REF!+#REF!+#REF!+#REF!+#REF!+#REF!+#REF!+D13 ->  | E54: =#REF!+#REF!+#REF!+#REF!+#REF!+#REF!+#REF!+#REF!+#REF!+#REF!+#REF!+#REF!+#REF!+#REF!+#REF!+#REF!+#REF!+#REF!+#REF!+E13 ->  | G54: =#REF!+#REF!+#REF!+#REF!+#REF!+#REF!+#REF!+#REF!+#REF!+#REF!+#REF!+#REF!+#REF!+#REF!+#REF!+#REF!+#REF!+#REF!+#REF!+G13 -> 
A55: A.2 Natural Persons under direct contract | B55: =#REF!+#REF!+#REF!+#REF!+#REF!+#REF!+#REF!+#REF!+#REF!+#REF!+#REF!+#REF!+#REF!+#REF!+#REF!+#REF!+#REF!+#REF!+#REF!+B14 ->  | D55: =#REF!+#REF!+#REF!+#REF!+#REF!+#REF!+#REF!+#REF!+#REF!+#REF!+#REF!+#REF!+#REF!+#REF!+#REF!+#REF!+#REF!+#REF!+#REF!+D14 ->  | E55: =#REF!+#REF!+#REF!+#REF!+#REF!+#REF!+#REF!+#REF!+#REF!+#REF!+#REF!+#REF!+#REF!+#REF!+#REF!+#REF!+#REF!+#REF!+#REF!+E14 ->  | G55: =#REF!+#REF!+#REF!+#REF!+#REF!+#REF!+#REF!+#REF!+#REF!+#REF!+#REF!+#REF!+#REF!+#REF!+#REF!+#REF!+#REF!+#REF!+#REF!+G14 -> 
A56: A.3 Seconded Persons | B56: =#REF!+#REF!+#REF!+#REF!+#REF!+#REF!+#REF!+#REF!+#REF!+#REF!+#REF!+#REF!+#REF!+#REF!+#REF!+#REF!+#REF!+#REF!+#REF!+B15 ->  | D56: =#REF!+#REF!+#REF!+#REF!+#REF!+#REF!+#REF!+#REF!+#REF!+#REF!+#REF!+#REF!+#REF!+#REF!+#REF!+#REF!+#REF!+#REF!+#REF!+D15 ->  | E56: =#REF!+#REF!+#REF!+#REF!+#REF!+#REF!+#REF!+#REF!+#REF!+#REF!+#REF!+#REF!+#REF!+#REF!+#REF!+#REF!+#REF!+#REF!+#REF!+E15 ->  | G56: =#REF!+#REF!+#REF!+#REF!+#REF!+#REF!+#REF!+#REF!+#REF!+#REF!+#REF!+#REF!+#REF!+#REF!+#REF!+#REF!+#REF!+#REF!+#REF!+G15 -> 
A57: A.4 SME owners and natural person beneficiaries | B57: =#REF!+#REF!+#REF!+#REF!+#REF!+#REF!+#REF!+#REF!+#REF!+#REF!+#REF!+#REF!+#REF!+#REF!+#REF!+#REF!+#REF!+#REF!+#REF!+B16 ->  | D57: =#REF!+#REF!+#REF!+#REF!+#REF!+#REF!+#REF!+#REF!+#REF!+#REF!+#REF!+#REF!+#REF!+#REF!+#REF!+#REF!+#REF!+#REF!+#REF!+D16 ->  | E57: =#REF!+#REF!+#REF!+#REF!+#REF!+#REF!+#REF!+#REF!+#REF!+#REF!+#REF!+#REF!+#REF!+#REF!+#REF!+#REF!+#REF!+#REF!+#REF!+E16 ->  | G57: =#REF!+#REF!+#REF!+#REF!+#REF!+#REF!+#REF!+#REF!+#REF!+#REF!+#REF!+#REF!+#REF!+#REF!+#REF!+#REF!+#REF!+#REF!+#REF!+G16 -> 
A58: B. DIRECT SUBCONTRACTING COSTS
B59: =#REF!+#REF!+#REF!+#REF!+#REF!+#REF!+#REF!+#REF!+#REF!+#REF!+#REF!+#REF!+#REF!+#REF!+#REF!+#REF!+#REF!+#REF!+#REF!+B18 ->  | C59: =IF(B59>0,D59/B59," ") ->  | D59: =#REF!+#REF!+#REF!+#REF!+#REF!+#REF!+#REF!+#REF!+#REF!+#REF!+#REF!+#REF!+#REF!+#REF!+#REF!+#REF!+#REF!+#REF!+#REF!+#REF! ->  | E59: =#REF!+#REF!+#REF!+#REF!+#REF!+#REF!+#REF!+#REF!+#REF!+#REF!+#REF!+#REF!+#REF!+#REF!+#REF!+#REF!+#REF!+#REF!+#REF!+#REF! ->  | F59: =IF(E59>0,G59/E59," ") ->  | G59: =#REF!+#REF!+#REF!+#REF!+#REF!+#REF!+#REF!+#REF!+#REF!+#REF!+#REF!+#REF!+#REF!+#REF!+#REF!+#REF!+#REF!+#REF!+#REF!+#REF! ->  | I59: =D59+G59 -> 
A60: C. DIRECT PURCHASE COSTS
A61: C.1 Travel and subsistence | B61: =#REF!+#REF!+#REF!+#REF!+#REF!+#REF!+#REF!+#REF!+#REF!+#REF!+#REF!+#REF!+#REF!+#REF!+#REF!+#REF!+#REF!+#REF!+#REF!+B20 ->  | C61: =IF(B61>0,D61/B61," ") ->  | D61: =#REF!+#REF!+#REF!+#REF!+#REF!+#REF!+#REF!+#REF!+#REF!+#REF!+#REF!+#REF!+#REF!+#REF!+#REF!+#REF!+#REF!+#REF!+#REF!+#REF! ->  | E61: =#REF!+#REF!+#REF!+#REF!+#REF!+#REF!+#REF!+#REF!+#REF!+#REF!+#REF!+#REF!+#REF!+#REF!+#REF!+#REF!+#REF!+#REF!+#REF!+#REF! ->  | F61: =IF(E61>0,G61/E61," ") ->  | G61: =#REF!+#REF!+#REF!+#REF!+#REF!+#REF!+#REF!+#REF!+#REF!+#REF!+#REF!+#REF!+#REF!+#REF!+#REF!+#REF!+#REF!+#REF!+#REF!+#REF! ->  | I61: =D61+G61 -> 
A62: C.2 Equipment (complete 'Depreciation costs' sheet)
A63: Equipment | B63: =#REF!+#REF!+#REF!+#REF!+#REF!+#REF!+#REF!+#REF!+#REF!+#REF!+#REF!+#REF!+#REF!+#REF!+#REF!+#REF!+#REF!+#REF!+#REF!+B22 ->  | C63: =IF(B63>0,D63/B63," ") ->  | D63: =#REF!+#REF!+#REF!+#REF!+#REF!+#REF!+#REF!+#REF!+#REF!+#REF!+#REF!+#REF!+#REF!+#REF!+#REF!+#REF!+#REF!+#REF!+#REF!+D41 ->  | E63: =#REF!+#REF!+#REF!+#REF!+#REF!+#REF!+#REF!+#REF!+#REF!+#REF!+#REF!+#REF!+#REF!+#REF!+#REF!+#REF!+#REF!+#REF!+#REF!+E41 ->  | F63: =IF(E63>0,G63/E63," ") ->  | G63: =#REF!+#REF!+#REF!+#REF!+#REF!+#REF!+#REF!+#REF!+#REF!+#REF!+#REF!+#REF!+#REF!+#REF!+#REF!+#REF!+#REF!+#REF!+#REF!+G41 ->  | I63: =D63+G63 -> 
A64: Infrastructure | B64: =#REF!+#REF!+#REF!+#REF!+#REF!+#REF!+#REF!+#REF!+#REF!+#REF!+#REF!+#REF!+#REF!+#REF!+#REF!+#REF!+#REF!+#REF!+#REF!+B23 ->  | C64: =IF(B64>0,D64/B64," ") ->  | D64: =#REF!+#REF!+#REF!+#REF!+#REF!+#REF!+#REF!+#REF!+#REF!+#REF!+#REF!+#REF!+#REF!+#REF!+#REF!+#REF!+#REF!+#REF!+#REF!+D38 ->  | E64: =#REF!+#REF!+#REF!+#REF!+#REF!+#REF!+#REF!+#REF!+#REF!+#REF!+#REF!+#REF!+#REF!+#REF!+#REF!+#REF!+#REF!+#REF!+#REF!+E38 ->  | F64: =IF(E64>0,G64/E64," ") ->  | G64: =#REF!+#REF!+#REF!+#REF!+#REF!+#REF!+#REF!+#REF!+#REF!+#REF!+#REF!+#REF!+#REF!+#REF!+#REF!+#REF!+#REF!+#REF!+#REF!+G38 ->  | I64: =D64+G64 -> 
A65: Other assets | B65: =#REF!+#REF!+#REF!+#REF!+#REF!+#REF!+#REF!+#REF!+#REF!+#REF!+#REF!+#REF!+#REF!+#REF!+#REF!+#REF!+#REF!+#REF!+#REF!+B24 ->  | C65: =IF(B65>0,D65/B65," ") ->  | D65: =#REF!+#REF!+#REF!+#REF!+#REF!+#REF!+#REF!+#REF!+#REF!+#REF!+#REF!+#REF!+#REF!+#REF!+#REF!+#REF!+#REF!+#REF!+#REF!+#REF! ->  | E65: =#REF!+#REF!+#REF!+#REF!+#REF!+#REF!+#REF!+#REF!+#REF!+#REF!+#REF!+#REF!+#REF!+#REF!+#REF!+#REF!+#REF!+#REF!+#REF!+#REF! ->  | F65: =IF(E65>0,G65/E65," ") ->  | G65: =#REF!+#REF!+#REF!+#REF!+#REF!+#REF!+#REF!+#REF!+#REF!+#REF!+#REF!+#REF!+#REF!+#REF!+#REF!+#REF!+#REF!+#REF!+#REF!+#REF! ->  | I65: =D65+G65 -> 
A66: C.3 Other goods, works and services
A67: Consumables | B67: =#REF!+#REF!+#REF!+#REF!+#REF!+#REF!+#REF!+#REF!+#REF!+#REF!+#REF!+#REF!+#REF!+#REF!+#REF!+#REF!+#REF!+#REF!+#REF!+#REF! ->  | C67: =IF(B67>0,D67/B67," ") ->  | D67: =#REF!+#REF!+#REF!+#REF!+#REF!+#REF!+#REF!+#REF!+#REF!+#REF!+#REF!+#REF!+#REF!+#REF!+#REF!+#REF!+#REF!+#REF!+#REF!+#REF! ->  | E67: =#REF!+#REF!+#REF!+#REF!+#REF!+#REF!+#REF!+#REF!+#REF!+#REF!+#REF!+#REF!+#REF!+#REF!+#REF!+#REF!+#REF!+#REF!+#REF!+#REF! ->  | F67: =IF(E67>0,G67/E67," ") ->  | G67: =#REF!+#REF!+#REF!+#REF!+#REF!+#REF!+#REF!+#REF!+#REF!+#REF!+#REF!+#REF!+#REF!+#REF!+#REF!+#REF!+#REF!+#REF!+#REF!+#REF! ->  | I67: =D67+G67 -> 
A68: Services for meetings, seminars | B68: =#REF!+#REF!+#REF!+#REF!+#REF!+#REF!+#REF!+#REF!+#REF!+#REF!+#REF!+#REF!+#REF!+#REF!+#REF!+#REF!+#REF!+#REF!+#REF!+#REF! ->  | D68: =#REF!+#REF!+#REF!+#REF!+#REF!+#REF!+#REF!+#REF!+#REF!+#REF!+#REF!+#REF!+#REF!+#REF!+#REF!+#REF!+#REF!+#REF!+#REF!+#REF! ->  | E68: =#REF!+#REF!+#REF!+#REF!+#REF!+#REF!+#REF!+#REF!+#REF!+#REF!+#REF!+#REF!+#REF!+#REF!+#REF!+#REF!+#REF!+#REF!+#REF!+#REF! ->  | G68: =#REF!+#REF!+#REF!+#REF!+#REF!+#REF!+#REF!+#REF!+#REF!+#REF!+#REF!+#REF!+#REF!+#REF!+#REF!+#REF!+#REF!+#REF!+#REF!+#REF! -> 
A69: Services for dissemination activities (including website) | B69: =#REF!+#REF!+#REF!+#REF!+#REF!+#REF!+#REF!+#REF!+#REF!+#REF!+#REF!+#REF!+#REF!+#REF!+#REF!+#REF!+#REF!+#REF!+#REF!+#REF! ->  | D69: =#REF!+#REF!+#REF!+#REF!+#REF!+#REF!+#REF!+#REF!+#REF!+#REF!+#REF!+#REF!+#REF!+#REF!+#REF!+#REF!+#REF!+#REF!+#REF!+#REF! ->  | E69: =#REF!+#REF!+#REF!+#REF!+#REF!+#REF!+#REF!+#REF!+#REF!+#REF!+#REF!+#REF!+#REF!+#REF!+#REF!+#REF!+#REF!+#REF!+#REF!+#REF! ->  | G69: =#REF!+#REF!+#REF!+#REF!+#REF!+#REF!+#REF!+#REF!+#REF!+#REF!+#REF!+#REF!+#REF!+#REF!+#REF!+#REF!+#REF!+#REF!+#REF!+#REF! -> 
A70: Publication fees | B70: =#REF!+#REF!+#REF!+#REF!+#REF!+#REF!+#REF!+#REF!+#REF!+#REF!+#REF!+#REF!+#REF!+#REF!+#REF!+#REF!+#REF!+#REF!+#REF!+#REF! ->  | D70: =#REF!+#REF!+#REF!+#REF!+#REF!+#REF!+#REF!+#REF!+#REF!+#REF!+#REF!+#REF!+#REF!+#REF!+#REF!+#REF!+#REF!+#REF!+#REF!+#REF! ->  | E70: =#REF!+#REF!+#REF!+#REF!+#REF!+#REF!+#REF!+#REF!+#REF!+#REF!+#REF!+#REF!+#REF!+#REF!+#REF!+#REF!+#REF!+#REF!+#REF!+#REF! ->  | G70: =#REF!+#REF!+#REF!+#REF!+#REF!+#REF!+#REF!+#REF!+#REF!+#REF!+#REF!+#REF!+#REF!+#REF!+#REF!+#REF!+#REF!+#REF!+#REF!+#REF! -> 
A71: Other (shipment, insurance, translation, etc.) | B71: =#REF!+#REF!+#REF!+#REF!+#REF!+#REF!+#REF!+#REF!+#REF!+#REF!+#REF!+#REF!+#REF!+#REF!+#REF!+#REF!+#REF!+#REF!+#REF!+#REF! ->  | D71: =#REF!+#REF!+#REF!+#REF!+#REF!+#REF!+#REF!+#REF!+#REF!+#REF!+#REF!+#REF!+#REF!+#REF!+#REF!+#REF!+#REF!+#REF!+#REF!+#REF! ->  | E71: =#REF!+#REF!+#REF!+#REF!+#REF!+#REF!+#REF!+#REF!+#REF!+#REF!+#REF!+#REF!+#REF!+#REF!+#REF!+#REF!+#REF!+#REF!+#REF!+#REF! ->  | G71: =#REF!+#REF!+#REF!+#REF!+#REF!+#REF!+#REF!+#REF!+#REF!+#REF!+#REF!+#REF!+#REF!+#REF!+#REF!+#REF!+#REF!+#REF!+#REF!+#REF! -> 
A72: D. OTHER COST CATEGORIES
A73: D.1 Financial support to third parties (if applicable in the topic specific conditions) | B73: =#REF!+#REF!+#REF!+#REF!+#REF!+#REF!+#REF!+#REF!+#REF!+#REF!+#REF!+#REF!+#REF!+#REF!+#REF!+#REF!+#REF!+#REF!+#REF!+#REF! ->  | D73: =#REF!+#REF!+#REF!+#REF!+#REF!+#REF!+#REF!+#REF!+#REF!+#REF!+#REF!+#REF!+#REF!+#REF!+#REF!+#REF!+#REF!+#REF!+#REF!+#REF! ->  | E73: =#REF!+#REF!+#REF!+#REF!+#REF!+#REF!+#REF!+#REF!+#REF!+#REF!+#REF!+#REF!+#REF!+#REF!+#REF!+#REF!+#REF!+#REF!+#REF!+#REF! ->  | G73: =#REF!+#REF!+#REF!+#REF!+#REF!+#REF!+#REF!+#REF!+#REF!+#REF!+#REF!+#REF!+#REF!+#REF!+#REF!+#REF!+#REF!+#REF!+#REF!+#REF! -> 
A74: D.2 Internally invoiced goods and services | B74: =#REF!+#REF!+#REF!+#REF!+#REF!+#REF!+#REF!+#REF!+#REF!+#REF!+#REF!+#REF!+#REF!+#REF!+#REF!+#REF!+#REF!+#REF!+#REF!+#REF! ->  | C74: =IF(B74>0,D74/B74," ") ->  | D74: =#REF!+#REF!+#REF!+#REF!+#REF!+#REF!+#REF!+#REF!+#REF!+#REF!+#REF!+#REF!+#REF!+#REF!+#REF!+#REF!+#REF!+#REF!+#REF!+#REF! ->  | E74: =#REF!+#REF!+#REF!+#REF!+#REF!+#REF!+#REF!+#REF!+#REF!+#REF!+#REF!+#REF!+#REF!+#REF!+#REF!+#REF!+#REF!+#REF!+#REF!+#REF! ->  | F74: =IF(E74>0,G74/E74," ") ->  | G74: =#REF!+#REF!+#REF!+#REF!+#REF!+#REF!+#REF!+#REF!+#REF!+#REF!+#REF!+#REF!+#REF!+#REF!+#REF!+#REF!+#REF!+#REF!+#REF!+#REF! ->  | I74: =D74+G74 -> 
A75: D.3 Transnational access to research infrastructure unit costs (if mentioned as eligible in the topic specific conditions) | B75: =#REF!+#REF!+#REF!+#REF!+#REF!+#REF!+#REF!+#REF!+#REF!+#REF!+#REF!+#REF!+#REF!+#REF!+#REF!+#REF!+#REF!+#REF!+#REF!+#REF! ->  | D75: =#REF!+#REF!+#REF!+#REF!+#REF!+#REF!+#REF!+#REF!+#REF!+#REF!+#REF!+#REF!+#REF!+#REF!+#REF!+#REF!+#REF!+#REF!+#REF!+#REF! ->  | E75: =#REF!+#REF!+#REF!+#REF!+#REF!+#REF!+#REF!+#REF!+#REF!+#REF!+#REF!+#REF!+#REF!+#REF!+#REF!+#REF!+#REF!+#REF!+#REF!+#REF! ->  | G75: =#REF!+#REF!+#REF!+#REF!+#REF!+#REF!+#REF!+#REF!+#REF!+#REF!+#REF!+#REF!+#REF!+#REF!+#REF!+#REF!+#REF!+#REF!+#REF!+#REF! -> 
A76: D.4 Virtual access to research infrastructure unit costs (if mentioned as eligible in the topic specific conditions) | B76: =#REF!+#REF!+#REF!+#REF!+#REF!+#REF!+#REF!+#REF!+#REF!+#REF!+#REF!+#REF!+#REF!+#REF!+#REF!+#REF!+#REF!+#REF!+#REF!+#REF! ->  | D76: =#REF!+#REF!+#REF!+#REF!+#REF!+#REF!+#REF!+#REF!+#REF!+#REF!+#REF!+#REF!+#REF!+#REF!+#REF!+#REF!+#REF!+#REF!+#REF!+#REF! ->  | E76: =#REF!+#REF!+#REF!+#REF!+#REF!+#REF!+#REF!+#REF!+#REF!+#REF!+#REF!+#REF!+#REF!+#REF!+#REF!+#REF!+#REF!+#REF!+#REF!+#REF! ->  | G76: =#REF!+#REF!+#REF!+#REF!+#REF!+#REF!+#REF!+#REF!+#REF!+#REF!+#REF!+#REF!+#REF!+#REF!+#REF!+#REF!+#REF!+#REF!+#REF!+#REF! -> 
A77: D.5 PCP/PPI procurement costs (if mentioned as eligible in the topic specific conditions) | B77: =#REF!+#REF!+#REF!+#REF!+#REF!+#REF!+#REF!+#REF!+#REF!+#REF!+#REF!+#REF!+#REF!+#REF!+#REF!+#REF!+#REF!+#REF!+#REF!+#REF! ->  | D77: =#REF!+#REF!+#REF!+#REF!+#REF!+#REF!+#REF!+#REF!+#REF!+#REF!+#REF!+#REF!+#REF!+#REF!+#REF!+#REF!+#REF!+#REF!+#REF!+#REF! ->  | E77: =#REF!+#REF!+#REF!+#REF!+#REF!+#REF!+#REF!+#REF!+#REF!+#REF!+#REF!+#REF!+#REF!+#REF!+#REF!+#REF!+#REF!+#REF!+#REF!+#REF! ->  | G77: =#REF!+#REF!+#REF!+#REF!+#REF!+#REF!+#REF!+#REF!+#REF!+#REF!+#REF!+#REF!+#REF!+#REF!+#REF!+#REF!+#REF!+#REF!+#REF!+#REF! -> 
A79: TOTAL DIRECT PERSONNEL COSTS AND PURCHASE COSTS (A+C) | D79: =#REF!+#REF!+#REF!+#REF!+#REF!+#REF!+#REF!+#REF!+#REF!+#REF!+#REF!+#REF!+#REF!+#REF!+#REF!+#REF!+#REF!+#REF!+#REF!+#REF! ->  | G79: =#REF!+#REF!+#REF!+#REF!+#REF!+#REF!+#REF!+#REF!+#REF!+#REF!+#REF!+#REF!+#REF!+#REF!+#REF!+#REF!+#REF!+#REF!+#REF!+#REF! ->  | I79: =D79+G79 -> 
A80: TOTAL DIRECT COSTS (A+B+C+D) | D80: =#REF!+#REF!+#REF!+#REF!+#REF!+#REF!+#REF!+#REF!+#REF!+#REF!+#REF!+#REF!+#REF!+#REF!+#REF!+#REF!+#REF!+#REF!+#REF!+#REF! ->  | G80: =#REF!+#REF!+#REF!+#REF!+#REF!+#REF!+#REF!+#REF!+#REF!+#REF!+#REF!+#REF!+#REF!+#REF!+#REF!+#REF!+#REF!+#REF!+#REF!+#REF! ->  | I80: =D80+G80 -> 
A82: E. INDIRECT COSTS (25% * (A+C)) | D82: =#REF!+#REF!+#REF!+#REF!+#REF!+#REF!+#REF!+#REF!+#REF!+#REF!+#REF!+#REF!+#REF!+#REF!+#REF!+#REF!+#REF!+#REF!+#REF!+#REF! ->  | G82: =#REF!+#REF!+#REF!+#REF!+#REF!+#REF!+#REF!+#REF!+#REF!+#REF!+#REF!+#REF!+#REF!+#REF!+#REF!+#REF!+#REF!+#REF!+#REF!+#REF! ->  | I82: =D82+G82 -> 
A84: F. TOTAL COSTS (A+B+C+D+E) | D84: =#REF!+#REF!+#REF!+#REF!+#REF!+#REF!+#REF!+#REF!+#REF!+#REF!+#REF!+#REF!+#REF!+#REF!+#REF!+#REF!+#REF!+#REF!+D1+#REF! ->  | G84: =#REF!+#REF!+#REF!+#REF!+#REF!+#REF!+#REF!+#REF!+#REF!+#REF!+#REF!+#REF!+#REF!+#REF!+#REF!+#REF!+#REF!+#REF!+G1+#REF! ->  | I84: =D84+G84 -> 

Sheet BE1
A1: BENEFICIARY 1 - CALCULATION SHEET | C1: View Summary
B2: BE1 name
A3: COST CATEGORY | B3: UNITS | C3: COST PER UNIT | D3: BE TOTAL COSTS
A5: =CONCATENATE("COSTS WORK PACKAGE 1: "," ","WP1 name") -> COSTS WORK PACKAGE 1: WP1 name
A7: A. DIRECT PERSONNEL COSTS
A8: A.1 Employees (or equivalent)
A9: SENIOR SCIENTISTS (or equivalent in the private sector) | D9: =B9*C9 -> 0
A10: JUNIOR SCIENTISTS (or equivalent in the private sector) | D10: 0
A11: TECHNICAL PERSONNEL (or equivalent in the private sector) | D11: 0
A12: ADMINISTRATIVE PERSONNEL (or equivalent in the private sector) | D12: 0
A13: OTHERS | D13: 0
A14: A.2 Natural Persons under direct contract | D14: 0
A15: A.3 Seconded Persons | D15: 0
A16: A.4 SME owners and natural person beneficiaries | C16: =5080*VLOOKUP('BE list'!D4,CountryList!A2:B164,2,FALSE) -> 5080 | D16: 0
A17: B. DIRECT SUBCONTRACTING COSTS
D18: =B18*C18 -> 0
A19: C. DIRECT PURCHASE COSTS
A20: C.1 Travel and subsistence | D20: =B20*C20 -> 0
A21: C.2 Equipment (complete 'Depreciation costs' sheet)
A22: Equipment | D22: =B22*C22 -> 0
A23: Infrastructure | D23: =B23*C23 -> 0
A24: Other assets | D24: =B24*C24 -> 0
A25: C.3 Other goods, works and services
A26: Consumables | D26: =B26*C26 -> 0
A27: Services for meetings, seminars | D27: =B27*C27 -> 0
A28: Services for dissemination activities (including website) | D28: =B28*C28 -> 0
A29: Publication fees | D29: =B29*C29 -> 0
A30: Other (shipment, insurance, translation, etc.) | D30: =B30*C30 -> 0
A31: D. OTHER COST CATEGORIES
A32: D.1 Financial support to third parties (if applicable in the topic specific conditions) | D32: =B32*C32 -> 0
A33: D.2 Internally invoiced goods and services | D33: =B33*C33 -> 0
A34: D.3 Transnational access to research infrastructure unit costs (if mentioned as eligible in the topic specific conditions) | D34: =B34*C34 -> 0
A35: D.4 Virtual access to research infrastructure unit costs (if mentioned as eligible in the topic specific conditions) | D35: =B35*C35 -> 0
A36: D.5 PCP/PPI procurement costs (if mentioned as eligible in the topic specific conditions) | D36: =B36*C36 -> 0
A38: TOTAL DIRECT PERSONNEL COSTS AND PURCHASE COSTS (A+C) | D38: =SUM(D9:D16)+SUM(D20:D30) -> 0
A39: TOTAL DIRECT COSTS (A+B+C+D) | D39: =SUM(D8:D36) -> 0
A41: E. INDIRECT COSTS (25% * (A+C)) | D41: =D38*0.25 -> 0
A43: F. TOTAL COSTS (A+B+C+D+E) | D43: =D39+D41 -> 0
A46: SUMMARY
A48: A. DIRECT PERSONNEL COSTS
A49: A.1 Employees (or equivalent)
A50: SENIOR SCIENTISTS (or equivalent in the private sector) | B50: =B9 -> 0 | C50: =IF(B50>0,D50/B50," ") ->  | D50: =D9 -> 0
A51: JUNIOR SCIENTISTS (or equivalent in the private sector) | B51: 0 | D51: 0
A52: TECHNICAL PERSONNEL (or equivalent in the private sector) | B52: 0 | D52: 0
A53: ADMINISTRATIVE PERSONNEL (or equivalent in the private sector) | B53: 0 | D53: 0
A54: OTHERS | B54: 0 | D54: 0
A55: A.2 Natural Persons under direct contract | B55: 0 | D55: 0
A56: A.3 Seconded Persons | B56: 0 | D56: 0
A57: A.4 SME owners and natural person beneficiaries | B57: 0 | D57: 0
A58: B. DIRECT SUBCONTRACTING COSTS
B59: =B18 -> 0 | C59: =IF(B59>0,D59/B59," ") ->  | D59: =D18 -> 0
A60: C. DIRECT PURCHASE COSTS
A61: C.1 Travel and subsistence | B61: =B20 -> 0 | C61: =IF(B61>0,D61/B61," ") ->  | D61: =D20 -> 0
A62: C.2 Equipment (complete 'Depreciation costs' sheet)
A63: Equipment | B63: =B22 -> 0 | C63: =IF(B63>0,D63/B63," ") ->  | D63: =D22 -> 0
A64: Infrastructure | B64: =B23 -> 0 | C64: =IF(B64>0,D64/B64," ") ->  | D64: =D23 -> 0
A65: Other assets | B65: =B24 -> 0 | C65: =IF(B65>0,D65/B65," ") ->  | D65: =D24 -> 0
A66: C.3 Other goods, works and services
A67: Consumables | B67: =B26 -> 0 | C67: =IF(B67>0,D67/B67," ") ->  | D67: =D26 -> 0
A68: Services for meetings, seminars | B68: =B27 -> 0 | D68: =D27 -> 0
A69: Services for dissemination activities (including website) | B69: =B28 -> 0 | D69: =D28 -> 0
A70: Publication fees | B70: =B29 -> 0 | D70: =D29 -> 0
A71: Other (shipment, insurance, translation, etc.) | B71: =B30 -> 0 | D71: =D30 -> 0
A72: D. OTHER COST CATEGORIES
A73: D.1 Financial support to third parties (if applicable in the topic specific conditions) | B73: =B32 -> 0 | D73: =D32 -> 0
A74: D.2 Internally invoiced goods and services | B74: =B33 -> 0 | D74: =D33 -> 0
A75: D.3 Transnational access to research infrastructure unit costs (if mentioned as eligible in the topic specific conditions) | B75: =B34 -> 0 | D75: =D34 -> 0
A76: D.4 Virtual access to research infrastructure unit costs (if mentioned as eligible in the topic specific conditions) | B76: =B35 -> 0 | D76: =D35 -> 0
A77: D.5 PCP/PPI procurement costs (if mentioned as eligible in the topic specific conditions) | B77: =B36 -> 0 | D77: =D36 -> 0
A79: TOTAL DIRECT PERSONNEL COSTS AND PURCHASE COSTS (A+C) | D79: =D38 -> 0
A80: TOTAL DIRECT COSTS (A+B+C+D) | D80: =D39 -> 0
A82: E. INDIRECT COSTS (25% * (A+C)) | D82: =D41 -> 0
A84: F. TOTAL COSTS (A+B+C+D+E) | D84: =D43 -> 0

Sheet Depreciation costs (hidden)
A1: TOOL: DEPRECIATION COSTS LIST
A2: BE nr | B2: Beneficiary name | C2: WP nr | D2: Work Package name | E2: Resource type | F2: Short name of the investments | G2: Date of purchase (real or planned date of purchase) | H2: Purchase cost | I2: % used for the project | J2: % of useful life of the equipment in the project | K2: Charged depreciation costs per investment | L2: Justification: Needed info for depreciation
K3: =+H3*I3*J3 -> 0
A4: 1 | C4: 1 | E4: Infrastructures | H4: 100000 | I4: 0.5 | J4: 0.5 | K4: 25000
K5: 0
K6: 0
K7: 0
K8: 0
K9: 0
K10: 0
K11: 0
K12: 0
K13: 0
K14: 0
K15: 0
K16: 0
K17: 0
K18: 0
K19: 0
K20: 0
K21: 0
K22: 0
K23: 0
K24: 0
K25: 0
K26: 0
K27: 0
K28: 0
K29: 0
K30: 0
K31: 0
K32: 0
K33: 0
K34: 0
K35: 0
K36: 0
K37: 0
K38: 0
K39: 0
K40: 0
K41: 0
K42: 0
K43: 0
K44: 0
K45: 0
K46: 0
K47: 0
K48: 0
K49: 0
K50: 0
K51: 0
K52: 0
K53: 0
K54: 0
K55: 0
K56: 0
K57: 0
K58: 0
K59: 0
K60: 0
K61: 0
K62: 0
K63: 0
K64: 0
K65: 0
K66: 0
K67: 0
K68: 0
K69: =+H69*I69*J69 -> 0
K70: 0
K71: 0
K72: 0
K73: 0
K74: 0
K75: 0
K76: 0
K77: 0
K78: 0
K79: 0
K80: 0
K81: 0
K82: 0
K83: 0
K84: 0
K85: 0
K86: 0
K87: 0
K88: 0
K89: 0
K90: 0
K91: 0
K92: 0
K93: 0
K94: 0
K95: 0
K96: 0
K97: 0
K98: 0
K99: 0
K100: 0
K101: 0
K102: 0
K103: =+H103*I103*J103 -> 0
K104: 0
K105: 0
K106: 0
K107: 0
K108: 0
K109: 0
K110: 0
K111: 0
K112: 0
K113: 0
K114: 0
K115: 0
K116: 0
K117: 0
K118: 0
K119: 0
K120: 0
K121: 0
K122: 0
K123: 0
K124: 0
K125: 0
K126: 0
K127: 0
K128: 0
K129: 0
K130: 0
K131: 0
K132: 0
K133: 0
K134: 0
K135: 0
K136: 0
K137: 0
K138: 0
K139: 0
K140: 0
K141: 0
K142: 0
K143: 0
K144: 0
K145: 0
K146: 0
K147: 0
K148: 0
K149: 0
K150: 0
K151: 0
K152: 0
K153: 0
K154: 0
K155: 0
K156: 0
K157: 0
K158: 0
K159: 0
K160: 0
K161: 0
K162: 0
K163: 0
K164: 0
K165: 0
K166: 0
K167: =+H167*I167*J167 -> 0
K168: 0
K169: 0
K170: 0
K171: 0
K172: 0
K173: 0
K174: 0
K175: 0
K176: 0
K177: 0
K178: 0
K179: 0
K180: 0
K181: 0
K182: 0
K183: 0
K184: 0
K185: 0
K186: 0
K187: 0
K188: 0
K189: 0
K190: 0
K191: 0
K192: 0
K193: 0
K194: 0
K195: 0
K196: 0
K197: 0
K198: 0
K199: 0
K200: 0
... 9 more rows

Sheet Any comments (hidden)
A1: Any comments
A2: nr | B2: BE ref | C2: WP ref | D2: Comments

Sheet CountryList (hidden)
A1: Country | B1: Coefficient
A2: AE | B2: 0.94
A3: AL | B3: 0.59
A4: AM | B4: 0.777
A5: AO | B5: 1.3
A6: AR | B6: 0.625
A7: AT | B7: 1.063
A8: AU | B8: 1.009
A9: AZ | B9: 0.821
A10: BA | B10: 0.639
A11: BB | B11: 1.128
A12: BD | B12: 0.812
A13: BE | B13: 1
A14: BF | B14: 0.95
A15: BG | B15: 0.548
A16: BI | B16: 0.813
A17: BJ | B17: 0.919
A18: BO | B18: 0.839
A19: BR | B19: 0.847
A20: BW | B20: 0.629
A21: BY | B21: 0.668
A22: BZ | B22: 0.799
A23: CA | B23: 0.952
A24: CD | B24: 1.519
A25: CF | B25: 1.093
A26: CG | B26: 1.173
A27: CH | B27: 1.286
A28: CI | B28: 0.946
A29: CL | B29: 0.695
A30: CM | B30: 0.878
A31: CN | B31: 0.9
A32: CO | B32: 0.676
A33: CR | B33: 0.776
A34: CU | B34: 0.825
A35: CV | B35: 0.696
A36: CY | B36: 0.775
A37: CZ | B37: 0.791
A38: DE | B38: 0.983
A39: DJ | B39: 0.872
A40: DK | B40: 1.32
A41: DO | B41: 0.614
A42: DZ | B42: 0.679
A43: EC | B43: 0.794
A44: EE | B44: 0.803
A45: EG | B45: 0.674
A46: EL | B46: 0.816
A47: ER | B47: 1.204
A48: ES | B48: 0.913
A49: ET | B49: 0.819
A50: FI | B50: 1.195
A51: FJ | B51: 0.735
A52: FO | B52: 1.32
A53: FR | B53: 1.164
A54: GA | B54: 1.079
A55: GE | B55: 0.622
A56: GH | B56: 0.739
A57: GM | B57: 0.688
A58: GN | B58: 0.842
A59: GT | B59: 0.873
A60: GW | B60: 0.819
A61: GY | B61: 0.717
A62: HK | B62: 1.154
A63: HN | B63: 0.774
A64: HR | B64: 0.755
A65: HT | B65: 0.85
A66: HU | B66: 0.72
A67: ID | B67: 0.73
A68: IE | B68: 1.195
A69: IL | B69: 1.072
A70: IN | B70: 0.738
A71: IS | B71: 1.305
A72: IT | B72: 0.974
A73: JM | B73: 0.844
A74: JO | B74: 0.988
A75: JP | B75: 1.033
A76: KE | B76: 0.856
A77: KG | B77: 0.737
A78: KH | B78: 0.786
A79: KM | B79: 0.757
A80: KR | B80: 0.955
A81: KZ | B81: 0.719
A82: LA | B82: 0.898
A83: LB | B83: 1.162
A84: LI | B84: 1.286
A85: LK | B85: 0.774
A86: LR | B86: 1.496
A87: LS | B87: 0.562
A88: LT | B88: 0.728
A89: LU | B89: 1
A90: LV | B90: 0.76
A91: MA | B91: 0.726
A92: MD | B92: 0.632
A93: ME | B93: 0.616
A94: MG | B94: 0.856
A95: MK | B95: 0.507
A96: ML | B96: 0.9
A97: MM | B97: 0.67
A98: MR | B98: 0.681
A99: MT | B99: 0.881
A100: MU | B100: 0.733
A101: MW | B101: 0.609
A102: MX | B102: 0.603
A103: MY | B103: 0.672
A104: MZ | B104: 0.717
A105: NA | B105: 0.669
A106: NC | B106: 1.074
A107: NE | B107: 0.8
A108: NG | B108: 0.852
A109: NI | B109: 0.673
A110: NL | B110: 1.096
A111: NO | B111: 1.287
A112: NP | B112: 0.878
A113: NZ | B113: 0.989
A114: PA | B114: 0.768
A115: PE | B115: 0.88
A116: PG | B116: 0.998
A117: PH | B117: 0.813
A118: PK | B118: 0.548
A119: PL | B119: 0.705
A120: PS | B120: 1.125
A121: PT | B121: 0.843
A122: PY | B122: 0.63
A123: RO | B123: 0.654
A124: RS | B124: 0.577
A125: RU | B125: 0.973
A126: RW | B126: 0.816
A127: SA | B127: 0.834
A128: SB | B128: 1.127
A129: SD | B129: 1.078
A130: SE | B130: 1.254
A131: SG | B131: 1.244
A132: SI | B132: 0.833
A133: SK | B133: 0.781
A134: SL | B134: 1.071
A135: SN | B135: 0.984
A136: SR | B136: 0.691
A137: SV | B137: 0.722
A138: SZ | B138: 0.613
A139: TD | B139: 1.001
A140: TG | B140: 0.828
A141: TH | B141: 0.788
A142: TJ | B142: 0.584
A143: TL | B143: 0.887
A144: TM | B144: 0.829
A145: TN | B145: 0.674
A146: TR | B146: 0.645
A147: TT | B147: 0.818
A148: TW | B148: 0.847
A149: TZ | B149: 0.679
A150: UA | B150: 0.685
A151: UG | B151: 0.672
A152: UK | B152: 1.369
A153: US | B153: 1.023
A154: UY | B154: 0.897
A155: UZ | B155: 0.68
A156: VE | B156: 1.392
A157: VN | B157: 0.613
A158: VU | B158: 1.048
A159: WS | B159: 0.822
A160: XK | B160: 0.702
A161: YE | B161: 1.044
A162: ZA | B162: 0.553
A163: ZM | B163: 0.748
A164: ZW | B164: 0.983
